Trans No.,Service Area Categorisation,Service Division Categorisation,Responsible Unit,Unit Code,Expenses Type,Expenses Sub Type,Expense Code,Narrative,Amount,Invoice Date,Cap/Rev,Supplier Name
1,Central Services,Corporate Mangmt not separated,Chief Exec's Office,A01001,Supplies & Services           ,Grants and Subscriptions      ,DJ04,Subscriptions                           ,"5,000.00",24/03/2016,R,L.B OF RICHMOND UPON THAMES   
2,Central Services,Corporate Mangmt not separated,Chief Exec's Office,A01001,Supplies & Services           ,Grants and Subscriptions      ,DJ04,Subscriptions                           ,"(7,965.00)",06/04/2016,R,LOCAL GOVERNMENT ASSOCIATION  
3,Central Services,Corporate Mangmt not separated,Chief Exec's Office,A01001,Supplies & Services           ,Grants and Subscriptions      ,DJ04,Subscriptions                           ,"(1,598.60)",06/04/2016,R,LOCAL GOVERNMENT ASSOCIATION  
4,Central Services,Corporate Mangmt not separated,Chief Exec's Office,A01001,Supplies & Services           ,Grants and Subscriptions      ,DJ04,Subscriptions                           ,"9,564.00",06/04/2016,R,LOCAL GOVERNMENT ASSOCIATION  
5,Central Services,Corporate Mangmt not separated,Chief Exec's Office,A01001,Supplies & Services           ,Grants and Subscriptions      ,DJ04,Subscriptions                           ,"30,373.00",06/04/2016,R,LOCAL GOVERNMENT ASSOCIATION  
6,Central Services,Corporate Mangmt not separated,Chief Exec's Office,A01001,Supplies & Services           ,Grants and Subscriptions      ,DJ04,Subscriptions                           ,"105,652.00",21/04/2016,R,LONDON COUNCILS               
7,Central Services,SupS Chief Execs,Local Involvement Network,A01039,Third Party Payments          ,Private Contractors           ,EH10,Contract Payments                       ,752.00,31/03/2016,R,VOICEABILITY                  
8,Cultural Env Reg&Plan Services,Comm Safety (Crime Reduction),Crime and Strategy Team,A01100,Employees                     ,Indirect Employee Expenses    ,AB57,EXTERNAL TRAINING COSTS                 ,"1,800.00",24/04/2016,R,UKCT SUPPORT SERVICES LTD     
9,Cultural Env Reg&Plan Services,Comm Safety (Crime Reduction),CCTV,A01200,Supplies & Services           ,Equip Furniture/Materials     ,DA01,Equipment - R & M                       ,"3,358.12",30/03/2016,R,EUROVIA INFRASTRUCTURE LTD    
10,Cultural Env Reg&Plan Services,Comm Safety (Crime Reduction),CCTV,A01200,Premises Related Expenditure  ,Energy Costs                  ,BB02,Electricity                             ,"1,042.30",08/04/2016,R,SCOTTISH POWER                
11,Cultural Env Reg&Plan Services,Comm Safety (Crime Reduction),CCTV,A01200,Supplies & Services           ,Comms and Computing           ,DG15,Network Maintenance                     ,"1,720.00",11/04/2016,R,RETAIL TECHNOLOGY SERVICES LTD
12,Cultural Env Reg&Plan Services,Comm Safety (Crime Reduction),CCTV,A01200,Supplies & Services           ,Comms and Computing           ,DG15,Network Maintenance                     ,"27,587.17",15/04/2016,R,BT REDCARE                    
13,Cultural Env Reg&Plan Services,Comm Safety (Crime Reduction),CCTV,A01200,Supplies & Services           ,Equip Furniture/Materials     ,DA01,Equipment - R & M                       ,"3,434.07",19/04/2016,R,TYCO FIRE & INTEGR'TD SOL (UK 
14,Cultural Env Reg&Plan Services,Comm Safety (Crime Reduction),Anti-Social Behaviour,A01202,Supplies & Services           ,Comms and Computing           ,DG02,Software Licences                       ,"1,500.00",31/03/2016,R,VANTAGE TECHNOLOGIES LIMITED  
15,Central Services,SupS Chief Execs,NON-STATUTORY MARKETING & COMM,A02019,Supplies & Services           ,Expenses                      ,DH14,Prizes and Awards                       ,"9,293.50",08/04/2016,R,THE GIFT VOUCHER SHOP LTD     
16,Central Services,SupS Chief Execs,NON-STATUTORY MARKETING & COMM,A02019,Supplies & Services           ,Prntng Stnry Gen Off Exp      ,DE22,Marketing                               ,"1,835.48",25/04/2016,R,ROYAL MAIL GROUP LTD          
17,Central Services,SupS Chief Execs,Democratic Services,A02023,Supplies & Services           ,Services                      ,DF35,Graphic Design                          ,880.00,05/04/2016,R,REDACTED
18,Central Services,SupS Chief Execs,Press and Public Relations.,A02026,Supplies & Services           ,Prntng Stnry Gen Off Exp      ,DE20,Council Magazine                        ,625.00,25/01/2016,R,REDACTED
19,Central Services,SupS Chief Execs,Press and Public Relations.,A02026,Supplies & Services           ,Prntng Stnry Gen Off Exp      ,DE20,Council Magazine                        ,"3,892.00",11/03/2016,R,LONDON LETTERBOX MARKETING    
20,Central Services,SupS Chief Execs,Press and Public Relations.,A02026,Supplies & Services           ,Grants and Subscriptions      ,DJ04,Subscriptions                           ,"1,586.00",13/04/2016,R,NEWSPAPER LICENSING AGENCY LTD
21,CS -Oth Operating Inc & Expend,T/A Corporate Services,Prting Jobs - Internal,A03040,Supplies & Services           ,Prntng Stnry Gen Off Exp      ,DE05,Micro-filming                           ,"6,297.54",16/02/2016,R,MISL LTD                      
22,CS -Oth Operating Inc & Expend,T/A Corporate Services,Prting Jobs - Internal,A03040,Supplies & Services           ,Prntng Stnry Gen Off Exp      ,DE05,Micro-filming                           ,"1,880.00",01/03/2016,R,MISL LTD                      
23,CS -Oth Operating Inc & Expend,T/A Corporate Services,Prting Jobs - Internal,A03040,Supplies & Services           ,Prntng Stnry Gen Off Exp      ,DE05,Micro-filming                           ,506.64,31/03/2016,R,MISL LTD                      
24,CS -Oth Operating Inc & Expend,T/A Corporate Services,Prtng Jobs - Ext Agncy,A03041,Supplies & Services           ,Prntng Stnry Gen Off Exp      ,DE01,External Printing                       ,706.00,31/03/2016,R,CLIFFE ENTERPRISE LTD         
25,CS -Oth Operating Inc & Expend,T/A Corporate Services,Prtng Jobs - Ext Agncy,A03041,Supplies & Services           ,Prntng Stnry Gen Off Exp      ,DE01,External Printing                       ,"2,840.00",31/03/2016,R,CUSTOMISED GRAPHICS PRINT LTD 
26,CS -Oth Operating Inc & Expend,T/A Corporate Services,PrintUnit-HighVolPhtcopying,A03042,Supplies & Services           ,Prntng Stnry Gen Off Exp      ,DE03,Stationery                              ,983.25,01/03/2016,R,ENCORE ENVELOPES LIMITED      
27,CS -Oth Operating Inc & Expend,T/A Corporate Services,Translation Services,A04060,Supplies & Services           ,Services                      ,DF45,Payment of Sessional Workers            ,795.00,31/03/2016,R,COSMIC EUROPE LIMTED          
28,Central Services,Grants - Voluntary Groups,VOLUNTARY SECTOR COORDINATION,A04082,Supplies & Services           ,Grants and Subscriptions      ,DJ01,Grants                                  ,"31,000.00",29/03/2016,R,MERTON VOLUNTARY SERV COUNCIL 
29,Central Services,Grants - Voluntary Groups,VOLUNTARY SECTOR COORDINATION,A04082,Supplies & Services           ,Grants and Subscriptions      ,DJ04,Subscriptions                           ,"42,045.00",11/04/2016,R,LONDON COUNCILS               
30,Central Services,Grants - Voluntary Groups,VOLUNTARY SECTOR COORDINATION,A04082,Supplies & Services           ,Grants and Subscriptions      ,DJ01,Grants                                  ,"40,000.00",11/04/2016,R,MERTON CIL                    
31,Central Services,Grants - Voluntary Groups,VOLUNTARY SECTOR COORDINATION,A04082,Supplies & Services           ,Grants and Subscriptions      ,DJ01,Grants                                  ,"170,949.00",11/04/2016,R,MERTON CITIZEN ADVICE BUREAU  
32,Central Services,Grants - Voluntary Groups,VOLUNTARY SECTOR COORDINATION,A04082,Supplies & Services           ,Grants and Subscriptions      ,DJ01,Grants                                  ,"12,500.00",11/04/2016,R,MERTON COMMUNITY TRANSPORT    
33,Central Services,Grants - Voluntary Groups,VOLUNTARY SECTOR COORDINATION,A04082,Supplies & Services           ,Grants and Subscriptions      ,DJ01,Grants                                  ,"20,000.00",11/04/2016,R,MERTON VOLUNTARY SERV COUNCIL 
34,Central Services,Grants - Voluntary Groups,VOLUNTARY SECTOR COORDINATION,A04082,Supplies & Services           ,Grants and Subscriptions      ,DJ01,Grants                                  ,"62,742.00",11/04/2016,R,MERTON VOLUNTARY SERV COUNCIL 
35,Central Services,Grants - Voluntary Groups,VOLUNTARY SECTOR COORDINATION,A04082,Supplies & Services           ,Grants and Subscriptions      ,DJ01,Grants                                  ,"26,882.50",11/04/2016,R,SPRINGFIELD LAW CENTRE LTD    
36,Central Services,Grants - Voluntary Groups,VOLUNTARY SECTOR COORDINATION,A04082,Supplies & Services           ,Grants and Subscriptions      ,DJ01,Grants                                  ,"28,017.00",11/04/2016,R,SW LONDON LAW CENTRES         
37,Central Services,SupS Comm and Member Services,COMMERICIAL SERVICES,A04085,Employees                     ,Direct Employee Expenses      ,AA17,Agency Staff & Casual Paymts            ,"2,475.00",31/03/2016,R,HAYS SPECIALIST RECRUITM'T LTD
38,Highways & Transport Services,On-street parking,Blue Badge Service,A04088,Supplies & Services           ,Comms and Computing           ,DG15,Network Maintenance                     ,908.56,04/04/2016,R,NORTHGATE PUBLIC SERVICES (UK)
39,Central Services,SupS Health & Safety,Learning and Development,B06146,Employees                     ,Indirect Employee Expenses    ,AB57,EXTERNAL TRAINING COSTS                 ,830.00,31/03/2016,R,MAYBO LTD                     
40,Central Services,SupS Health & Safety,Learning and Development,B06146,Employees                     ,Indirect Employee Expenses    ,AB57,EXTERNAL TRAINING COSTS                 ,830.00,31/03/2016,R,MAYBO LTD                     
41,Central Services,SupS Health & Safety,Learning and Development,B06146,Employees                     ,Indirect Employee Expenses    ,AB57,EXTERNAL TRAINING COSTS                 ,830.00,05/04/2016,R,MAYBO LTD                     
42,Central Services,SupS Health & Safety,Learning and Development,B06146,Employees                     ,Indirect Employee Expenses    ,AB57,EXTERNAL TRAINING COSTS                 ,990.00,07/04/2016,R,CATALYST CONSULTING LTD       
43,Central Services,SupS Health & Safety,Depart' HR -ADVICE & CONSULTANCY,B06148,Employees                     ,Indirect Employee Expenses    ,AB02,Recruitment Adverts                     ,"29,350.00",14/05/2015,R,LONDON BOROUGH OF SUTTON      
44,0,0,Library Self Service                    ,CC011AB,Vehicles Plant Equipment and Machinery,,D3,Equipment                               ,"20,514.80",31/03/2016,C,UNIQUE OFFICE SOLUTIONS LTD   
45,0,0,8 Wilton Road                           ,CC017AA,New Construction Conversion and Renovation,,B4,Contractor - Site works                 ,"8,640.49",31/03/2016,C,OAKLAND BUILDING SERVICES LTD 
46,0,0,The Gables Mitcham                      ,CC021AB,New Construction Conversion and Renovation,,B4,Contractor - Site works                 ,"87,937.81",06/04/2016,C,MOY CONSTRUCTION CO LTD       
47,0,0,CCTV (match funding)                    ,CE002EA,New Construction Conversion and Renovation,,B4,Contractor - Site works                 ,540.00,11/04/2016,C,KH FLOORING LTD               
48,0,0,Disabled Facilities Grant DCLG          ,CE004RA,Other Capital Expenditure,,E1,Grants                                  ,540.12,12/04/2016,C,BAILEY CONSULTING             
49,0,0,Disabled Facilities Grant DCLG          ,CE004RA,Other Capital Expenditure,,E1,Grants                                  ,"1,253.63",25/04/2016,C,CBS ADAPTATION                
50,0,0,Disabled Facilities Grant DCLG          ,CE004RA,Other Capital Expenditure,,E1,Grants                                  ,"1,402.80",25/04/2016,C,CBS ADAPTATION                
51,0,0,Disabled Facilities Grant DCLG          ,CE004RA,Other Capital Expenditure,,E1,Grants                                  ,"8,035.00",25/04/2016,C,SD FAMILY BUILDERS            
52,0,0,Parks Investment                        ,CE013SA,New Construction Conversion and Renovation,,B4,Contractor - Site works                 ,"8,200.68",23/03/2016,C,MOY CONSTRUCTION CO LTD       
53,0,0,Parks Investment                        ,CE013SA,New Construction Conversion and Renovation,,B4,Contractor - Site works                 ,"4,446.00",31/03/2016,C,DF20 LTD                      
54,0,0,Highways bridges & structures           ,CE025FA,New Construction Conversion and Renovation,,B4,Contractor - Site works                 ,"200,000.00",31/03/2016,C,FM CONWAY LTD                 
55,0,0,Pay & Display Machine                   ,CE029AA,New Construction Conversion and Renovation,,B4,Contractor - Site works                 ,"3,458.13",14/04/2016,C,FM CONWAY LTD                 
56,0,0,Repairs to Footways                     ,CE029FA,New Construction Conversion and Renovation,,B4,Contractor - Site works                 ,"27,565.91",04/04/2016,C,FM CONWAY LTD                 
57,0,0,Repairs to Footways                     ,CE029FA,New Construction Conversion and Renovation,,B4,Contractor - Site works                 ,"22,869.92",08/04/2016,C,FM CONWAY LTD                 
58,0,0,Morden Leisure Centre                   ,CE045AA,New Construction Conversion and Renovation,,B1,Consultants Fees D&S Structure          ,"33,124.00",11/03/2016,C,FAITHFUL AND GOULD            
59,0,0,Morden Leisure Centre                   ,CE045AA,New Construction Conversion and Renovation,,B1,Consultants Fees D&S Structure          ,"5,200.00",31/03/2016,C,SWEETT (UK) LIMITED           
60,0,0,Town Centre Investment                  ,CE061FB,New Construction Conversion and Renovation,,B5,Suppliers - Site works                  ,"1,086.80",24/03/2016,C,BARCHAM TREES P.L.C.          
61,0,0,Town Centre Investment                  ,CE061FB,New Construction Conversion and Renovation,,B4,Contractor - Site works                 ,"2,349.16",31/03/2016,C,FM CONWAY LTD                 
62,0,0,Town Centre Investment                  ,CE061FB,New Construction Conversion and Renovation,,B4,Contractor - Site works                 ,"195,000.00",04/04/2016,C,FM CONWAY LTD                 
63,0,0,Rediscover Mitcham                      ,CE061FG,New Construction Conversion and Renovation,,B3,Other Expenses D&S Structure            ,750.00,31/03/2016,C,ALTHON LTD                    
64,0,0,Rediscover Mitcham                      ,CE061FG,New Construction Conversion and Renovation,,B3,Other Expenses D&S Structure            ,"9,995.00",31/03/2016,C,ALTHON LTD                    
65,0,0,Rediscover Mitcham                      ,CE061FG,New Construction Conversion and Renovation,,B4,Contractor - Site works                 ,"1,753.11",31/03/2016,C,KIER INTEGRATED SERVICES LTD  
66,0,0,Rediscover Mitcham                      ,CE061FG,New Construction Conversion and Renovation,,B3,Other Expenses D&S Structure            ,(750.00),08/04/2016,C,ALTHON LTD                    
67,0,0,Rediscover Mitcham                      ,CE061FG,Vehicles Plant Equipment and Machinery,,D5,Software                                ,"3,902.00",13/04/2016,C,SPUD & YAM                    
68,0,0,Street Lighting Replacement Pr          ,CE068FA,New Construction Conversion and Renovation,,B4,Contractor - Site works                 ,"1,859.84",17/02/2016,C,KIER INTEGRATED SERVICES LTD  
69,0,0,Street Lighting Replacement Pr          ,CE068FA,New Construction Conversion and Renovation,,B6,Other Costs - Site works                ,"3,470.00",09/03/2016,C,UK POWER NETWORKS (OPERATIONS)
70,0,0,Street Lighting Replacement Pr          ,CE068FA,New Construction Conversion and Renovation,,B6,Other Costs - Site works                ,642.00,17/03/2016,C,UK POWER NETWORKS (OPERATIONS)
71,0,0,Street Lighting Replacement Pr          ,CE068FA,New Construction Conversion and Renovation,,B6,Other Costs - Site works                ,698.00,17/03/2016,C,UK POWER NETWORKS (OPERATIONS)
72,0,0,Street Lighting Replacement Pr          ,CE068FA,New Construction Conversion and Renovation,,B6,Other Costs - Site works                ,"2,568.00",17/03/2016,C,UK POWER NETWORKS (OPERATIONS)
73,0,0,Street Lighting Replacement Pr          ,CE068FA,New Construction Conversion and Renovation,,B4,Contractor - Site works                 ,"2,654.31",18/03/2016,C,KIER INTEGRATED SERVICES LTD  
74,0,0,Street Lighting Replacement Pr          ,CE068FA,New Construction Conversion and Renovation,,B6,Other Costs - Site works                ,642.00,29/03/2016,C,UK POWER NETWORKS (OPERATIONS)
75,0,0,Street Lighting Replacement Pr          ,CE068FA,New Construction Conversion and Renovation,,B6,Other Costs - Site works                ,642.00,29/03/2016,C,UK POWER NETWORKS (OPERATIONS)
76,0,0,Street Lighting Replacement Pr          ,CE068FA,New Construction Conversion and Renovation,,B6,Other Costs - Site works                ,642.00,29/03/2016,C,UK POWER NETWORKS (OPERATIONS)
77,0,0,Street Lighting Replacement Pr          ,CE068FA,New Construction Conversion and Renovation,,B4,Contractor - Site works                 ,"1,179.71",31/03/2016,C,KIER INTEGRATED SERVICES LTD  
78,0,0,Street Lighting Replacement Pr          ,CE068FA,New Construction Conversion and Renovation,,B4,Contractor - Site works                 ,"5,307.58",31/03/2016,C,KIER INTEGRATED SERVICES LTD  
79,0,0,Street Lighting Replacement Pr          ,CE068FA,New Construction Conversion and Renovation,,B4,Contractor - Site works                 ,"15,239.28",31/03/2016,C,KIER INTEGRATED SERVICES LTD  
80,0,0,Replacement of Fleet Vehicles           ,CE082EA,Vehicles Plant Equipment and Machinery,,D1,Vehicles                                ,"1,695.01",31/03/2016,C,COMMERCIAL SERV'S TRADING LTD 
81,0,0,Replacement of Fleet Vehicles           ,CE082EA,Vehicles Plant Equipment and Machinery,,D1,Vehicles                                ,"7,705.13",31/03/2016,C,COMMERCIAL SERV'S TRADING LTD 
82,0,0,Replacement of Fleet Vehicles           ,CE082EA,Vehicles Plant Equipment and Machinery,,D1,Vehicles                                ,"7,856.21",31/03/2016,C,COMMERCIAL SERV'S TRADING LTD 
83,0,0,Replacement of Fleet Vehicles           ,CE082EA,Vehicles Plant Equipment and Machinery,,D1,Vehicles                                ,"12,622.65",31/03/2016,C,COMMERCIAL SERV'S TRADING LTD 
84,0,0,Replacement of Fleet Vehicles           ,CE082EA,Vehicles Plant Equipment and Machinery,,D1,Vehicles                                ,"19,854.04",31/03/2016,C,COMMERCIAL SERV'S TRADING LTD 
85,0,0,Replacement of Fleet Vehicles           ,CE082EA,Vehicles Plant Equipment and Machinery,,D1,Vehicles                                ,"25,023.00",31/03/2016,C,COMMERCIAL SERV'S TRADING LTD 
86,0,0,Replacement of Fleet Vehicles           ,CE082EA,Vehicles Plant Equipment and Machinery,,D1,Vehicles                                ,"24,803.00",08/04/2016,C,COMMERCIAL SERV'S TRADING LTD 
87,0,0,Casualty Reduction & Schools            ,CE104RA,New Construction Conversion and Renovation,,B6,Other Costs - Site works                ,"1,300.00",06/04/2016,C,UK POWER NETWORKS (OPERATIONS)
88,0,0,Bus Stop Compliance                     ,CE105FR,New Construction Conversion and Renovation,,B4,Contractor - Site works                 ,"6,021.24",04/04/2016,C,FM CONWAY LTD                 
89,0,0,Croydon Road shared use path            ,CE106FC,New Construction Conversion and Renovation,,B4,Contractor - Site works                 ,510.31,31/03/2016,C,KIER INTEGRATED SERVICES LTD  
90,0,0,Biking Borough Programme                ,CE128RA,Vehicles Plant Equipment and Machinery,,D3,Equipment                               ,"6,500.00",04/04/2016,C,CYCLEHOOP LTD                 
91,0,0,Traffic Schemes                         ,CE142FA,New Construction Conversion and Renovation,,B4,Contractor - Site works                 ,532.10,31/03/2016,C,KIER INTEGRATED SERVICES LTD  
92,0,0,Repair and Maintenance                  ,CF004SA,New Construction Conversion and Renovation,,B4,Contractor - Site works                 ,590.00,04/04/2016,C,KH FLOORING LTD               
93,0,0,Dundonald expansion                     ,CS031AC,New Construction Conversion and Renovation,,B1,Consultants Fees D&S Structure          ,950.00,30/03/2016,C,EIGHT ASSOCIATES LTD          
94,0,0,Dundonald expansion                     ,CS031AC,New Construction Conversion and Renovation,,B1,Consultants Fees D&S Structure          ,"12,767.00",31/03/2016,C,HAVERSTOCK ASSOCIATES LLP     
95,0,0,Dundonald expansion                     ,CS031AC,New Construction Conversion and Renovation,,B1,Consultants Fees D&S Structure          ,"2,955.00",31/03/2016,C,SYNERGY CPC LLP               
96,0,0,Dundonald expansion                     ,CS031AC,New Construction Conversion and Renovation,,B1,Consultants Fees D&S Structure          ,812.50,06/04/2016,C,AREA LANDSCAPE ARCHITECTS     
97,0,0,Dundonald expansion                     ,CS031AC,New Construction Conversion and Renovation,,B1,Consultants Fees D&S Structure          ,"2,210.00",06/04/2016,C,AREA LANDSCAPE ARCHITECTS     
98,0,0,Dundonald expansion                     ,CS031AC,New Construction Conversion and Renovation,,B4,Contractor - Site works                 ,"300,000.00",21/04/2016,C,KIND & COMPANY (BUILDERS) LTD 
99,0,0,Dundonald expansion                     ,CS031AC,New Construction Conversion and Renovation,,B1,Consultants Fees D&S Structure          ,"12,767.00",26/04/2016,C,HAVERSTOCK ASSOCIATES LLP     
100,0,0,Singlegate expansion                    ,CS049AA,New Construction Conversion and Renovation,,B4,Contractor - Site works                 ,"343,764.26",20/04/2016,C,KIND & COMPANY (BUILDERS) LTD 
101,0,0,Schs Cap Maint & Accessibility          ,CS080SD,New Construction Conversion and Renovation,,B6,Other Costs - Site works                ,"1,255.00",07/04/2016,C,T MCKEOWN & SON FENCING       
102,0,0,Schs Cap Maint & Accessibility          ,CS080SD,New Construction Conversion and Renovation,,B4,Contractor - Site works                 ,672.00,12/04/2016,C,STAMFORD CONTRACTS LIMITED    
103,0,0,Hatfield                                ,CS081SA,New Construction Conversion and Renovation,,B4,Contractor - Site works                 ,"36,894.73",24/03/2016,C,BOLT & HEEKS LTD              
104,0,0,Hatfield                                ,CS081SA,New Construction Conversion and Renovation,,B6,Other Costs - Site works                ,"9,880.00",07/04/2016,C,T MCKEOWN & SON FENCING       
105,0,0,Harris Merton 2fe                       ,CS085SG,New Construction Conversion and Renovation,,B1,Consultants Fees D&S Structure          ,861.00,29/03/2016,C,SUMMERS INMAN                 
106,0,0,Harris Merton 2fe                       ,CS085SG,New Construction Conversion and Renovation,,B4,Contractor - Site works                 ,"19,498.00",01/04/2016,C,WILLMOTT DIXON CONSTRUCT'N LTD
107,0,0,Harris Morden 2fe                       ,CS085SH,New Construction Conversion and Renovation,,B4,Contractor - Site works                 ,"15,500.00",01/04/2016,C,WILLMOTT DIXON CONSTRUCT'N LTD
108,0,0,Perseid                                 ,CS092AA,New Construction Conversion and Renovation,,B1,Consultants Fees D&S Structure          ,"11,442.75",31/03/2016,C,NPS SOUTH EAST                
109,0,0,Perseid                                 ,CS092AA,New Construction Conversion and Renovation,,B4,Contractor - Site works                 ,"18,054.16",31/03/2016,C,R DURTNELL & SONS LTD         
110,0,0,Perseid                                 ,CS092AA,New Construction Conversion and Renovation,,B6,Other Costs - Site works                ,"2,280.00",07/04/2016,C,T MCKEOWN & SON FENCING       
111,0,0,IT Equipment                            ,CT006EA,Vehicles Plant Equipment and Machinery,,D3,Equipment                               ,"2,960.00",11/03/2016,C,SPECIALIST COMPUTER CENT. PLC 
112,0,0,IT Equipment                            ,CT006EA,Vehicles Plant Equipment and Machinery,,D3,Equipment                               ,"4,320.00",29/03/2016,C,SPECIALIST COMPUTER CENT. PLC 
113,0,0,IT Equipment                            ,CT006EA,Vehicles Plant Equipment and Machinery,,D3,Equipment                               ,"8,840.00",29/03/2016,C,SPECIALIST COMPUTER CENT. PLC 
114,0,0,IT Equipment                            ,CT006EA,Vehicles Plant Equipment and Machinery,,D3,Equipment                               ,518.86,30/03/2016,C,XMA LIMITED                   
115,0,0,IT Equipment                            ,CT006EA,Other Capital Expenditure,,E3,Miscellaneous Capital Expendit          ,"1,080.00",31/03/2016,C,NETWORK SOLUTIONS INC         
116,0,0,IT Equipment                            ,CT006EA,Vehicles Plant Equipment and Machinery,,D3,Equipment                               ,"6,322.00",31/03/2016,C,SCALABLE COMMUNICATIONS PLC   
117,0,0,IT Equipment                            ,CT006EA,Other Capital Expenditure,,E3,Miscellaneous Capital Expendit          ,"4,075.00",31/03/2016,C,SCALABLE COMMUNICATIONS PLC   
118,0,0,IT Equipment                            ,CT006EA,Other Capital Expenditure,,E3,Miscellaneous Capital Expendit          ,"1,950.00",31/03/2016,C,SOFTCAT LTD                   
119,0,0,IT Equipment                            ,CT006EA,Vehicles Plant Equipment and Machinery,,D3,Equipment                               ,"1,224.00",21/04/2016,C,XMA LIMITED                   
120,0,0,Smartphones                             ,CT015EA,Vehicles Plant Equipment and Machinery,,D3,Equipment                               ,"5,235.00",04/03/2016,C,EVERYTHING EVERYWHERE         
121,0,0,Smartphones                             ,CT015EA,Vehicles Plant Equipment and Machinery,,D3,Equipment                               ,"5,584.00",04/03/2016,C,EVERYTHING EVERYWHERE         
122,Central Services,Council tax collection,Local Taxation Services,E02100,Supplies & Services           ,Comms and Computing           ,DG09,Computer Purchases - Misc               ,"3,715.88",31/03/2016,R,CIVICA UK LIMITED             
123,Central Services,Council tax collection,Local Taxation Services,E02100,Supplies & Services           ,Comms and Computing           ,DG09,Computer Purchases - Misc               ,"5,000.00",31/03/2016,R,CIVICA UK LIMITED             
124,Central Services,Council tax collection,Local Taxation Services,E02100,Supplies & Services           ,Services                      ,DF09,Miscellaneous Fees                      ,612.56,27/04/2016,R,REDACTED
125,Central Services,Council tax collection,Local Taxation Bailiffs,E02101,Supplies & Services           ,Services                      ,DF18,Bailiffs' fees                          ,"8,780.00",31/03/2016,R,CLEARTONE TELECOMS LTD        
126,Housing Services,HB Administration,Benefits Administration,E02120,Supplies & Services           ,Comms and Computing           ,DG09,Computer Purchases - Misc               ,"1,255.00",14/04/2016,R,CIVICA UK LIMITED             
127,Central Services,SupS Payroll,Payroll,E02140,Third Party Payments          ,Private Contractors           ,EH10,Contract Payments                       ,"(13,123.26)",04/04/2016,R,LONDON BOROUGH OF SUTTON      
128,Central Services,SupS Payroll,Payroll,E02140,Third Party Payments          ,Private Contractors           ,EH10,Contract Payments                       ,"12,543.98",04/04/2016,R,LONDON BOROUGH OF SUTTON      
129,Central Services,SupS Payroll,Payroll,E02140,Third Party Payments          ,Private Contractors           ,EH10,Contract Payments                       ,"5,965.83",06/04/2016,R,LONDON BOROUGH OF SUTTON      
130,Central Services,SupS Payroll,Payroll,E02140,Employees                     ,Direct Employee Expenses      ,AA04,Shared Services Salaries                ,"1,981.73",12/04/2016,R,LONDON BOROUGH OF SUTTON      
131,Central Services,SupS Payroll,Payroll,E02140,Employees                     ,Direct Employee Expenses      ,AA04,Shared Services Salaries                ,"10,100.00",12/04/2016,R,LONDON BOROUGH OF SUTTON      
132,Central Services,SupS Payroll,Trinity Project,E02141,Supplies & Services           ,Services                      ,DF03,Consultants                             ,"1,640.00",04/04/2016,R,LONDON BOROUGH OF SUTTON      
133,Central Services,SupS Facilities,Post Room,E02220,Supplies & Services           ,Comms and Computing           ,DG04,Postage - General                       ,571.20,04/03/2016,R,PITNEY BOWES LIMITED          
134,Central Services,SupS Facilities,Post Room,E02220,Supplies & Services           ,Comms and Computing           ,DG04,Postage - General                       ,571.20,04/03/2016,R,PITNEY BOWES LIMITED          
135,Central Services,SupS Facilities,Post Room,E02220,Supplies & Services           ,Comms and Computing           ,DG04,Postage - General                       ,653.10,04/03/2016,R,PITNEY BOWES LIMITED          
136,Central Services,SupS Facilities,Post Room,E02220,Supplies & Services           ,Comms and Computing           ,DG04,Postage - General                       ,"1,877.40",04/03/2016,R,PITNEY BOWES LIMITED          
137,Central Services,SupS Facilities,Post Room,E02220,Supplies & Services           ,Comms and Computing           ,DG04,Postage - General                       ,"1,999.20",04/03/2016,R,PITNEY BOWES LIMITED          
138,Central Services,SupS Facilities,Post Room,E02220,Supplies & Services           ,Comms and Computing           ,DG04,Postage - General                       ,674.73,01/04/2016,R,CANON UK LIMITED              
139,Central Services,SupS Facilities,Post Room,E02220,Supplies & Services           ,Comms and Computing           ,DG04,Postage - General                       ,"2,108.54",01/04/2016,R,CANON UK LIMITED              
140,Central Services,SupS Facilities,Post Room,E02220,Supplies & Services           ,Comms and Computing           ,DG04,Postage - General                       ,885.00,08/04/2016,R,PITNEY BOWES LIMITED          
141,Central Services,SupS Facilities,Post Room,E02220,Supplies & Services           ,Comms and Computing           ,DG04,Postage - General                       ,"5,000.00",14/04/2016,R,NEOPOST FINANCE LIMITED       
142,Central Services,SupS Facilities,Post Room,E02220,Supplies & Services           ,Comms and Computing           ,DG04,Postage - General                       ,"5,000.00",14/04/2016,R,NEOPOST FINANCE LIMITED       
143,Central Services,SupS Facilities,Post Room,E02220,Supplies & Services           ,Comms and Computing           ,DG04,Postage - General                       ,"7,299.17",14/04/2016,R,NEOPOST FINANCE LIMITED       
144,Central Services,SupS Facilities,Security Services,E02221,Third Party Payments          ,Private Contractors           ,EH10,Contract Payments                       ,"1,069.12",01/04/2016,R,SIGHT & SOUND                 
145,Central Services,SupS Facilities,Security Services,E02221,Third Party Payments          ,Private Contractors           ,EH10,Contract Payments                       ,"1,644.80",01/04/2016,R,SIGHT & SOUND                 
146,Central Services,SupS Facilities,Security Services,E02221,Third Party Payments          ,Private Contractors           ,EH10,Contract Payments                       ,"1,727.04",01/04/2016,R,SIGHT & SOUND                 
147,Central Services,SupS Facilities,Security Services,E02221,Third Party Payments          ,Private Contractors           ,EH10,Contract Payments                       ,"1,727.04",01/04/2016,R,SIGHT & SOUND                 
148,Central Services,SupS Facilities,Security Services,E02221,Third Party Payments          ,Private Contractors           ,EH10,Contract Payments                       ,"2,467.20",01/04/2016,R,SIGHT & SOUND                 
149,Central Services,SupS Facilities,Facilities,E02231,Premises Related Expenditure  ,RepairsAlterations&MtceOfBldgs,BA02,ENERGY CONSERVATION                     ,"2,000.00",31/03/2016,R,BRIAR ASSOCIATES              
150,Central Services,SupS Facilities,Facilities,E02231,Premises Related Expenditure  ,RepairsAlterations&MtceOfBldgs,BA02,ENERGY CONSERVATION                     ,"29,770.43",04/04/2016,R,THAMES WATER COMM'CL SERV LTD 
151,Central Services,SupS Facilities,Facilities,E02231,Premises Related Expenditure  ,RepairsAlterations&MtceOfBldgs,BA02,ENERGY CONSERVATION                     ,"1,000.00",12/04/2016,R,JOJU SOLA                     
152,Central Services,SupS Facilities,Facilities,E02231,Premises Related Expenditure  ,RepairsAlterations&MtceOfBldgs,BA03,DDM - Mechanical                        ,"22,609.60",20/04/2016,R,FLETCHERS FACILITIES LIMITED  
153,Central Services,SupS Facilities,Corporate Services Buildings,E02240,Premises Related Expenditure  ,Water Services                ,BE01,Use of Water (Metered)                  ,"1,955.84",29/03/2016,R,SUTTON AND EAST SURREY WATER  
154,Central Services,SupS Facilities,Corporate Services Buildings,E02240,Premises Related Expenditure  ,Energy Costs                  ,BB03,Gas (incl. Butane)                      ,504.04,05/04/2016,R,GAZPROM MARKETING&TRADING LTD 
155,Central Services,SupS Facilities,Corporate Services Buildings,E02240,Premises Related Expenditure  ,Energy Costs                  ,BB03,Gas (incl. Butane)                      ,"8,067.33",05/04/2016,R,GAZPROM MARKETING&TRADING LTD 
156,Central Services,SupS Facilities,Corporate Services Buildings,E02240,Premises Related Expenditure  ,RepairsAlterations&MtceOfBldgs,BA03,DDM - Mechanical                        ,"7,806.26",22/04/2016,R,FUTURE TECH                   
157,Childrens & Education Services,Strategic Management,PDC,E02254,Premises Related Expenditure  ,Energy Costs                  ,BB02,Electricity                             ,938.39,01/04/2016,R,SCOTTISH POWER                
158,Childrens & Education Services,Strategic Management,PDC,E02254,Premises Related Expenditure  ,Energy Costs                  ,BB03,Gas (incl. Butane)                      ,560.28,05/04/2016,R,GAZPROM MARKETING&TRADING LTD 
159,Adult Social Care,OP 65 & Over Day Care,Pollards Hill Day Centre,E02270,Premises Related Expenditure  ,RepairsAlterations&MtceOfBldgs,BA06,REPAIRS & MAINTENANCE GENERAL           ,940.00,20/03/2016,R,INDEPTH HYGIENE SERVICES LTD  
160,Adult Social Care,OP 65 & Over Day Care,Pollards Hill Day Centre,E02270,Premises Related Expenditure  ,Cleaning and Domestic Supplies,BH01,Cleaning Materials                      ,504.00,07/04/2016,R,GREENHAM                      
161,Adult Social Care,OP 65 & Over Day Care,Pollards Hill Day Centre,E02270,Premises Related Expenditure  ,Cleaning and Domestic Supplies,BH01,Cleaning Materials                      ,504.00,20/04/2016,R,GREENHAM TRADING LTD          
162,Central Services,SupS Facilities,CORPORATE ELECTRICITY RECHARGE,E02275,Premises Related Expenditure  ,Energy Costs                  ,BB02,Electricity                             ,"3,135.15",18/04/2016,R,SCOTTISH POWER                
163,Central Services,SupS Facilities,CORPORATE ELECTRICITY RECHARGE,E02275,Premises Related Expenditure  ,Energy Costs                  ,BB02,Electricity                             ,"29,592.41",18/04/2016,R,SCOTTISH POWER                
164,Cultural Env Reg&Plan Services,Parks & Open Spaces,E & R Buildings,E02344,Premises Related Expenditure  ,RepairsAlterations&MtceOfBldgs,BA01,DDM - General Building                  ,"1,061.23",27/07/2015,R,SALTASH ENTERPRISES LTD       
165,Adult Social Care,PS u65 Day Care,C & H Buildings,E02345,Premises Related Expenditure  ,RepairsAlterations&MtceOfBldgs,BA03,DDM - Mechanical                        ,785.85,30/03/2016,R,BILFINGER EUROPA FACILITY     
166,Adult Social Care,PS u65 Day Care,C & H Buildings,E02345,Premises Related Expenditure  ,RepairsAlterations&MtceOfBldgs,BA03,DDM - Mechanical                        ,863.75,30/03/2016,R,BILFINGER EUROPA FACILITY     
167,Adult Social Care,PS u65 Day Care,C & H Buildings,E02345,Premises Related Expenditure  ,RepairsAlterations&MtceOfBldgs,BA01,DDM - General Building                  ,"2,194.00",07/04/2016,R,J CARROLL & SONS              
168,Cultural Env Reg&Plan Services,Parks & Open Spaces,Leisure Buildings,E02350,Premises Related Expenditure  ,RepairsAlterations&MtceOfBldgs,BA03,DDM - Mechanical                        ,616.25,31/03/2016,R,BILFINGER EUROPA FACILITY     
169,Cultural Env Reg&Plan Services,Parks & Open Spaces,Leisure Buildings,E02350,Premises Related Expenditure  ,RepairsAlterations&MtceOfBldgs,BA03,DDM - Mechanical                        ,976.86,31/03/2016,R,BILFINGER EUROPA FACILITY     
170,Cultural Env Reg&Plan Services,Parks & Open Spaces,Leisure Buildings,E02350,Premises Related Expenditure  ,RepairsAlterations&MtceOfBldgs,BA01,DDM - General Building                  ,585.00,08/04/2016,R,LA BELLE ROOFING CO LTD       
171,Cultural Env Reg&Plan Services,Parks & Open Spaces,Leisure Buildings,E02350,Premises Related Expenditure  ,RepairsAlterations&MtceOfBldgs,BA06,REPAIRS & MAINTENANCE GENERAL           ,"1,206.25",22/04/2016,R,SALTASH ENTERPRISES LTD       
172,Central Services,SupS DOF,AD RESOURCES,E04061,Supplies & Services           ,Grants and Subscriptions      ,DJ04,Subscriptions                           ,"6,430.00",29/02/2016,R,CIPFA BUSINESS LTD            
173,Central Services,SupS DOF,AD RESOURCES,E04061,Supplies & Services           ,Services                      ,DF03,Consultants                             ,"8,510.00",04/03/2016,R,PUBLIC SECTOR CONSULTANTS     
174,Central Services,Officer support time,Corporately Funded Items,E04065,Supplies & Services           ,Services                      ,DF11,Counsel's Fees                          ,610.00,07/03/2016,R,REDACTED
175,Central Services,Officer support time,Corporately Funded Items,E04065,Supplies & Services           ,Services                      ,DF11,Counsel's Fees                          ,720.00,30/03/2016,R,REDACTED
176,Central Services,SupS  Risk and Insurance,Insurance Premiums & Funding,E05161,Supplies & Services           ,Comms and Computing           ,DG02,Software Licences                       ,"11,809.00",01/04/2016,R,JC APPLICATIONS DEVELOPMENT   
177,Central Services,SupS  Risk and Insurance,Insurance Premiums & Funding,E05161,Supplies & Services           ,Services                      ,DF74,Insurance Premiums                      ,550.24,07/04/2016,R,ZURICH INSURANCE COMPANY      
178,Central Services,SupS  Risk and Insurance,Insurance Premiums & Funding,E05161,Supplies & Services           ,Services                      ,DF74,Insurance Premiums                      ,"38,452.57",07/04/2016,R,ZURICH INSURANCE COMPANY      
179,Central Services,SupS  Risk and Insurance,Insurance Premiums & Funding,E05161,Supplies & Services           ,Services                      ,DF74,Insurance Premiums                      ,"297,745.76",07/04/2016,R,ZURICH INSURANCE COMPANY      
180,Central Services,SupS  Risk and Insurance,Insurance Premiums & Funding,E05161,Supplies & Services           ,Services                      ,DF74,Insurance Premiums                      ,"3,416.40",13/04/2016,R,JLT SPECIALTY LIMITED         
181,Central Services,SupS  Risk and Insurance,Insurance Premiums & Funding,E05161,Supplies & Services           ,Services                      ,DF74,Insurance Premiums                      ,"6,898.50",13/04/2016,R,JLT SPECIALTY LIMITED         
182,Central Services,SupS  Risk and Insurance,Insurance Premiums & Funding,E05161,Supplies & Services           ,Services                      ,DF74,Insurance Premiums                      ,"95,812.50",13/04/2016,R,JLT SPECIALTY LIMITED         
183,Central Services,SupS Corporate Finance,Corporate Accountancy,E06209,Supplies & Services           ,Grants and Subscriptions      ,DJ04,Subscriptions                           ,"5,720.00",23/02/2016,R,CIPFA                         
184,Central Services,SupS Corporate Finance,Corporate Accountancy,E06209,Supplies & Services           ,Grants and Subscriptions      ,DJ04,Subscriptions                           ,"7,815.00",26/02/2016,R,CIPFA                         
185,Central Services,SupS Corporate Finance,Corporate Accountancy,E06209,Supplies & Services           ,Services                      ,DF58,Audit Fee                               ,"2,598.00",15/04/2016,R,ERNST & YOUNG LLP             
186,Central Services,SupS Strategic Finance,Business Planning,E06221,Supplies & Services           ,Comms and Computing           ,DG50,Other IT Expenditure                    ,"4,211.26",01/04/2016,R,COVALENT SOFTWARE             
187,Central Services,SupS Strategic Finance,Treasury & Insurance,E06222,Employees                     ,Direct Employee Expenses      ,AA17,Agency Staff & Casual Paymts            ,"1,808.00",31/03/2016,R,HAYS SPECIALIST RECRUITM'T LTD
188,Central Services,SupS Strategic Finance,Treasury & Insurance,E06222,Employees                     ,Direct Employee Expenses      ,AA17,Agency Staff & Casual Paymts            ,692.00,07/04/2016,R,HAYS SPECIALIST RECRUITM'T LTD
189,Central Services,SupS Strategic Finance,Treasury & Insurance,E06222,Employees                     ,Direct Employee Expenses      ,AA17,Agency Staff & Casual Paymts            ,"1,116.00",07/04/2016,R,HAYS SPECIALIST RECRUITM'T LTD
190,Central Services,SupS Strategic Finance,Treasury & Insurance,E06222,Employees                     ,Direct Employee Expenses      ,AA17,Agency Staff & Casual Paymts            ,"(2,260.00)",14/04/2016,R,HAYS SPECIALIST RECRUITM'T LTD
191,Central Services,SupS Strategic Finance,Treasury & Insurance,E06222,Employees                     ,Direct Employee Expenses      ,AA17,Agency Staff & Casual Paymts            ,"2,260.00",14/04/2016,R,HAYS SPECIALIST RECRUITM'T LTD
192,Central Services,SupS Strategic Finance,Treasury & Insurance,E06222,Employees                     ,Direct Employee Expenses      ,AA17,Agency Staff & Casual Paymts            ,"2,260.00",14/04/2016,R,HAYS SPECIALIST RECRUITM'T LTD
193,Central Services,GENERATED ACCOUNT,Parking Cash Collect'n Contrct,E06225,Third Party Payments          ,Private Contractors           ,EH02,Miscellaneous Hired Services            ,"10,641.84",31/03/2016,R,JADE SECURITY SERVICE LTD     
194,Central Services,SupS DOF,Service Accountancy,E06227,Supplies & Services           ,Grants and Subscriptions      ,DJ04,Subscriptions                           ,"1,995.00",29/02/2016,R,CIPFA BUSINESS LTD            
195,Central Services,SupS Legal,Legal Services,E10282,Supplies & Services           ,Services                      ,DF11,Counsel's Fees                          ,500.00,12/04/2016,R,REDACTED
196,Central Services,Conducting elections,Election Expenses,E10284,Supplies & Services           ,Comms and Computing           ,DG04,Postage - General                       ,"1,797.95",01/04/2016,R,FINANCIAL DATA MANAGEMENT PLC 
197,Central Services,Conducting elections,Election Expenses,E10284,Supplies & Services           ,Comms and Computing           ,DG04,Postage - General                       ,544.60,09/04/2016,R,FINANCIAL DATA MANAGEMENT PLC 
198,Central Services,Registration of electors,Electoral Registration,E10285,Supplies & Services           ,Comms and Computing           ,DG04,Postage - General                       ,838.22,21/03/2016,R,ROYAL MAIL GROUP LTD          
199,Central Services,Registration of electors,Electoral Registration,E10285,Supplies & Services           ,Comms and Computing           ,DG02,Software Licences                       ,"20,692.17",22/03/2016,R,HALAROSE LIMITED              
200,Central Services,SupS Legal,Shared Legal Service,E10288,Supplies & Services           ,Comms and Computing           ,DG50,Other IT Expenditure                    ,"6,714.00",04/03/2016,R,VIRGIN MEDIA PAYMENTS LTD     
201,Central Services,SupS Legal,Shared Legal Service,E10288,Supplies & Services           ,Comms and Computing           ,DG04,Postage - General                       ,"1,263.65",28/03/2016,R,NEOPOST FINANCE LIMITED       
202,Central Services,SupS Legal,Shared Legal Service,E10288,Supplies & Services           ,Prntng Stnry Gen Off Exp      ,DE30,General Office Expense                  ,939.25,31/03/2016,R,RESTORE PLC                   
203,Central Services,SupS Legal,Shared Legal Service,E10288,Employees                     ,Indirect Employee Expenses    ,AB57,EXTERNAL TRAINING COSTS                 ,650.00,04/04/2016,R,CENTRAL LAW TRAINING LTD      
204,Central Services,SupS Legal,Shared Legal Service,E10288,Supplies & Services           ,Comms and Computing           ,DG04,Postage - General                       ,"1,875.00",07/04/2016,R,DX NETWORK SERVICES LTD       
205,Central Services,SupS Legal,Shared Legal Service,E10288,Employees                     ,Indirect Employee Expenses    ,AB57,EXTERNAL TRAINING COSTS                 ,955.00,13/04/2016,R,INSTITUTE OF DIRECTORS        
206,Central Services,SupS Legal,Shared Legal Service,E10288,Supplies & Services           ,Comms and Computing           ,DG04,Postage - General                       ,"1,995.00",21/04/2016,R,DX NETWORK SERVICES LTD       
207,Central Services,SupS Legal,Richmond Legal,E10289,Supplies & Services           ,Services                      ,DF95,Services from Provider                  ,"28,132.00",11/02/2016,R,REDACTED
208,Central Services,SupS Legal,Richmond Legal,E10289,Supplies & Services           ,Services                      ,DF11,Counsel's Fees                          ,"1,387.50",30/03/2016,R,REDACTED
209,Central Services,SupS Legal,Richmond Legal,E10289,Supplies & Services           ,Services                      ,DF11,Counsel's Fees                          ,"2,275.00",05/04/2016,R,REDACTED
210,Central Services,SupS Legal,Richmond Legal,E10289,Supplies & Services           ,Services                      ,DF11,Counsel's Fees                          ,"3,137.50",15/04/2016,R,REDACTED
211,Central Services,SupS Legal,Richmond Legal,E10289,Supplies & Services           ,Services                      ,DF11,Counsel's Fees                          ,650.00,18/04/2016,R,REDACTED
212,Central Services,SupS Legal,Richmond Legal,E10289,Supplies & Services           ,Services                      ,DF95,Services from Provider                  ,"7,500.00",19/04/2016,R,PRIME SOLICITORS              
213,Central Services,SupS Legal,Kingston Legal                          ,E10292,Supplies & Services           ,Services                      ,DF11,Counsel's Fees                          ,"1,385.00",18/04/2016,R,REDACTED
214,Central Services,SupS Legal,Sutton Legal                            ,E10293,Supplies & Services           ,Services                      ,DF14,Doctors and Other Fees                  ,802.00,03/12/2015,R,EXPERT IN MIND                
215,Central Services,SupS Legal,Sutton Legal                            ,E10293,Supplies & Services           ,Services                      ,DF11,Counsel's Fees                          ,"1,375.00",17/02/2016,R,REDACTED
216,Central Services,SupS Legal,Sutton Legal                            ,E10293,Supplies & Services           ,Services                      ,DF11,Counsel's Fees                          ,530.00,01/03/2016,R,REDACTED
217,Central Services,SupS Legal,Sutton Legal                            ,E10293,Supplies & Services           ,Services                      ,DF11,Counsel's Fees                          ,"2,897.50",04/03/2016,R,REDACTED
218,Central Services,SupS Legal,Sutton Legal                            ,E10293,Supplies & Services           ,Services                      ,DF11,Counsel's Fees                          ,(510.00),15/03/2016,R,REDACTED
219,Central Services,SupS Legal,Sutton Legal                            ,E10293,Supplies & Services           ,Services                      ,DF11,Counsel's Fees                          ,880.00,15/03/2016,R,REDACTED
220,Central Services,SupS Legal,Sutton Legal                            ,E10293,Supplies & Services           ,Services                      ,DF11,Counsel's Fees                          ,(930.00),21/03/2016,R,REDACTED
221,Central Services,SupS Legal,Sutton Legal                            ,E10293,Supplies & Services           ,Services                      ,DF14,Doctors and Other Fees                  ,"2,400.00",28/03/2016,R,REDACTED
222,Central Services,SupS Legal,Sutton Legal                            ,E10293,Supplies & Services           ,Services                      ,DF11,Counsel's Fees                          ,550.00,29/03/2016,R,REDACTED
223,Central Services,SupS Legal,Sutton Legal                            ,E10293,Supplies & Services           ,Services                      ,DF11,Counsel's Fees                          ,"11,725.00",29/03/2016,R,REDACTED
224,Central Services,SupS Legal,Sutton Legal                            ,E10293,Supplies & Services           ,Services                      ,DF11,Counsel's Fees                          ,840.00,31/03/2016,R,REDACTED
225,Central Services,SupS Legal,Sutton Legal                            ,E10293,Supplies & Services           ,Services                      ,DF95,Services from Provider                  ,"2,900.00",05/04/2016,R,IRWIN MITCHELL LLP            
226,Central Services,SupS Legal,Sutton Legal                            ,E10293,Supplies & Services           ,Services                      ,DF11,Counsel's Fees                          ,900.00,05/04/2016,R,REDACTED
227,Central Services,SupS Legal,Sutton Legal                            ,E10293,Supplies & Services           ,Services                      ,DF14,Doctors and Other Fees                  ,518.50,05/04/2016,R,REDACTED
228,Central Services,SupS Legal,Sutton Legal                            ,E10293,Supplies & Services           ,Services                      ,DF14,Doctors and Other Fees                  ,936.00,06/04/2016,R,REDACTED
229,Central Services,SupS Legal,Sutton Legal                            ,E10293,Supplies & Services           ,Services                      ,DF14,Doctors and Other Fees                  ,"1,723.33",19/04/2016,R,GRAHAM ROGERS & ASSOCIATES LTD
230,Central Services,SupS Legal,Sutton Legal                            ,E10293,Supplies & Services           ,Services                      ,DF14,Doctors and Other Fees                  ,"1,584.00",21/04/2016,R,REDACTED
231,Central Services,SupS Legal,Sutton Legal                            ,E10293,Supplies & Services           ,Services                      ,DF11,Counsel's Fees                          ,520.00,22/04/2016,R,REDACTED
232,Central Services,SupS Legal,Sutton Legal                            ,E10293,Supplies & Services           ,Services                      ,DF11,Counsel's Fees                          ,543.32,22/04/2016,R,REDACTED
233,Central Services,SupS Legal,Sutton Legal                            ,E10293,Supplies & Services           ,Services                      ,DF11,Counsel's Fees                          ,"1,860.00",27/04/2016,R,REDACTED
234,Central Services,SupS Legal,Sutton Housing Partnership(SHP          ,E10294,Supplies & Services           ,Services                      ,DF11,Counsel's Fees                          ,"1,957.50",30/03/2016,R,REDACTED
235,Central Services,SupS Legal,Achieving for Children (AFC),E10295,Supplies & Services           ,Services                      ,DF14,Doctors and Other Fees                  ,783.81,20/11/2015,R,REDACTED
236,Central Services,SupS Legal,Achieving for Children (AFC),E10295,Supplies & Services           ,Services                      ,DF14,Doctors and Other Fees                  ,"1,640.00",27/12/2015,R,REDACTED
237,Central Services,SupS Legal,Achieving for Children (AFC),E10295,Supplies & Services           ,Services                      ,DF11,Counsel's Fees                          ,760.00,27/01/2016,R,REDACTED
238,Central Services,SupS Legal,Achieving for Children (AFC),E10295,Supplies & Services           ,Services                      ,DF11,Counsel's Fees                          ,525.00,09/02/2016,R,REDACTED
239,Central Services,SupS Legal,Achieving for Children (AFC),E10295,Supplies & Services           ,Services                      ,DF11,Counsel's Fees                          ,"1,120.00",10/02/2016,R,REDACTED
240,Central Services,SupS Legal,Achieving for Children (AFC),E10295,Supplies & Services           ,Services                      ,DF11,Counsel's Fees                          ,"6,205.00",19/02/2016,R,REDACTED
241,Central Services,SupS Legal,Achieving for Children (AFC),E10295,Supplies & Services           ,Services                      ,DF11,Counsel's Fees                          ,520.00,01/03/2016,R,REDACTED
242,Central Services,SupS Legal,Achieving for Children (AFC),E10295,Supplies & Services           ,Services                      ,DF14,Doctors and Other Fees                  ,"7,225.65",14/03/2016,R,CAMBRIDGE LONDON GROUP LIMITED
243,Central Services,SupS Legal,Achieving for Children (AFC),E10295,Supplies & Services           ,Services                      ,DF14,Doctors and Other Fees                  ,645.75,22/03/2016,R,BESPOKE PSYCHOLOGY            
244,Central Services,SupS Legal,Achieving for Children (AFC),E10295,Supplies & Services           ,Services                      ,DF11,Counsel's Fees                          ,"1,500.00",22/03/2016,R,REDACTED
245,Central Services,SupS Legal,Achieving for Children (AFC),E10295,Supplies & Services           ,Services                      ,DF11,Counsel's Fees                          ,510.00,23/03/2016,R,REDACTED
246,Central Services,SupS Legal,Achieving for Children (AFC),E10295,Supplies & Services           ,Services                      ,DF11,Counsel's Fees                          ,"1,410.00",29/03/2016,R,REDACTED
247,Central Services,SupS Legal,Achieving for Children (AFC),E10295,Supplies & Services           ,Services                      ,DF11,Counsel's Fees                          ,637.50,30/03/2016,R,REDACTED
248,Central Services,SupS Legal,Achieving for Children (AFC),E10295,Supplies & Services           ,Services                      ,DF14,Doctors and Other Fees                  ,784.72,30/03/2016,R,REDACTED
249,Central Services,SupS Legal,Achieving for Children (AFC),E10295,Supplies & Services           ,Services                      ,DF14,Doctors and Other Fees                  ,"19,320.00",30/03/2016,R,THE BRESLAFF CENTRE           
250,Central Services,SupS Legal,Achieving for Children (AFC),E10295,Supplies & Services           ,Services                      ,DF14,Doctors and Other Fees                  ,"2,020.66",31/03/2016,R,REDACTED
251,Central Services,SupS Legal,Achieving for Children (AFC),E10295,Supplies & Services           ,Services                      ,DF14,Doctors and Other Fees                  ,786.48,31/03/2016,R,WEALDEN PSYCHOLOGY LTD        
252,Central Services,SupS Legal,Achieving for Children (AFC),E10295,Supplies & Services           ,Services                      ,DF11,Counsel's Fees                          ,"1,350.00",08/04/2016,R,REDACTED
253,Central Services,SupS Legal,Achieving for Children (AFC),E10295,Supplies & Services           ,Services                      ,DF14,Doctors and Other Fees                  ,585.00,12/04/2016,R,PARENTING PROFILES ASSOCIATES 
254,Central Services,SupS Legal,Achieving for Children (AFC),E10295,Supplies & Services           ,Services                      ,DF11,Counsel's Fees                          ,520.00,12/04/2016,R,REDACTED
255,Central Services,SupS Legal,Achieving for Children (AFC),E10295,Supplies & Services           ,Services                      ,DF11,Counsel's Fees                          ,700.00,14/04/2016,R,REDACTED
256,Central Services,SupS Legal,Achieving for Children (AFC),E10295,Supplies & Services           ,Services                      ,DF11,Counsel's Fees                          ,500.00,22/04/2016,R,REDACTED
257,Central Services,SupS Legal,Achieving for Children (AFC),E10295,Supplies & Services           ,Services                      ,DF14,Doctors and Other Fees                  ,616.00,25/04/2016,R,CONSULTING PSYCHOLOGISTS LTD  
258,Central Services,SupS IT,Social Care Info System (SCI)           ,E14357,Employees                     ,Direct Employee Expenses      ,AA17,Agency Staff & Casual Paymts            ,"2,807.04",20/03/2016,R,HAMPTON'S RESOURCING          
259,Central Services,SupS IT,Social Care Info System (SCI)           ,E14357,Employees                     ,Direct Employee Expenses      ,AA17,Agency Staff & Casual Paymts            ,"1,403.52",27/03/2016,R,HAMPTON'S RESOURCING          
260,Central Services,SupS IT,Social Care Info System (SCI)           ,E14357,Employees                     ,Direct Employee Expenses      ,AA17,Agency Staff & Casual Paymts            ,"1,122.82",03/04/2016,R,HAMPTON'S RESOURCING          
261,Central Services,SupS IT,Social Care Info System (SCI)           ,E14357,Employees                     ,Direct Employee Expenses      ,AA17,Agency Staff & Casual Paymts            ,"6,500.00",04/04/2016,R,REDACTED
262,Central Services,SupS IT,Social Care Info System (SCI)           ,E14357,Employees                     ,Direct Employee Expenses      ,AA17,Agency Staff & Casual Paymts            ,"1,575.00",07/04/2016,R,REDACTED
263,Central Services,SupS IT,Social Care Info System (SCI)           ,E14357,Employees                     ,Direct Employee Expenses      ,AA17,Agency Staff & Casual Paymts            ,"2,750.00",07/04/2016,R,REDACTED
264,Central Services,SupS IT,Social Care Info System (SCI)           ,E14357,Employees                     ,Direct Employee Expenses      ,AA17,Agency Staff & Casual Paymts            ,"1,403.52",10/04/2016,R,HAMPTON'S RESOURCING          
265,Central Services,SupS IT,Social Care Info System (SCI)           ,E14357,Employees                     ,Direct Employee Expenses      ,AA17,Agency Staff & Casual Paymts            ,"1,077.36",13/04/2016,R,REDACTED
266,Central Services,SupS IT,Social Care Info System (SCI)           ,E14357,Employees                     ,Direct Employee Expenses      ,AA17,Agency Staff & Casual Paymts            ,"6,464.16",13/04/2016,R,REDACTED
267,Central Services,SupS IT,Social Care Info System (SCI)           ,E14357,Employees                     ,Direct Employee Expenses      ,AA17,Agency Staff & Casual Paymts            ,"1,403.52",17/04/2016,R,HAMPTON'S RESOURCING          
268,Central Services,SupS IT,Social Care Info System (SCI)           ,E14357,Employees                     ,Direct Employee Expenses      ,AA17,Agency Staff & Casual Paymts            ,"3,500.00",18/04/2016,R,REDACTED
269,Central Services,SupS IT,BI IT Projects,E14360,Employees                     ,Direct Employee Expenses      ,AA17,Agency Staff & Casual Paymts            ,"2,240.00",06/04/2016,R,REDACTED
270,Central Services,SupS IT,BI IT Projects,E14360,Employees                     ,Direct Employee Expenses      ,AA17,Agency Staff & Casual Paymts            ,"4,480.00",13/04/2016,R,REDACTED
271,Central Services,SupS IT,BI IT Projects,E14360,Employees                     ,Direct Employee Expenses      ,AA17,Agency Staff & Casual Paymts            ,"2,800.00",20/04/2016,R,REDACTED
272,CS -Oth Operating Inc & Expend,SupS Codes No Longer Used,No longer used,E14361,Supplies & Services           ,Comms and Computing           ,DG05,Telephones - Gen-Creditors              ,"4,093.00",12/04/2016,R,AIRWAVE SOLUTIONS LTD         
273,CS -Oth Operating Inc & Expend,SupS Codes No Longer Used,No longer used,E14362,Transfer Payments             ,Housing Benefits              ,FA50,Burial and Cremation                    ,"1,555.00",19/02/2016,R,F.W. PAINE                    
274,CS -Oth Operating Inc & Expend,SupS Codes No Longer Used,No longer used,E14362,Transfer Payments             ,Housing Benefits              ,FA50,Burial and Cremation                    ,"1,272.00",14/04/2016,R,F.W. PAINE                    
275,CS -Oth Operating Inc & Expend,SupS Codes No Longer Used,No longer used,E14362,Transfer Payments             ,Housing Benefits              ,FA50,Burial and Cremation                    ,"1,272.00",19/04/2016,R,F.W. PAINE                    
276,CS -Oth Operating Inc & Expend,SupS Codes No Longer Used,No longer used,E14362,Transfer Payments             ,Housing Benefits              ,FA50,Burial and Cremation                    ,"1,272.00",26/04/2016,R,F.W. PAINE                    
277,Central Services,SupS IT,AD I&T,E14363,Supplies & Services           ,Comms and Computing           ,DG57,Licences Microsoft Select               ,"21,115.48",30/03/2016,R,CIVICA SERVICES LTD           
278,Central Services,SupS IT,Systems & Projects,E14366,Supplies & Services           ,Comms and Computing           ,DG02,Software Licences                       ,"47,250.00",21/03/2016,R,CIVICA UK LIMITED             
279,Central Services,SupS IT,Systems & Projects,E14366,Supplies & Services           ,Comms and Computing           ,DG61,Computer Servs Special                  ,"6,924.00",23/03/2016,R,PITNEY BOWES SOFTWARE EUROPE  
280,Central Services,SupS IT,Systems & Projects,E14366,Supplies & Services           ,Comms and Computing           ,DG61,Computer Servs Special                  ,"1,700.00",31/03/2016,R,ALIGNED ASSETS                
281,Central Services,SupS IT,Systems & Projects,E14366,Supplies & Services           ,Comms and Computing           ,DG07,Computer Software                       ,"1,160.00",31/03/2016,R,DOTTED EYES LTD               
282,Central Services,SupS IT,Systems & Projects,E14366,Employees                     ,Direct Employee Expenses      ,AA17,Agency Staff & Casual Paymts            ,"1,026.67",05/04/2016,R,REDACTED
283,Central Services,SupS IT,Systems & Projects,E14366,Supplies & Services           ,Comms and Computing           ,DG02,Software Licences                       ,"1,358.50",12/04/2016,R,HOMETRACK DATA SYSTEMS LTD    
284,Central Services,SupS IT,Systems & Projects,E14366,Supplies & Services           ,Comms and Computing           ,DG02,Software Licences                       ,"1,750.00",12/04/2016,R,ME LEARNING                   
285,Central Services,SupS IT,Operations & Telecomms,E14367,Supplies & Services           ,Comms and Computing           ,DG54,Corporate Telephones                    ,"1,105.74",29/12/2015,R,O2 (UK) LIMITED               
286,Central Services,SupS IT,Operations & Telecomms,E14367,Supplies & Services           ,Comms and Computing           ,DG15,Network Maintenance                     ,915.01,11/03/2016,R,MARQUEST LIMITED              
287,Central Services,SupS IT,Operations & Telecomms,E14367,Supplies & Services           ,Comms and Computing           ,DG15,Network Maintenance                     ,"2,226.30",11/03/2016,R,MARQUEST LIMITED              
288,Central Services,SupS IT,Operations & Telecomms,E14367,Supplies & Services           ,Comms and Computing           ,DG15,Network Maintenance                     ,"5,250.00",31/03/2016,R,CIVICA SERVICES LTD           
289,Central Services,SupS IT,Operations & Telecomms,E14367,Supplies & Services           ,Comms and Computing           ,DG15,Network Maintenance                     ,"9,307.20",31/03/2016,R,CIVICA SERVICES LTD           
290,Central Services,SupS IT,Operations & Telecomms,E14367,Supplies & Services           ,Comms and Computing           ,DG15,Network Maintenance                     ,"6,420.00",31/03/2016,R,TRUSTMARQUE SOLUTIONS         
291,Central Services,SupS IT,Operations & Telecomms,E14367,Supplies & Services           ,Comms and Computing           ,DG54,Corporate Telephones                    ,"2,200.00",01/04/2016,R,VIRGIN MEDIA PAYMENTS LTD     
292,Central Services,SupS IT,Operations & Telecomms,E14367,Supplies & Services           ,Comms and Computing           ,DG54,Corporate Telephones                    ,"1,943.72",02/04/2016,R,COLT TELECOMMUNICATIONS       
293,Central Services,SupS IT,Operations & Telecomms,E14367,Supplies & Services           ,Comms and Computing           ,DG15,Network Maintenance                     ,"2,024.48",07/04/2016,R,XGIS LTD                      
294,Central Services,SupS IT,Operations & Telecomms,E14367,Supplies & Services           ,Comms and Computing           ,DG15,Network Maintenance                     ,"2,912.18",07/04/2016,R,XGIS LTD                      
295,Central Services,SupS IT,Distributed Services,E14368,Supplies & Services           ,Comms and Computing           ,DG63,Software Licences - Data                ,525.00,09/03/2016,R,HORNBILL SERVICE MGMENT LTD   
296,Central Services,SupS IT,Distributed Services,E14368,Supplies & Services           ,Comms and Computing           ,DG63,Software Licences - Data                ,525.00,09/03/2016,R,HORNBILL SERVICE MGMENT LTD   
297,Central Services,SupS IT,Distributed Services,E14368,Supplies & Services           ,Comms and Computing           ,DG63,Software Licences - Data                ,875.00,09/03/2016,R,HORNBILL SERVICE MGMENT LTD   
298,Central Services,SupS IT,Distributed Services,E14368,Supplies & Services           ,Comms and Computing           ,DG63,Software Licences - Data                ,875.00,09/03/2016,R,HORNBILL SERVICE MGMENT LTD   
299,Central Services,SupS IT,Distributed Services,E14368,Supplies & Services           ,Comms and Computing           ,DG63,Software Licences - Data                ,"8,202.60",09/03/2016,R,HORNBILL SERVICE MGMENT LTD   
300,Central Services,SupS IT,Distributed Services,E14368,Employees                     ,Direct Employee Expenses      ,AA17,Agency Staff & Casual Paymts            ,"3,990.00",31/03/2016,R,REDACTED
301,Central Services,SupS IT,Distributed Services,E14368,Supplies & Services           ,Comms and Computing           ,DG63,Software Licences - Data                ,"33,064.05",31/03/2016,R,ORGANISED COMPUTER SYSTEMS LTD
302,Central Services,SupS IT,Distributed Services,E14368,Supplies & Services           ,Comms and Computing           ,DG63,Software Licences - Data                ,"18,185.43",10/04/2016,R,WELLDATA LTD                  
303,Central Services,SupS IT,Distributed Services,E14368,Supplies & Services           ,Comms and Computing           ,DG63,Software Licences - Data                ,684.00,13/04/2016,R,AMTEC COMPUTER CORPORATION LTD
304,Central Services,SupS IT,Corp Saving-IT Consolidation,E14370,Premises Related Expenditure  ,RepairsAlterations&MtceOfBldgs,BA01,DDM - General Building                  ,"16,963.50",29/02/2016,R,SALTASH ENTERPRISES LTD       
305,Central Services,SupS IT,Corp Saving-IT Consolidation,E14370,Premises Related Expenditure  ,RepairsAlterations&MtceOfBldgs,BA06,REPAIRS & MAINTENANCE GENERAL           ,"15,746.40",22/03/2016,R,FUTURE TECH                   
306,Central Services,SupS IT,Corp Saving-IT Consolidation,E14370,Premises Related Expenditure  ,RepairsAlterations&MtceOfBldgs,BA05,DDM - ELECTRICAL                        ,"1,142.73",31/03/2016,R,BILFINGER EUROPA FACILITY     
307,Central Services,SupS IT,Corp Saving-IT Consolidation,E14370,Premises Related Expenditure  ,RepairsAlterations&MtceOfBldgs,BA01,DDM - General Building                  ,"9,834.49",31/03/2016,R,COVERAD LUMINOS LIGHTING LTD  
308,Central Services,SupS IT,Corp Saving-IT Consolidation,E14370,Premises Related Expenditure  ,RepairsAlterations&MtceOfBldgs,BA01,DDM - General Building                  ,"1,258.60",05/04/2016,R,SALTASH ENTERPRISES LTD       
309,Central Services,SupS IT,Corp Saving-IT Consolidation,E14370,Premises Related Expenditure  ,RepairsAlterations&MtceOfBldgs,BA01,DDM - General Building                  ,"3,000.00",05/04/2016,R,SALTASH ENTERPRISES LTD       
310,Central Services,SupS IT,Corp Saving-IT Consolidation,E14370,Premises Related Expenditure  ,RepairsAlterations&MtceOfBldgs,BA01,DDM - General Building                  ,"23,250.00",05/04/2016,R,SALTASH ENTERPRISES LTD       
311,Central Services,SupS IT,Corp Saving-IT Consolidation,E14370,Premises Related Expenditure  ,RepairsAlterations&MtceOfBldgs,BA03,DDM - Mechanical                        ,"3,652.00",06/04/2016,R,FLETCHERS FACILITIES LIMITED  
312,Central Services,SupS IT,Corp Saving-IT Consolidation,E14370,Premises Related Expenditure  ,RepairsAlterations&MtceOfBldgs,BA01,DDM - General Building                  ,"5,344.00",22/04/2016,R,SALTASH ENTERPRISES LTD       
313,Central Services,SupS IT,No longer used,E14371,Employees                     ,Direct Employee Expenses      ,AA17,Agency Staff & Casual Paymts            ,"2,664.00",07/04/2016,R,HAYS SPECIALIST RECRUITM'T LTD
314,Central Services,SupS IT,No longer used,E14371,Employees                     ,Direct Employee Expenses      ,AA17,Agency Staff & Casual Paymts            ,"2,664.00",07/04/2016,R,HAYS SPECIALIST RECRUITM'T LTD
315,Central Services,SupS IT,No longer used,E14371,Employees                     ,Direct Employee Expenses      ,AA17,Agency Staff & Casual Paymts            ,"3,330.00",07/04/2016,R,HAYS SPECIALIST RECRUITM'T LTD
316,Central Services,SupS IT,No longer used,E14371,Employees                     ,Direct Employee Expenses      ,AA17,Agency Staff & Casual Paymts            ,"3,330.00",07/04/2016,R,HAYS SPECIALIST RECRUITM'T LTD
317,Central Services,SupS IT,No longer used,E14371,Employees                     ,Direct Employee Expenses      ,AA17,Agency Staff & Casual Paymts            ,"3,330.00",07/04/2016,R,HAYS SPECIALIST RECRUITM'T LTD
318,Central Services,SupS IT,No longer used,E14371,Employees                     ,Direct Employee Expenses      ,AA17,Agency Staff & Casual Paymts            ,"5,400.00",12/04/2016,R,REDACTED
319,Central Services,SupS IT,No longer used,E14371,Employees                     ,Direct Employee Expenses      ,AA17,Agency Staff & Casual Paymts            ,"7,200.00",12/04/2016,R,REDACTED
320,Cultural Env Reg&Plan Services,BC Regs & Other not split,HoS - PP&D                              ,G00111,Supplies & Services           ,Services                      ,DF96,LBM Legal Services                      ,"1,650.00",09/03/2016,R,REDACTED
321,Highways & Transport Services,Repair prin/oth rds not split,Walk Sheets,G00127,Third Party Payments          ,Private Contractors           ,EH56,Carriageway/Fway Maint                  ,"11,596.65",04/04/2016,R,FM CONWAY LTD                 
322,Highways & Transport Services,Repair prin/oth rds not split,Walk Sheets,G00127,Third Party Payments          ,Private Contractors           ,EH56,Carriageway/Fway Maint                  ,"15,272.39",04/04/2016,R,FM CONWAY LTD                 
323,Highways & Transport Services,Repair prin/oth rds not split,Walk Sheets,G00127,Third Party Payments          ,Private Contractors           ,EH56,Carriageway/Fway Maint                  ,"1,668.23",14/04/2016,R,FM CONWAY LTD                 
324,Highways & Transport Services,Repair prin/oth rds not split,Walk Sheets,G00127,Third Party Payments          ,Private Contractors           ,EH56,Carriageway/Fway Maint                  ,"2,500.00",14/04/2016,R,FM CONWAY LTD                 
325,Highways & Transport Services,Repair prin/oth rds not split,Walk Sheets,G00127,Third Party Payments          ,Private Contractors           ,EH56,Carriageway/Fway Maint                  ,"14,203.85",14/04/2016,R,FM CONWAY LTD                 
326,Highways & Transport Services,Repair prin/oth rds not split,Walk Sheets,G00127,Third Party Payments          ,Private Contractors           ,EH56,Carriageway/Fway Maint                  ,"17,795.01",14/04/2016,R,FM CONWAY LTD                 
327,Highways & Transport Services,Hwys/Rds (struct) not split,"Br., H'ways & Struct",G00128,Third Party Payments          ,Private Contractors           ,EH56,Carriageway/Fway Maint                  ,"30,000.00",31/03/2016,R,FM CONWAY LTD                 
328,Highways & Transport Services,Saf mtc prin/oth rds not split,Traffic Signs.,G00160,Third Party Payments          ,Private Contractors           ,EH02,Miscellaneous Hired Services            ,"2,233.77",30/03/2016,R,FM CONWAY LTD                 
329,Highways & Transport Services,0,TRAF & HWYS CAPITAL PROJECTS,G00210,Supplies & Services           ,Comms and Computing           ,DG61,Computer Servs Special                  ,"8,820.00",24/03/2016,R,EXCITECH LIMITED              
330,Highways & Transport Services,Transport Plg/Policy/Strategy,CPZ implementation & Consultat,G00211,Third Party Payments          ,Private Contractors           ,EH56,Carriageway/Fway Maint                  ,"1,484.45",14/04/2016,R,FM CONWAY LTD                 
331,Highways & Transport Services,Transport Plg/Policy/Strategy,CPZ implementation & Consultat,G00211,Third Party Payments          ,Private Contractors           ,EH56,Carriageway/Fway Maint                  ,"1,600.00",14/04/2016,R,FM CONWAY LTD                 
332,Highways & Transport Services,Transport Plg/Policy/Strategy,CPZ implementation & Consultat,G00211,Third Party Payments          ,Private Contractors           ,EH56,Carriageway/Fway Maint                  ,"4,000.00",14/04/2016,R,FM CONWAY LTD                 
333,Highways & Transport Services,Street Lighting.,Street Lighting .,G00260,Third Party Payments          ,Private Contractors           ,EH01,Miscellaneous Agency Services           ,600.00,25/11/2015,R,BARKLANDS TREE SPECIALISTS    
334,Highways & Transport Services,Street Lighting.,Street Lighting .,G00260,Third Party Payments          ,Private Contractors           ,EH01,Miscellaneous Agency Services           ,526.00,17/03/2016,R,UK POWER NETWORKS (OPERATIONS)
335,Highways & Transport Services,Street Lighting.,Street Lighting .,G00260,Third Party Payments          ,Private Contractors           ,EH01,Miscellaneous Agency Services           ,786.00,17/03/2016,R,UK POWER NETWORKS (OPERATIONS)
336,Highways & Transport Services,Street Lighting.,Street Lighting .,G00260,Third Party Payments          ,Private Contractors           ,EH01,Miscellaneous Agency Services           ,"1,124.00",17/03/2016,R,UK POWER NETWORKS (OPERATIONS)
337,Highways & Transport Services,Street Lighting.,Street Lighting .,G00260,Third Party Payments          ,Private Contractors           ,EH01,Miscellaneous Agency Services           ,"2,031.00",17/03/2016,R,UK POWER NETWORKS (OPERATIONS)
338,Highways & Transport Services,Street Lighting.,Street Lighting .,G00260,Third Party Payments          ,Private Contractors           ,EH01,Miscellaneous Agency Services           ,532.10,31/03/2016,R,KIER INTEGRATED SERVICES LTD  
339,Highways & Transport Services,Street Lighting.,Street Lighting .,G00260,Third Party Payments          ,Private Contractors           ,EH01,Miscellaneous Agency Services           ,679.25,31/03/2016,R,KIER INTEGRATED SERVICES LTD  
340,Highways & Transport Services,Street Lighting.,Street Lighting .,G00260,Third Party Payments          ,Private Contractors           ,EH01,Miscellaneous Agency Services           ,905.85,31/03/2016,R,KIER INTEGRATED SERVICES LTD  
341,Highways & Transport Services,Street Lighting.,Street Lighting .,G00260,Third Party Payments          ,Private Contractors           ,EH01,Miscellaneous Agency Services           ,"1,524.80",31/03/2016,R,KIER INTEGRATED SERVICES LTD  
342,Highways & Transport Services,Street Lighting.,Street Lighting .,G00260,Premises Related Expenditure  ,Energy Costs                  ,BB02,Electricity                             ,"50,960.56",04/04/2016,R,SCOTTISH POWER                
343,Highways & Transport Services,Off-street parking,Car Parks (Unloc),G00291,Third Party Payments          ,Private Contractors           ,EH02,Miscellaneous Hired Services            ,"3,666.00",31/03/2016,R,COBALT TELEPHONE TECHNOLOGIES 
344,Highways & Transport Services,Off-street parking,Coombe Lane,G00292,Premises Related Expenditure  ,Rents                         ,BC01,Miscellaneous Rents                     ,"9,562.50",15/10/2015,R,CAPITA PROP'TY & INFRASTRUCT'R
345,Highways & Transport Services,Off-street parking,"St. Mks Rd, Multi Sty",G00308,Premises Related Expenditure  ,Rents                         ,BC01,Miscellaneous Rents                     ,"3,973.02",22/03/2016,R,KEMSLEY LLP                   
346,Highways & Transport Services,On-street parking,On Street Parking.,G00311,Premises Related Expenditure  ,RepairsAlterations&MtceOfBldgs,BA06,REPAIRS & MAINTENANCE GENERAL           ,"3,576.96",25/02/2016,R,FACTOR 21                     
347,Highways & Transport Services,Road Safety Education,TFL CAPT SPEND (REV),G00326,Third Party Payments          ,Private Contractors           ,EH10,Contract Payments                       ,"16,270.11",08/03/2016,R,CYCLE CONFIDENT               
348,Highways & Transport Services,Road Safety Education,TFL CAPT SPEND (REV),G00326,Third Party Payments          ,Private Contractors           ,EH10,Contract Payments                       ,"18,500.00",31/03/2016,R,CYCLE CONFIDENT               
349,Highways & Transport Services,Road Safety Education,Bikeability                             ,G00327,Supplies & Services           ,Equip Furniture/Materials     ,DA09,Equip-Purchases                         ,"4,000.00",01/03/2016,R,CYCLE CONFIDENT               
350,Highways & Transport Services,Parking Enforcement not split,Civil Enforcement Officers,G00330,Supplies & Services           ,Equip Furniture/Materials     ,DA01,Equipment - R & M                       ,"20,194.00",05/04/2016,R,TYCO FIRE & INTEGR'TD SOL (UK 
351,Highways & Transport Services,Parking Enforcement not split,Operational Running Costs,G00331,Supplies & Services           ,Services                      ,DF95,Services from Provider                  ,"17,156.89",25/02/2016,R,REDACTED
352,Highways & Transport Services,Parking Enforcement not split,Operational Running Costs,G00331,Supplies & Services           ,Equip Furniture/Materials     ,DA09,Equip-Purchases                         ,"3,870.00",21/03/2016,R,PARKEON LTD                   
353,Highways & Transport Services,Parking Enforcement not split,Operational Running Costs,G00331,Third Party Payments          ,Private Contractors           ,EH02,Miscellaneous Hired Services            ,950.00,05/04/2016,R,MERTON AND SUTTON MEDIATION   
354,Highways & Transport Services,Parking Enforcement not split,Operational Running Costs,G00331,Supplies & Services           ,Services                      ,DF95,Services from Provider                  ,"15,529.21",05/04/2016,R,REDACTED
355,Highways & Transport Services,Parking Enforcement not split,Operational Running Costs,G00331,Third Party Payments          ,Other Agencies                ,EJ58,Parking Cttee for London                ,"40,000.00",15/04/2016,R,HMCTS                         
356,Highways & Transport Services,Parking Enforcement not split,Operational Running Costs,G00331,Supplies & Services           ,Prntng Stnry Gen Off Exp      ,DE01,External Printing                       ,"1,762.00",15/04/2016,R,LIBERTY PRINTERS (AR RF REDDIN
357,Highways & Transport Services,Parking Enforcement not split,Operational Running Costs,G00331,Supplies & Services           ,Prntng Stnry Gen Off Exp      ,DE01,External Printing                       ,"1,916.40",16/04/2016,R,ORION SECURITY PRINT LIMITED  
358,Highways & Transport Services,Parking Enforcement not split,Operational Running Costs,G00331,Supplies & Services           ,Equip Furniture/Materials     ,DA09,Equip-Purchases                         ,"1,000.00",22/04/2016,R,PARKEON LTD                   
359,Highways & Transport Services,Hwys/Rds (struct) not split,Footpath Crossings.,G00390,Third Party Payments          ,Private Contractors           ,EH56,Carriageway/Fway Maint                  ,"18,235.43",04/04/2016,R,FM CONWAY LTD                 
360,Cultural Env Reg&Plan Services,Street Clean - Not highways,Street Cleansing (Inc. Gully),G00492,Premises Related Expenditure  ,Rents                         ,BC01,Miscellaneous Rents                     ,791.18,22/03/2016,R,CIRCLE HOUSING MERTON PRIORY  
361,Cultural Env Reg&Plan Services,Street Clean - Not highways,Street Cleansing (Inc. Gully),G00492,Supplies & Services           ,Equip Furniture/Materials     ,DA03,Hire of Equipment                       ,"1,390.00",31/03/2016,R,COMCIR RADIO COMMUNICATIONS LT
362,Cultural Env Reg&Plan Services,Street Clean - Not highways,Street Cleansing (Inc. Gully),G00492,Supplies & Services           ,Equip Furniture/Materials     ,DA01,Equipment - R & M                       ,569.10,31/03/2016,R,N A BROWN LTD                 
363,Cultural Env Reg&Plan Services,Street Clean - Not highways,Street Cleansing (Inc. Gully),G00492,Supplies & Services           ,Catering                      ,DB50,Refreshments                            ,"2,177.50",21/04/2016,R,FACILITIES MANAGEMENT CATERING
364,Cultural Env Reg&Plan Services,Waste Disposal (not separated),Waste Disposal .,G00550,Third Party Payments          ,Private Contractors           ,EH04,C1 Viridor SLWP Landfill Contract       ,"386,895.87",30/03/2016,R,KINGSTON CORPORATION          
365,Cultural Env Reg&Plan Services,Waste Disposal (not separated),Waste Disposal .,G00550,Third Party Payments          ,Private Contractors           ,EH66,Clinical Waste Disposal                 ,723.79,31/03/2016,R,S.GRUNDON (WASTE) LTD.        
366,Cultural Env Reg&Plan Services,Civic Amenity Sites,Garth Road Site,G00580,Third Party Payments          ,Private Contractors           ,EH04,C1 Viridor SLWP Landfill Contract       ,"16,026.40",30/03/2016,R,KINGSTON CORPORATION          
367,Cultural Env Reg&Plan Services,Civic Amenity Sites,Garth Road Site,G00580,Third Party Payments          ,Private Contractors           ,EH18,SLWP C3 Food Waste Gate Fees            ,"8,334.79",30/03/2016,R,KINGSTON CORPORATION          
368,Cultural Env Reg&Plan Services,Civic Amenity Sites,Garth Road Site,G00580,Third Party Payments          ,Private Contractors           ,EH61,Green Waste Disposal                    ,"1,937.32",30/03/2016,R,KINGSTON CORPORATION          
369,Cultural Env Reg&Plan Services,Public Health,Dog Control.,G00620,Third Party Payments          ,Private Contractors           ,EH02,Miscellaneous Hired Services            ,"3,014.50",15/04/2016,R,NOAH'S ARK ENVIRONMENTAL SERV.
370,Cultural Env Reg&Plan Services,Recycling (Collection),Recycling Activities,G00640,Third Party Payments          ,Private Contractors           ,EH03,C3 DRY RECYCLING GATE FEE               ,"35,772.69",30/03/2016,R,KINGSTON CORPORATION          
371,Cultural Env Reg&Plan Services,Recycling (Collection),Recycling Activities,G00640,Third Party Payments          ,Private Contractors           ,EH08,SLWP C1 Haulage Dry Recyclable          ,770.00,30/03/2016,R,KINGSTON CORPORATION          
372,Cultural Env Reg&Plan Services,Recycling (Collection),Recycling Activities,G00640,Third Party Payments          ,Private Contractors           ,EH08,SLWP C1 Haulage Dry Recyclable          ,"29,781.24",30/03/2016,R,KINGSTON CORPORATION          
373,Cultural Env Reg&Plan Services,Recycling (Collection),Recycling Activities,G00640,Third Party Payments          ,Private Contractors           ,EH94,Waste Disposal - Alt. Site              ,"6,483.52",30/03/2016,R,KINGSTON CORPORATION          
374,Cultural Env Reg&Plan Services,Recycling (Collection),Recycling Activities,G00640,Supplies & Services           ,Equip Furniture/Materials     ,DA01,Equipment - R & M                       ,"1,247.20",12/04/2016,R,R.J.H.WELDING                 
375,Cultural Env Reg&Plan Services,Recycling (Collection),Recycling Activities,G00640,Supplies & Services           ,Equip Furniture/Materials     ,DA31,Waste Sacks & Bags                      ,"2,915.20",13/04/2016,R,IMPERIAL POLYTHENE PRODUCTS LT
376,Cultural Env Reg&Plan Services,Recycling (Collection),Recycling Activities,G00640,Supplies & Services           ,Equip Furniture/Materials     ,DA31,Waste Sacks & Bags                      ,"3,319.68",13/04/2016,R,IMPERIAL POLYTHENE PRODUCTS LT
377,Cultural Env Reg&Plan Services,Recycling (Collection),Recycling Activities,G00640,Supplies & Services           ,Equip Furniture/Materials     ,DA09,Equip-Purchases                         ,"1,518.30",18/04/2016,R,PJ HARVEY & CO LTD            
378,Cultural Env Reg&Plan Services,Recycling (Collection),BARROW AND BINS REPLACEMENT,G00641,Supplies & Services           ,Equip Furniture/Materials     ,DA54,GREEN KERBSIDE RECYCLING BOXES          ,"4,989.60",05/04/2016,R,STRAIGHT MANUFACTURING LTD    
379,Cultural Env Reg&Plan Services,Recycling (Collection),Garden Waste Service,G00647,Third Party Payments          ,Private Contractors           ,EH61,Green Waste Disposal                    ,"4,476.17",30/03/2016,R,KINGSTON CORPORATION          
380,Cultural Env Reg&Plan Services,Recycling (Collection),Food Waste Service,G00648,Third Party Payments          ,Private Contractors           ,EH19,SLWP C3 FOOD WASTE HAULAGE              ,"3,050.61",30/03/2016,R,KINGSTON CORPORATION          
381,Cultural Env Reg&Plan Services,Recycling (Collection),Food Waste Service,G00648,Third Party Payments          ,Private Contractors           ,EH19,SLWP C3 FOOD WASTE HAULAGE              ,"3,259.20",30/03/2016,R,KINGSTON CORPORATION          
382,Cultural Env Reg&Plan Services,Trade Waste Collection,Commercial Waste,G00663,Third Party Payments          ,Private Contractors           ,EH04,C1 Viridor SLWP Landfill Contract       ,"29,160.32",30/03/2016,R,KINGSTON CORPORATION          
383,Cultural Env Reg&Plan Services,Trade Waste Collection,Commercial Waste,G00663,Third Party Payments          ,Private Contractors           ,EH08,SLWP C1 Haulage Dry Recyclable          ,"1,502.07",30/03/2016,R,KINGSTON CORPORATION          
384,Cultural Env Reg&Plan Services,Street Clean - Not highways,Waste Enforcement,G00680,Third Party Payments          ,Private Contractors           ,EH02,Miscellaneous Hired Services            ,"14,577.39",31/03/2016,R,KINGDOM SECURITY              
385,Cultural Env Reg&Plan Services,Street Clean - Not highways,Waste Enforcement,G00680,Supplies & Services           ,Comms and Computing           ,DG02,Software Licences                       ,"1,003.93",15/04/2016,R,IMPERIAL CIVIL ENFORC.SOLUT.  
386,Cultural Env Reg&Plan Services,Inspect/Enforce (Consumer P),Trading Standards,G00690,Supplies & Services           ,Grants and Subscriptions      ,DJ04,Subscriptions                           ,"1,000.00",01/04/2016,R,TAMESIDE MBC                  
387,Cultural Env Reg&Plan Services,Food Safety,Health & Safety,G00697,Supplies & Services           ,Grants and Subscriptions      ,DJ04,Subscriptions                           ,"1,832.00",07/03/2016,R,LEXIS NEXIS                   
388,Cultural Env Reg&Plan Services,Food Safety,Health & Safety,G00697,Supplies & Services           ,Equip Furniture/Materials     ,DA58,Education Materials                     ,725.40,18/04/2016,R,CHARTERED INST.OF ENVIR.HEALTH
389,Cultural Env Reg&Plan Services,Mortuaries,Mortuary,G00700,Third Party Payments          ,Private Contractors           ,EH01,Miscellaneous Agency Services           ,"6,876.00",01/04/2016,R,ST GEORGES UNI HOSP NHS F'DN T
390,Cultural Env Reg&Plan Services,Mortuaries,Mortuary,G00700,Third Party Payments          ,Private Contractors           ,EH01,Miscellaneous Agency Services           ,"17,041.00",01/04/2016,R,ST GEORGES UNI HOSP NHS F'DN T
391,Cultural Env Reg&Plan Services,Licencing,LICENSING TEAM,G00740,Employees                     ,Indirect Employee Expenses    ,AB57,EXTERNAL TRAINING COSTS                 ,"1,250.00",14/04/2016,R,REDACTED
392,Cultural Env Reg&Plan Services,Mgt & Support (Env),Waste Management,G00900,Supplies & Services           ,Grants and Subscriptions      ,DJ04,Subscriptions                           ,"3,422.00",01/04/2016,R,APSE                          
393,Cultural Env Reg&Plan Services,Mgt & Support (Env),SLWP (rechargeable)                     ,G00905,Supplies & Services           ,Services                      ,DF03,Consultants                             ,"2,902.50",31/03/2016,R,BRAND NARRATIVE LIMITED       
394,Cultural Env Reg&Plan Services,Community Develop't (Plg),N.E.Mitcham Community Asso,G18250,Supplies & Services           ,Grants and Subscriptions      ,DJ01,Grants                                  ,"18,640.00",01/04/2016,R,NORTH EAST MITCHAM COMM ASSOC 
395,Cultural Env Reg&Plan Services,Community Develop't (Plg),S Mitcham Community Asso,G18253,Supplies & Services           ,Grants and Subscriptions      ,DJ01,Grants                                  ,"19,320.00",01/04/2016,R,SOUTH MITCHAM COMMUNITY ASS   
396,Cultural Env Reg&Plan Services,Community Develop't (Plg),S Wimbledon Community Asso,G18254,Supplies & Services           ,Grants and Subscriptions      ,DJ01,Grants                                  ,"2,735.00",01/04/2016,R,SOUTH WIMBLEDON COMMUNITY ASSO
397,Cultural Env Reg&Plan Services,Community Develop't (Plg),St. Marks Family Cntr,G18257,Supplies & Services           ,Grants and Subscriptions      ,DJ01,Grants                                  ,"27,050.00",01/04/2016,R,ST MARKS FAMILY CENTRE        
398,Cultural Env Reg&Plan Services,Museums & Galleries,Wandle Industrial Museum,G19289,Supplies & Services           ,Grants and Subscriptions      ,DJ01,Grants                                  ,"1,975.00",01/04/2016,R,THE WANDLE INDUSTRIAL MUSEUM  
399,Central Services,Grants - Voluntary Groups,Vestry Hall,G19290,Employees                     ,Direct Employee Expenses      ,AA17,Agency Staff & Casual Paymts            ,"1,089.90",29/02/2016,R,REDACTED
400,Central Services,Grants - Voluntary Groups,Vestry Hall,G19290,Employees                     ,Direct Employee Expenses      ,AA17,Agency Staff & Casual Paymts            ,"2,000.00",10/03/2016,R,REDACTED
401,Central Services,Grants - Voluntary Groups,Vestry Hall,G19290,Employees                     ,Direct Employee Expenses      ,AA17,Agency Staff & Casual Paymts            ,"3,347.61",10/03/2016,R,REDACTED
402,Central Services,Grants - Voluntary Groups,Vestry Hall,G19290,Premises Related Expenditure  ,Energy Costs                  ,BB03,Gas (incl. Butane)                      ,682.84,05/04/2016,R,GAZPROM MARKETING&TRADING LTD 
403,Central Services,Grants - Voluntary Groups,Vestry Hall,G19290,Premises Related Expenditure  ,Water Services                ,BE01,Use of Water (Metered)                  ,902.66,05/04/2016,R,THAMES WATER UTILITIES LTD    
404,Central Services,Grants - Voluntary Groups,Vestry Hall,G40314,Supplies & Services           ,Grants and Subscriptions      ,DJ01,Grants                                  ,"6,170.00",01/04/2016,R,COLLIERS WOOD COMMUNITY ASSOC 
405,Highways & Transport Services,Safe routes inc schl x patrol,School & Road Safety TFL                ,H01083,Supplies & Services           ,Equip Furniture/Materials     ,DA04,Materials                               ,627.00,06/04/2016,R,BLAKES DRIVER TRAINING        
406,Cultural Env Reg&Plan Services,BC Regs & Other not split,Building Control,H01100,Supplies & Services           ,Services                      ,DF57,Consulting Engineers Fees               ,"2,282.01",04/03/2016,R,LABC                          
407,Cultural Env Reg&Plan Services,DC Advice Apps & Reg not split,Development Control,H01130,Supplies & Services           ,Services                      ,DF11,Counsel's Fees                          ,"2,640.00",01/12/2014,R,3S INTERIORS                  
408,Cultural Env Reg&Plan Services,DC Advice Apps & Reg not split,Development Control,H01130,Supplies & Services           ,Services                      ,DF02,Misc Advertising/Publicity              ,600.00,27/03/2016,R,NEWSQUEST MEDIA GROUP LTD     
409,Cultural Env Reg&Plan Services,Planning Policy not split,Spatial Policy,H01173,Supplies & Services           ,Services                      ,DF95,Services from Provider                  ,"3,500.00",17/12/2015,R,TROWERS & HAMLINS             
410,Cultural Env Reg&Plan Services,Planning Policy not split,Spatial Policy,H01173,Supplies & Services           ,Services                      ,DF03,Consultants                             ,"1,300.00",13/04/2016,R,URBAN ENTERPRISE NETWORK      
411,Cultural Env Reg&Plan Services,Planning Policy not split,Spatial Policy,H01173,Supplies & Services           ,Services                      ,DF03,Consultants                             ,"1,462.50",15/04/2016,R,URBAN ENTERPRISE NETWORK      
412,Cultural Env Reg&Plan Services,Planning Policy not split,Spatial Policy,H01173,Supplies & Services           ,Services                      ,DF03,Consultants                             ,"1,300.00",25/04/2016,R,URBAN ENTERPRISE NETWORK      
413,Cultural Env Reg&Plan Services,Economic Dev (Not separated),Capt Ambition-Suburban Opprt Z,H01231,Supplies & Services           ,Grants and Subscriptions      ,DJ54,Contributions                           ,"5,000.00",30/03/2016,R,VAIONI GROUP LTD              
414,Cultural Env Reg&Plan Services,Economic Dev (Not separated),Capt Ambition-Suburban Opprt Z,H01231,Supplies & Services           ,Grants and Subscriptions      ,DJ54,Contributions                           ,"4,085.00",15/04/2016,R,BUTLER DSIGNS LTD             
415,CS -Oth Operating Inc & Expend,T/A Vehicle Maintenance etc,Transport-Contract Hire,J01374,Transport Related Expenditure ,Contract Hire and Op Leasing  ,CC64,CSF - SEN CABS (RK02)                   ,925.00,30/09/2015,R,KENDALL CARS                  
416,CS -Oth Operating Inc & Expend,T/A Vehicle Maintenance etc,Transport-Contract Hire,J01374,Transport Related Expenditure ,Contract Hire and Op Leasing  ,CC64,CSF - SEN CABS (RK02)                   ,"1,907.50",20/03/2016,R,SILVERBURN FINANCE (UK) LTD   
417,CS -Oth Operating Inc & Expend,T/A Vehicle Maintenance etc,Transport-Contract Hire,J01374,Transport Related Expenditure ,Contract Hire and Op Leasing  ,CC53,Plant Hire for MRCS                     ,610.00,22/03/2016,R,CALVERTON FINANCE LTD         
418,CS -Oth Operating Inc & Expend,T/A Vehicle Maintenance etc,Transport-Contract Hire,J01374,Transport Related Expenditure ,Contract Hire and Op Leasing  ,CC64,CSF - SEN CABS (RK02)                   ,650.00,24/03/2016,R,SILVERBURN FINANCE (UK) LTD   
419,CS -Oth Operating Inc & Expend,T/A Vehicle Maintenance etc,Transport-Contract Hire,J01374,Transport Related Expenditure ,Contract Hire and Op Leasing  ,CC64,CSF - SEN CABS (RK02)                   ,"1,044.00",24/03/2016,R,SILVERBURN FINANCE (UK) LTD   
420,CS -Oth Operating Inc & Expend,T/A Vehicle Maintenance etc,Transport-Contract Hire,J01374,Transport Related Expenditure ,Contract Hire and Op Leasing  ,CC64,CSF - SEN CABS (RK02)                   ,"1,423.80",24/03/2016,R,SILVERBURN FINANCE (UK) LTD   
421,CS -Oth Operating Inc & Expend,T/A Vehicle Maintenance etc,Transport-Contract Hire,J01374,Transport Related Expenditure ,Contract Hire and Op Leasing  ,CC64,CSF - SEN CABS (RK02)                   ,"1,512.00",24/03/2016,R,SILVERBURN FINANCE (UK) LTD   
422,CS -Oth Operating Inc & Expend,T/A Vehicle Maintenance etc,Transport-Contract Hire,J01374,Transport Related Expenditure ,Contract Hire and Op Leasing  ,CC64,CSF - SEN CABS (RK02)                   ,"1,512.00",24/03/2016,R,SILVERBURN FINANCE (UK) LTD   
423,CS -Oth Operating Inc & Expend,T/A Vehicle Maintenance etc,Transport-Contract Hire,J01374,Transport Related Expenditure ,Contract Hire and Op Leasing  ,CC64,CSF - SEN CABS (RK02)                   ,"1,548.00",24/03/2016,R,SILVERBURN FINANCE (UK) LTD   
424,CS -Oth Operating Inc & Expend,T/A Vehicle Maintenance etc,Transport-Contract Hire,J01374,Transport Related Expenditure ,Contract Hire and Op Leasing  ,CC64,CSF - SEN CABS (RK02)                   ,"1,711.00",24/03/2016,R,SILVERBURN FINANCE (UK) LTD   
425,CS -Oth Operating Inc & Expend,T/A Vehicle Maintenance etc,Transport-Contract Hire,J01374,Transport Related Expenditure ,Contract Hire and Op Leasing  ,CC64,CSF - SEN CABS (RK02)                   ,"1,728.00",24/03/2016,R,SILVERBURN FINANCE (UK) LTD   
426,CS -Oth Operating Inc & Expend,T/A Vehicle Maintenance etc,Transport-Contract Hire,J01374,Transport Related Expenditure ,Contract Hire and Op Leasing  ,CC64,CSF - SEN CABS (RK02)                   ,"1,890.00",24/03/2016,R,SILVERBURN FINANCE (UK) LTD   
427,CS -Oth Operating Inc & Expend,T/A Vehicle Maintenance etc,Transport-Contract Hire,J01374,Transport Related Expenditure ,Contract Hire and Op Leasing  ,CC64,CSF - SEN CABS (RK02)                   ,"2,034.00",24/03/2016,R,SILVERBURN FINANCE (UK) LTD   
428,CS -Oth Operating Inc & Expend,T/A Vehicle Maintenance etc,Transport-Contract Hire,J01374,Transport Related Expenditure ,Contract Hire and Op Leasing  ,CC64,CSF - SEN CABS (RK02)                   ,"2,250.00",24/03/2016,R,SILVERBURN FINANCE (UK) LTD   
429,CS -Oth Operating Inc & Expend,T/A Vehicle Maintenance etc,Transport-Contract Hire,J01374,Transport Related Expenditure ,Contract Hire and Op Leasing  ,CC64,CSF - SEN CABS (RK02)                   ,"2,295.00",24/03/2016,R,SILVERBURN FINANCE (UK) LTD   
430,CS -Oth Operating Inc & Expend,T/A Vehicle Maintenance etc,Transport-Contract Hire,J01374,Transport Related Expenditure ,Contract Hire and Op Leasing  ,CC64,CSF - SEN CABS (RK02)                   ,"2,295.00",24/03/2016,R,SILVERBURN FINANCE (UK) LTD   
431,CS -Oth Operating Inc & Expend,T/A Vehicle Maintenance etc,Transport-Contract Hire,J01374,Transport Related Expenditure ,Contract Hire and Op Leasing  ,CC64,CSF - SEN CABS (RK02)                   ,"2,340.00",24/03/2016,R,SILVERBURN FINANCE (UK) LTD   
432,CS -Oth Operating Inc & Expend,T/A Vehicle Maintenance etc,Transport-Contract Hire,J01374,Transport Related Expenditure ,Contract Hire and Op Leasing  ,CC64,CSF - SEN CABS (RK02)                   ,"2,484.00",24/03/2016,R,SILVERBURN FINANCE (UK) LTD   
433,CS -Oth Operating Inc & Expend,T/A Vehicle Maintenance etc,Transport-Contract Hire,J01374,Transport Related Expenditure ,Contract Hire and Op Leasing  ,CC64,CSF - SEN CABS (RK02)                   ,"2,484.00",28/03/2016,R,WALLINGTON CARS & COURIERS LTD
434,CS -Oth Operating Inc & Expend,T/A Vehicle Maintenance etc,Transport-Contract Hire,J01374,Transport Related Expenditure ,Contract Hire and Op Leasing  ,CC53,Plant Hire for MRCS                     ,610.00,29/03/2016,R,CALVERTON FINANCE LTD         
435,CS -Oth Operating Inc & Expend,T/A Vehicle Maintenance etc,Transport-Contract Hire,J01374,Transport Related Expenditure ,Direct Transport Costs        ,CA01,Petrol Derv & Oil                       ,"28,876.65",29/03/2016,R,EMO OILS LTD                  
436,CS -Oth Operating Inc & Expend,T/A Vehicle Maintenance etc,Transport-Contract Hire,J01374,Transport Related Expenditure ,Contract Hire and Op Leasing  ,CC53,Plant Hire for MRCS                     ,745.00,29/03/2016,R,GULLIVER'S TRUCK HIRE LTD.    
437,CS -Oth Operating Inc & Expend,T/A Vehicle Maintenance etc,Transport-Contract Hire,J01374,Transport Related Expenditure ,Contract Hire and Op Leasing  ,CC53,Plant Hire for MRCS                     ,875.00,29/03/2016,R,GULLIVER'S TRUCK HIRE LTD.    
438,CS -Oth Operating Inc & Expend,T/A Vehicle Maintenance etc,Transport-Contract Hire,J01374,Transport Related Expenditure ,Contract Hire and Op Leasing  ,CC64,CSF - SEN CABS (RK02)                   ,555.00,30/03/2016,R,KENDALL CARS                  
439,CS -Oth Operating Inc & Expend,T/A Vehicle Maintenance etc,Transport-Contract Hire,J01374,Transport Related Expenditure ,Contract Hire and Op Leasing  ,CC64,CSF - SEN CABS (RK02)                   ,"1,728.00",30/03/2016,R,KENDALL CARS                  
440,CS -Oth Operating Inc & Expend,T/A Vehicle Maintenance etc,Transport-Contract Hire,J01374,Transport Related Expenditure ,Contract Hire and Op Leasing  ,CC64,CSF - SEN CABS (RK02)                   ,"1,368.00",31/03/2016,R,A STAR TRANSPORT LIMITED      
441,CS -Oth Operating Inc & Expend,T/A Vehicle Maintenance etc,Transport-Contract Hire,J01374,Transport Related Expenditure ,Contract Hire and Op Leasing  ,CC64,CSF - SEN CABS (RK02)                   ,"1,872.00",31/03/2016,R,A STAR TRANSPORT LIMITED      
442,CS -Oth Operating Inc & Expend,T/A Vehicle Maintenance etc,Transport-Contract Hire,J01374,Transport Related Expenditure ,Contract Hire and Op Leasing  ,CC67,C&H - ADULTS CABS (RK08)                ,"1,065.00",31/03/2016,R,A STAR TRANSPORT LIMITED      
443,CS -Oth Operating Inc & Expend,T/A Vehicle Maintenance etc,Transport-Contract Hire,J01374,Transport Related Expenditure ,Contract Hire and Op Leasing  ,CC67,C&H - ADULTS CABS (RK08)                ,"1,344.00",31/03/2016,R,A STAR TRANSPORT LIMITED      
444,CS -Oth Operating Inc & Expend,T/A Vehicle Maintenance etc,Transport-Contract Hire,J01374,Transport Related Expenditure ,Contract Hire and Op Leasing  ,CC53,Plant Hire for MRCS                     ,"1,008.00",31/03/2016,R,B&T PLANT HIRE LTD            
445,CS -Oth Operating Inc & Expend,T/A Vehicle Maintenance etc,Transport-Contract Hire,J01374,Transport Related Expenditure ,Contract Hire and Op Leasing  ,CC64,CSF - SEN CABS (RK02)                   ,"1,056.00",31/03/2016,R,BARCLAYS ASSET & SALES FINANCE
446,CS -Oth Operating Inc & Expend,T/A Vehicle Maintenance etc,Transport-Contract Hire,J01374,Transport Related Expenditure ,Contract Hire and Op Leasing  ,CC64,CSF - SEN CABS (RK02)                   ,"1,434.00",31/03/2016,R,BARCLAYS ASSET & SALES FINANCE
447,CS -Oth Operating Inc & Expend,T/A Vehicle Maintenance etc,Transport-Contract Hire,J01374,Transport Related Expenditure ,Contract Hire and Op Leasing  ,CC64,CSF - SEN CABS (RK02)                   ,"1,512.00",31/03/2016,R,BARCLAYS ASSET & SALES FINANCE
448,CS -Oth Operating Inc & Expend,T/A Vehicle Maintenance etc,Transport-Contract Hire,J01374,Transport Related Expenditure ,Contract Hire and Op Leasing  ,CC64,CSF - SEN CABS (RK02)                   ,"1,728.00",31/03/2016,R,BARCLAYS ASSET & SALES FINANCE
449,CS -Oth Operating Inc & Expend,T/A Vehicle Maintenance etc,Transport-Contract Hire,J01374,Transport Related Expenditure ,Contract Hire and Op Leasing  ,CC64,CSF - SEN CABS (RK02)                   ,"1,750.00",31/03/2016,R,BARCLAYS ASSET & SALES FINANCE
450,CS -Oth Operating Inc & Expend,T/A Vehicle Maintenance etc,Transport-Contract Hire,J01374,Transport Related Expenditure ,Contract Hire and Op Leasing  ,CC64,CSF - SEN CABS (RK02)                   ,"2,700.00",31/03/2016,R,BARCLAYS ASSET & SALES FINANCE
451,CS -Oth Operating Inc & Expend,T/A Vehicle Maintenance etc,Transport-Contract Hire,J01374,Transport Related Expenditure ,Contract Hire and Op Leasing  ,CC64,CSF - SEN CABS (RK02)                   ,"2,736.00",31/03/2016,R,BARCLAYS ASSET & SALES FINANCE
452,CS -Oth Operating Inc & Expend,T/A Vehicle Maintenance etc,Transport-Contract Hire,J01374,Transport Related Expenditure ,Contract Hire and Op Leasing  ,CC64,CSF - SEN CABS (RK02)                   ,"3,060.00",31/03/2016,R,BARCLAYS ASSET & SALES FINANCE
453,CS -Oth Operating Inc & Expend,T/A Vehicle Maintenance etc,Transport-Contract Hire,J01374,Transport Related Expenditure ,Contract Hire and Op Leasing  ,CC64,CSF - SEN CABS (RK02)                   ,"3,060.00",31/03/2016,R,BARCLAYS ASSET & SALES FINANCE
454,CS -Oth Operating Inc & Expend,T/A Vehicle Maintenance etc,Transport-Contract Hire,J01374,Transport Related Expenditure ,Contract Hire and Op Leasing  ,CC64,CSF - SEN CABS (RK02)                   ,560.00,31/03/2016,R,BRUNSWICK CARS LTD            
455,CS -Oth Operating Inc & Expend,T/A Vehicle Maintenance etc,Transport-Contract Hire,J01374,Transport Related Expenditure ,Contract Hire and Op Leasing  ,CC64,CSF - SEN CABS (RK02)                   ,"1,224.00",31/03/2016,R,BRUNSWICK CARS LTD            
456,CS -Oth Operating Inc & Expend,T/A Vehicle Maintenance etc,Transport-Contract Hire,J01374,Transport Related Expenditure ,Contract Hire and Op Leasing  ,CC64,CSF - SEN CABS (RK02)                   ,"1,258.00",31/03/2016,R,BRUNSWICK CARS LTD            
457,CS -Oth Operating Inc & Expend,T/A Vehicle Maintenance etc,Transport-Contract Hire,J01374,Transport Related Expenditure ,Contract Hire and Op Leasing  ,CC64,CSF - SEN CABS (RK02)                   ,"1,360.00",31/03/2016,R,BRUNSWICK CARS LTD            
458,CS -Oth Operating Inc & Expend,T/A Vehicle Maintenance etc,Transport-Contract Hire,J01374,Transport Related Expenditure ,Contract Hire and Op Leasing  ,CC64,CSF - SEN CABS (RK02)                   ,"1,386.00",31/03/2016,R,BRUNSWICK CARS LTD            
459,CS -Oth Operating Inc & Expend,T/A Vehicle Maintenance etc,Transport-Contract Hire,J01374,Transport Related Expenditure ,Contract Hire and Op Leasing  ,CC64,CSF - SEN CABS (RK02)                   ,"1,620.00",31/03/2016,R,BRUNSWICK CARS LTD            
460,CS -Oth Operating Inc & Expend,T/A Vehicle Maintenance etc,Transport-Contract Hire,J01374,Transport Related Expenditure ,Contract Hire and Op Leasing  ,CC64,CSF - SEN CABS (RK02)                   ,"1,620.00",31/03/2016,R,BRUNSWICK CARS LTD            
461,CS -Oth Operating Inc & Expend,T/A Vehicle Maintenance etc,Transport-Contract Hire,J01374,Transport Related Expenditure ,Contract Hire and Op Leasing  ,CC64,CSF - SEN CABS (RK02)                   ,"1,674.00",31/03/2016,R,BRUNSWICK CARS LTD            
462,CS -Oth Operating Inc & Expend,T/A Vehicle Maintenance etc,Transport-Contract Hire,J01374,Transport Related Expenditure ,Contract Hire and Op Leasing  ,CC64,CSF - SEN CABS (RK02)                   ,"1,674.00",31/03/2016,R,BRUNSWICK CARS LTD            
463,CS -Oth Operating Inc & Expend,T/A Vehicle Maintenance etc,Transport-Contract Hire,J01374,Transport Related Expenditure ,Contract Hire and Op Leasing  ,CC64,CSF - SEN CABS (RK02)                   ,"1,728.00",31/03/2016,R,BRUNSWICK CARS LTD            
464,CS -Oth Operating Inc & Expend,T/A Vehicle Maintenance etc,Transport-Contract Hire,J01374,Transport Related Expenditure ,Contract Hire and Op Leasing  ,CC64,CSF - SEN CABS (RK02)                   ,"1,728.00",31/03/2016,R,BRUNSWICK CARS LTD            
465,CS -Oth Operating Inc & Expend,T/A Vehicle Maintenance etc,Transport-Contract Hire,J01374,Transport Related Expenditure ,Contract Hire and Op Leasing  ,CC64,CSF - SEN CABS (RK02)                   ,"1,764.00",31/03/2016,R,BRUNSWICK CARS LTD            
466,CS -Oth Operating Inc & Expend,T/A Vehicle Maintenance etc,Transport-Contract Hire,J01374,Transport Related Expenditure ,Contract Hire and Op Leasing  ,CC64,CSF - SEN CABS (RK02)                   ,"1,890.00",31/03/2016,R,BRUNSWICK CARS LTD            
467,CS -Oth Operating Inc & Expend,T/A Vehicle Maintenance etc,Transport-Contract Hire,J01374,Transport Related Expenditure ,Contract Hire and Op Leasing  ,CC64,CSF - SEN CABS (RK02)                   ,"2,070.00",31/03/2016,R,BRUNSWICK CARS LTD            
468,CS -Oth Operating Inc & Expend,T/A Vehicle Maintenance etc,Transport-Contract Hire,J01374,Transport Related Expenditure ,Contract Hire and Op Leasing  ,CC64,CSF - SEN CABS (RK02)                   ,"2,088.00",31/03/2016,R,BRUNSWICK CARS LTD            
469,CS -Oth Operating Inc & Expend,T/A Vehicle Maintenance etc,Transport-Contract Hire,J01374,Transport Related Expenditure ,Contract Hire and Op Leasing  ,CC64,CSF - SEN CABS (RK02)                   ,"2,363.00",31/03/2016,R,BRUNSWICK CARS LTD            
470,CS -Oth Operating Inc & Expend,T/A Vehicle Maintenance etc,Transport-Contract Hire,J01374,Transport Related Expenditure ,Contract Hire and Op Leasing  ,CC64,CSF - SEN CABS (RK02)                   ,"2,394.00",31/03/2016,R,BRUNSWICK CARS LTD            
471,CS -Oth Operating Inc & Expend,T/A Vehicle Maintenance etc,Transport-Contract Hire,J01374,Transport Related Expenditure ,Contract Hire and Op Leasing  ,CC64,CSF - SEN CABS (RK02)                   ,"2,574.00",31/03/2016,R,BRUNSWICK CARS LTD            
472,CS -Oth Operating Inc & Expend,T/A Vehicle Maintenance etc,Transport-Contract Hire,J01374,Transport Related Expenditure ,Contract Hire and Op Leasing  ,CC64,CSF - SEN CABS (RK02)                   ,"3,096.00",31/03/2016,R,BRUNSWICK CARS LTD            
473,CS -Oth Operating Inc & Expend,T/A Vehicle Maintenance etc,Transport-Contract Hire,J01374,Transport Related Expenditure ,Contract Hire and Op Leasing  ,CC64,CSF - SEN CABS (RK02)                   ,"3,546.00",31/03/2016,R,BRUNSWICK CARS LTD            
474,CS -Oth Operating Inc & Expend,T/A Vehicle Maintenance etc,Transport-Contract Hire,J01374,Transport Related Expenditure ,Contract Hire and Op Leasing  ,CC67,C&H - ADULTS CABS (RK08)                ,"1,405.50",31/03/2016,R,BRUNSWICK CARS LTD            
475,CS -Oth Operating Inc & Expend,T/A Vehicle Maintenance etc,Transport-Contract Hire,J01374,Transport Related Expenditure ,Contract Hire and Op Leasing  ,CC64,CSF - SEN CABS (RK02)                   ,900.00,31/03/2016,R,CHEAM STATION CARS            
476,CS -Oth Operating Inc & Expend,T/A Vehicle Maintenance etc,Transport-Contract Hire,J01374,Transport Related Expenditure ,Contract Hire and Op Leasing  ,CC64,CSF - SEN CABS (RK02)                   ,900.00,31/03/2016,R,CHEAM STATION CARS            
477,CS -Oth Operating Inc & Expend,T/A Vehicle Maintenance etc,Transport-Contract Hire,J01374,Transport Related Expenditure ,Contract Hire and Op Leasing  ,CC64,CSF - SEN CABS (RK02)                   ,980.00,31/03/2016,R,CHEAM STATION CARS            
478,CS -Oth Operating Inc & Expend,T/A Vehicle Maintenance etc,Transport-Contract Hire,J01374,Transport Related Expenditure ,Contract Hire and Op Leasing  ,CC64,CSF - SEN CABS (RK02)                   ,"1,080.00",31/03/2016,R,CHEAM STATION CARS            
479,CS -Oth Operating Inc & Expend,T/A Vehicle Maintenance etc,Transport-Contract Hire,J01374,Transport Related Expenditure ,Contract Hire and Op Leasing  ,CC64,CSF - SEN CABS (RK02)                   ,"1,872.00",31/03/2016,R,CHEAM STATION CARS            
480,CS -Oth Operating Inc & Expend,T/A Vehicle Maintenance etc,Transport-Contract Hire,J01374,Transport Related Expenditure ,Contract Hire and Op Leasing  ,CC66,CSF - CHILDREN CABS (RK09)              ,725.00,31/03/2016,R,CHEAM STATION CARS            
481,CS -Oth Operating Inc & Expend,T/A Vehicle Maintenance etc,Transport-Contract Hire,J01374,Transport Related Expenditure ,Contract Hire and Op Leasing  ,CC67,C&H - ADULTS CABS (RK08)                ,"1,280.00",31/03/2016,R,CHEAM STATION CARS            
482,CS -Oth Operating Inc & Expend,T/A Vehicle Maintenance etc,Transport-Contract Hire,J01374,Transport Related Expenditure ,Contract Hire and Op Leasing  ,CC68,CSF - COLLEGES CABS (RK03)              ,836.00,31/03/2016,R,CHEAM STATION CARS            
483,CS -Oth Operating Inc & Expend,T/A Vehicle Maintenance etc,Transport-Contract Hire,J01374,Transport Related Expenditure ,Contract Hire and Op Leasing  ,CC68,CSF - COLLEGES CABS (RK03)              ,981.00,31/03/2016,R,CHEAM STATION CARS            
484,CS -Oth Operating Inc & Expend,T/A Vehicle Maintenance etc,Transport-Contract Hire,J01374,Transport Related Expenditure ,Contract Hire and Op Leasing  ,CC53,Plant Hire for MRCS                     ,"3,795.00",31/03/2016,R,COLLETT TRANSPORT SERVICES    
485,CS -Oth Operating Inc & Expend,T/A Vehicle Maintenance etc,Transport-Contract Hire,J01374,Transport Related Expenditure ,Contract Hire and Op Leasing  ,CC53,Plant Hire for MRCS                     ,"3,910.00",31/03/2016,R,COLLETT TRANSPORT SERVICES    
486,CS -Oth Operating Inc & Expend,T/A Vehicle Maintenance etc,Transport-Contract Hire,J01374,Transport Related Expenditure ,Contract Hire and Op Leasing  ,CC59,HIRING TRANSPORT OPERATIONS             ,"1,518.00",31/03/2016,R,ENTERPRISE RENT-A-CAR UK LTD  
487,CS -Oth Operating Inc & Expend,T/A Vehicle Maintenance etc,Transport-Contract Hire,J01374,Transport Related Expenditure ,Contract Hire and Op Leasing  ,CC59,HIRING TRANSPORT OPERATIONS             ,"1,518.00",31/03/2016,R,ENTERPRISE RENT-A-CAR UK LTD  
488,CS -Oth Operating Inc & Expend,T/A Vehicle Maintenance etc,Transport-Contract Hire,J01374,Transport Related Expenditure ,Contract Hire and Op Leasing  ,CC53,Plant Hire for MRCS                     ,"2,737.00",31/03/2016,R,M6 VEHICLE HIRE               
489,CS -Oth Operating Inc & Expend,T/A Vehicle Maintenance etc,Transport-Contract Hire,J01374,Transport Related Expenditure ,Contract Hire and Op Leasing  ,CC64,CSF - SEN CABS (RK02)                   ,500.00,31/03/2016,R,OAKMARKET GROUP LTD           
490,CS -Oth Operating Inc & Expend,T/A Vehicle Maintenance etc,Transport-Contract Hire,J01374,Transport Related Expenditure ,Contract Hire and Op Leasing  ,CC53,Plant Hire for MRCS                     ,759.00,31/03/2016,R,REDACTED
491,CS -Oth Operating Inc & Expend,T/A Vehicle Maintenance etc,Transport-Contract Hire,J01374,Transport Related Expenditure ,Contract Hire and Op Leasing  ,CC53,Plant Hire for MRCS                     ,759.00,31/03/2016,R,REDACTED
492,CS -Oth Operating Inc & Expend,T/A Vehicle Maintenance etc,Transport-Contract Hire,J01374,Transport Related Expenditure ,Contract Hire and Op Leasing  ,CC53,Plant Hire for MRCS                     ,"1,495.00",31/03/2016,R,REDACTED
493,CS -Oth Operating Inc & Expend,T/A Vehicle Maintenance etc,Transport-Contract Hire,J01374,Transport Related Expenditure ,Contract Hire and Op Leasing  ,CC56,Plant Hire for Leisure                  ,559.58,31/03/2016,R,REDACTED
494,CS -Oth Operating Inc & Expend,T/A Vehicle Maintenance etc,Transport-Contract Hire,J01374,Transport Related Expenditure ,Contract Hire and Op Leasing  ,CC56,Plant Hire for Leisure                  ,559.58,31/03/2016,R,REDACTED
495,CS -Oth Operating Inc & Expend,T/A Vehicle Maintenance etc,Transport-Contract Hire,J01374,Transport Related Expenditure ,Contract Hire and Op Leasing  ,CC56,Plant Hire for Leisure                  ,585.00,31/03/2016,R,REDACTED
496,CS -Oth Operating Inc & Expend,T/A Vehicle Maintenance etc,Transport-Contract Hire,J01374,Transport Related Expenditure ,Contract Hire and Op Leasing  ,CC56,Plant Hire for Leisure                  ,585.00,31/03/2016,R,REDACTED
497,CS -Oth Operating Inc & Expend,T/A Vehicle Maintenance etc,Transport-Contract Hire,J01374,Transport Related Expenditure ,Contract Hire and Op Leasing  ,CC56,Plant Hire for Leisure                  ,585.00,31/03/2016,R,REDACTED
498,CS -Oth Operating Inc & Expend,T/A Vehicle Maintenance etc,Transport-Contract Hire,J01374,Transport Related Expenditure ,Contract Hire and Op Leasing  ,CC59,HIRING TRANSPORT OPERATIONS             ,559.58,31/03/2016,R,REDACTED
499,CS -Oth Operating Inc & Expend,T/A Vehicle Maintenance etc,Transport-Contract Hire,J01374,Transport Related Expenditure ,Contract Hire and Op Leasing  ,CC59,HIRING TRANSPORT OPERATIONS             ,559.58,31/03/2016,R,REDACTED
500,CS -Oth Operating Inc & Expend,T/A Vehicle Maintenance etc,Transport-Contract Hire,J01374,Transport Related Expenditure ,Contract Hire and Op Leasing  ,CC53,Plant Hire for MRCS                     ,"1,008.00",31/03/2016,R,RIVERSIDE TRUCK RENTAL LTD    
501,CS -Oth Operating Inc & Expend,T/A Vehicle Maintenance etc,Transport-Contract Hire,J01374,Transport Related Expenditure ,Contract Hire and Op Leasing  ,CC53,Plant Hire for MRCS                     ,"3,496.00",31/03/2016,R,RIVERSIDE TRUCK RENTAL LTD    
502,CS -Oth Operating Inc & Expend,T/A Vehicle Maintenance etc,Transport-Contract Hire,J01374,Transport Related Expenditure ,Contract Hire and Op Leasing  ,CC53,Plant Hire for MRCS                     ,610.00,05/04/2016,R,CALVERTON FINANCE LTD         
503,CS -Oth Operating Inc & Expend,T/A Vehicle Maintenance etc,Transport-Contract Hire,J01374,Employees                     ,Direct Employee Expenses      ,AA17,Agency Staff & Casual Paymts            ,"9,396.00",05/04/2016,R,REDACTED
504,CS -Oth Operating Inc & Expend,T/A Vehicle Maintenance etc,Transport-Contract Hire,J01374,Transport Related Expenditure ,Contract Hire and Op Leasing  ,CC53,Plant Hire for MRCS                     ,"2,174.43",06/04/2016,R,COLLETT TRANSPORT SERVICES    
505,CS -Oth Operating Inc & Expend,T/A Vehicle Maintenance etc,Transport-Contract Hire,J01374,Transport Related Expenditure ,Contract Hire and Op Leasing  ,CC59,HIRING TRANSPORT OPERATIONS             ,"1,518.00",06/04/2016,R,ENTERPRISE RENT-A-CAR UK LTD  
506,CS -Oth Operating Inc & Expend,T/A Vehicle Maintenance etc,Transport-Contract Hire,J01374,Transport Related Expenditure ,Contract Hire and Op Leasing  ,CC53,Plant Hire for MRCS                     ,"1,490.00",11/04/2016,R,GULLIVER'S TRUCK HIRE LTD.    
507,CS -Oth Operating Inc & Expend,T/A Vehicle Maintenance etc,Transport-Contract Hire,J01374,Transport Related Expenditure ,Contract Hire and Op Leasing  ,CC53,Plant Hire for MRCS                     ,"1,750.00",11/04/2016,R,GULLIVER'S TRUCK HIRE LTD.    
508,CS -Oth Operating Inc & Expend,T/A Vehicle Maintenance etc,Transport-Contract Hire,J01374,Transport Related Expenditure ,Contract Hire and Op Leasing  ,CC53,Plant Hire for MRCS                     ,"1,092.42",12/04/2016,R,STENNETTS LTD                 
509,CS -Oth Operating Inc & Expend,T/A Vehicle Maintenance etc,Transport-Contract Hire,J01374,Transport Related Expenditure ,Contract Hire and Op Leasing  ,CC53,Plant Hire for MRCS                     ,501.00,14/04/2016,R,REDACTED
510,CS -Oth Operating Inc & Expend,T/A Vehicle Maintenance etc,Transport-Contract Hire,J01374,Transport Related Expenditure ,Contract Hire and Op Leasing  ,CC53,Plant Hire for MRCS                     ,"4,977.00",15/04/2016,R,STENNETTS LTD                 
511,CS -Oth Operating Inc & Expend,T/A Vehicle Maintenance etc,Transport-Workshop,J01376,Transport Related Expenditure ,Contract Hire and Op Leasing  ,CC65,Vehicle Hire for Education              ,"2,016.00",31/03/2016,R,BARCLAYS ASSET & SALES FINANCE
512,CS -Oth Operating Inc & Expend,T/A Vehicle Maintenance etc,Transport-Workshop,J01376,Transport Related Expenditure ,Contract Hire and Op Leasing  ,CC65,Vehicle Hire for Education              ,770.00,04/04/2016,R,FREEWAY COACH SERVICES LTD    
513,CS -Oth Operating Inc & Expend,T/A Vehicle Maintenance etc,Transport-Workshop,J01376,Transport Related Expenditure ,Contract Hire and Op Leasing  ,CC65,Vehicle Hire for Education              ,640.00,22/04/2016,R,G T INTERNATIONAL             
514,CS -Oth Operating Inc & Expend,T/A Vehicle Maintenance etc,Vehicle Workshops,J01378,Transport Related Expenditure ,Direct Transport Costs        ,CA56,Specialist Maint. (On Site)             ,"3,841.17",23/03/2016,R,FLEETSPEED COACHWORKS LTD.    
515,CS -Oth Operating Inc & Expend,T/A Vehicle Maintenance etc,Vehicle Workshops,J01378,Transport Related Expenditure ,Direct Transport Costs        ,CA56,Specialist Maint. (On Site)             ,672.35,24/03/2016,R,REDACTED
516,CS -Oth Operating Inc & Expend,T/A Vehicle Maintenance etc,Vehicle Workshops,J01378,Transport Related Expenditure ,Direct Transport Costs        ,CA56,Specialist Maint. (On Site)             ,896.95,24/03/2016,R,REDACTED
517,CS -Oth Operating Inc & Expend,T/A Vehicle Maintenance etc,Vehicle Workshops,J01378,Supplies & Services           ,Equip Furniture/Materials     ,DA01,Equipment - R & M                       ,"1,788.96",29/03/2016,R,BOLTON GATE SERVICES LTD      
518,CS -Oth Operating Inc & Expend,T/A Vehicle Maintenance etc,Vehicle Workshops,J01378,Transport Related Expenditure ,Direct Transport Costs        ,CA72,Vehicle Parts                           ,589.42,29/03/2016,R,COMMERCIAL & PLANT LTD        
519,CS -Oth Operating Inc & Expend,T/A Vehicle Maintenance etc,Vehicle Workshops,J01378,Transport Related Expenditure ,Direct Transport Costs        ,CA56,Specialist Maint. (On Site)             ,645.95,30/03/2016,R,REDACTED
520,CS -Oth Operating Inc & Expend,T/A Vehicle Maintenance etc,Vehicle Workshops,J01378,Transport Related Expenditure ,Direct Transport Costs        ,CA56,Specialist Maint. (On Site)             ,"1,594.94",30/03/2016,R,REDACTED
521,CS -Oth Operating Inc & Expend,T/A Vehicle Maintenance etc,Vehicle Workshops,J01378,Employees                     ,Direct Employee Expenses      ,AA17,Agency Staff & Casual Paymts            ,532.00,30/03/2016,R,REDACTED
522,CS -Oth Operating Inc & Expend,T/A Vehicle Maintenance etc,Vehicle Workshops,J01378,Supplies & Services           ,Clothing Unfrms Laundry       ,DC01,Laundry                                 ,703.76,02/04/2016,R,BERENDSEN UK LTD              
523,CS -Oth Operating Inc & Expend,T/A Vehicle Maintenance etc,Vehicle Workshops,J01378,Transport Related Expenditure ,Direct Transport Costs        ,CA55,Specialist Maint. (Off Site)            ,"1,408.77",04/04/2016,R,TRUST FORD                    
524,CS -Oth Operating Inc & Expend,T/A Vehicle Maintenance etc,Vehicle Workshops,J01378,Transport Related Expenditure ,Direct Transport Costs        ,CA72,Vehicle Parts                           ,"1,175.05",06/04/2016,R,NTM GB LIMITED                
525,CS -Oth Operating Inc & Expend,T/A Vehicle Maintenance etc,Vehicle Workshops,J01378,Transport Related Expenditure ,Direct Transport Costs        ,CA56,Specialist Maint. (On Site)             ,577.07,06/04/2016,R,UNIVERSAL HOSE  T/A HYDRAQUIP 
526,CS -Oth Operating Inc & Expend,T/A Vehicle Maintenance etc,Vehicle Workshops,J01378,Transport Related Expenditure ,Direct Transport Costs        ,CA72,Vehicle Parts                           ,556.46,07/04/2016,R,GEESINK NORBA                 
527,CS -Oth Operating Inc & Expend,T/A Vehicle Maintenance etc,Vehicle Workshops,J01378,Transport Related Expenditure ,Direct Transport Costs        ,CA72,Vehicle Parts                           ,638.40,07/04/2016,R,WASTEPARTS UK LTD             
528,CS -Oth Operating Inc & Expend,T/A Vehicle Maintenance etc,Vehicle Workshops,J01378,Supplies & Services           ,Grants and Subscriptions      ,DJ04,Subscriptions                           ,695.00,12/04/2016,R,ECLIPSE AUTOMOTIVE TECHNOLOGY 
529,CS -Oth Operating Inc & Expend,T/A Vehicle Maintenance etc,Vehicle Workshops,J01378,Transport Related Expenditure ,Direct Transport Costs        ,CA72,Vehicle Parts                           ,"1,082.86",12/04/2016,R,JOHNSTON SWEEPERS LIMITED     
530,CS -Oth Operating Inc & Expend,T/A Vehicle Maintenance etc,Vehicle Workshops,J01378,Transport Related Expenditure ,Direct Transport Costs        ,CA56,Specialist Maint. (On Site)             ,807.61,12/04/2016,R,R.J.H.WELDING                 
531,CS -Oth Operating Inc & Expend,T/A Vehicle Maintenance etc,Vehicle Workshops,J01378,Transport Related Expenditure ,Direct Transport Costs        ,CA56,Specialist Maint. (On Site)             ,855.00,12/04/2016,R,R.J.H.WELDING                 
532,CS -Oth Operating Inc & Expend,T/A Vehicle Maintenance etc,Vehicle Workshops,J01378,Transport Related Expenditure ,Direct Transport Costs        ,CA56,Specialist Maint. (On Site)             ,920.00,12/04/2016,R,R.J.H.WELDING                 
533,CS -Oth Operating Inc & Expend,T/A Vehicle Maintenance etc,Vehicle Workshops,J01378,Transport Related Expenditure ,Direct Transport Costs        ,CA72,Vehicle Parts                           ,837.42,12/04/2016,R,ROSSETTS COMMERCIALS          
534,CS -Oth Operating Inc & Expend,T/A Vehicle Maintenance etc,Vehicle Workshops,J01378,Transport Related Expenditure ,Direct Transport Costs        ,CA55,Specialist Maint. (Off Site)            ,"3,060.41",13/04/2016,R,FLEETSPEED COACHWORKS LTD.    
535,CS -Oth Operating Inc & Expend,T/A Vehicle Maintenance etc,Vehicle Workshops,J01378,Transport Related Expenditure ,Direct Transport Costs        ,CA55,Specialist Maint. (Off Site)            ,553.61,13/04/2016,R,ROSSETTS COMMERCIALS          
536,CS -Oth Operating Inc & Expend,T/A Vehicle Maintenance etc,Vehicle Workshops,J01378,Transport Related Expenditure ,Direct Transport Costs        ,CA56,Specialist Maint. (On Site)             ,597.75,15/04/2016,R,R.J.H.WELDING                 
537,CS -Oth Operating Inc & Expend,T/A Vehicle Maintenance etc,Vehicle Workshops,J01378,Transport Related Expenditure ,Direct Transport Costs        ,CA72,Vehicle Parts                           ,"1,180.24",18/04/2016,R,COMMERCIAL & PLANT LTD        
538,CS -Oth Operating Inc & Expend,T/A Vehicle Maintenance etc,Vehicle Workshops,J01378,Transport Related Expenditure ,Direct Transport Costs        ,CA56,Specialist Maint. (On Site)             ,875.55,18/04/2016,R,REDACTED
539,CS -Oth Operating Inc & Expend,T/A Vehicle Maintenance etc,Vehicle Workshops,J01378,Transport Related Expenditure ,Direct Transport Costs        ,CA56,Specialist Maint. (On Site)             ,"1,032.10",18/04/2016,R,REDACTED
540,CS -Oth Operating Inc & Expend,T/A Vehicle Maintenance etc,Vehicle Workshops,J01378,Transport Related Expenditure ,Direct Transport Costs        ,CA72,Vehicle Parts                           ,800.00,19/04/2016,R,EUROCAR PARTS                 
541,CS -Oth Operating Inc & Expend,T/A Vehicle Maintenance etc,Vehicle Workshops,J01378,Supplies & Services           ,Grants and Subscriptions      ,DJ04,Subscriptions                           ,510.00,22/04/2016,R,ECLIPSE AUTOMOTIVE TECHNOLOGY 
542,Cultural Env Reg&Plan Services,Mgt & Support (Env),Estates Mgt,J01420,Supplies & Services           ,Grants and Subscriptions      ,DJ04,Subscriptions                           ,"3,852.00",02/03/2016,R,COSTAR UK LTD                 
543,Cultural Env Reg&Plan Services,Mgt & Support (Env),Estates Mgt,J01420,Customer and client receipts  ,Rents etc                     ,RD03,Rent Deposit - Refundable E,562.50,13/04/2016,R,HESTIA HOUSING AND SUPPORT    
544,Cultural Env Reg&Plan Services,Mgt & Support (Env),Estates Mgt,J01420,Premises Related Expenditure  ,RepairsAlterations&MtceOfBldgs,BA01,DDM - General Building                  ,"1,090.00",25/04/2016,R,TAYLOR BUILDING COMPANY LTD   
545,CS -Oth Operating Inc & Expend,Extraordinary Items & PY Adj.,Housing Shops,J01533,Premises Related Expenditure  ,RepairsAlterations&MtceOfBldgs,BA03,DDM - Mechanical                        ,640.02,31/03/2016,R,BILFINGER EUROPA FACILITY     
546,CS -Oth Operating Inc & Expend,Extraordinary Items & PY Adj.,Housing Shops,J01533,Premises Related Expenditure  ,RepairsAlterations&MtceOfBldgs,BA01,DDM - General Building                  ,932.13,19/04/2016,R,SALTASH ENTERPRISES LTD       
547,CS -Oth Operating Inc & Expend,Extraordinary Items & PY Adj.,Housing Shops,J01533,Premises Related Expenditure  ,RepairsAlterations&MtceOfBldgs,BA01,DDM - General Building                  ,"1,750.00",19/04/2016,R,SALTASH ENTERPRISES LTD       
548,CS -Oth Operating Inc & Expend,Extraordinary Items & PY Adj.,Durnsford Rd Budget,J01580,Premises Related Expenditure  ,RepairsAlterations&MtceOfBldgs,BA01,DDM - General Building                  ,"4,061.00",31/03/2016,R,ERGRO BUILDING SERVICES LTD   
549,Childrens & Education Services,Statutory & Regulatory Duties,Senior Mngt & Support Services,K01005,Supplies & Services           ,Services                      ,DF11,Counsel's Fees                          ,"1,730.00",03/02/2016,R,REDACTED
550,Childrens & Education Services,Statutory & Regulatory Duties,Senior Mngt & Support Services,K01005,Supplies & Services           ,Services                      ,DF11,Counsel's Fees                          ,(510.00),15/03/2016,R,REDACTED
551,Childrens & Education Services,Statutory & Regulatory Duties,Senior Mngt & Support Services,K01005,Supplies & Services           ,Services                      ,DF11,Counsel's Fees                          ,"2,610.00",17/03/2016,R,REDACTED
552,Childrens & Education Services,Statutory & Regulatory Duties,Senior Mngt & Support Services,K01005,Supplies & Services           ,Services                      ,DF11,Counsel's Fees                          ,(940.00),18/03/2016,R,REDACTED
553,Childrens & Education Services,Statutory & Regulatory Duties,Senior Mngt & Support Services,K01005,Supplies & Services           ,Services                      ,DF11,Counsel's Fees                          ,750.00,29/03/2016,R,REDACTED
554,Childrens & Education Services,Statutory & Regulatory Duties,Senior Mngt & Support Services,K01005,Supplies & Services           ,Services                      ,DF11,Counsel's Fees                          ,510.00,25/04/2016,R,REDACTED
555,Childrens & Education Services,Statutory & Regulatory Duties,Senior Mngt & Support Services,K01005,Supplies & Services           ,Services                      ,DF11,Counsel's Fees                          ,"1,450.00",27/04/2016,R,REDACTED
556,Childrens & Education Services,Statutory & Regulatory Duties,Central Administration,K01008,Supplies & Services           ,Grants and Subscriptions      ,DJ04,Subscriptions                           ,"1,567.50",08/03/2016,R,ADCS                          
557,Childrens & Education Services,Statutory & Regulatory Duties,Central Administration,K01008,Supplies & Services           ,Grants and Subscriptions      ,DJ04,Subscriptions                           ,"9,000.00",06/04/2016,R,LONDON COUNCILS               
558,Childrens & Education Services,Statutory & Regulatory Duties,Schools IT Support,K02008,Supplies & Services           ,Comms and Computing           ,DG50,Other IT Expenditure                    ,500.00,08/04/2016,R,ATOMWIDE LTD                  
559,Childrens & Education Services,Statutory & Regulatory Duties,Schools IT Support,K02008,Supplies & Services           ,Comms and Computing           ,DG50,Other IT Expenditure                    ,575.00,08/04/2016,R,ATOMWIDE LTD                  
560,Childrens & Education Services,Statutory & Regulatory Duties,Schools IT Support,K02008,Supplies & Services           ,Comms and Computing           ,DG50,Other IT Expenditure                    ,725.00,08/04/2016,R,ATOMWIDE LTD                  
561,Childrens & Education Services,Statutory & Regulatory Duties,Schools IT Support,K02008,Supplies & Services           ,Comms and Computing           ,DG50,Other IT Expenditure                    ,"1,025.00",08/04/2016,R,ATOMWIDE LTD                  
562,Childrens & Education Services,Statutory & Regulatory Duties,Schools IT Support,K02008,Supplies & Services           ,Comms and Computing           ,DG50,Other IT Expenditure                    ,"1,025.00",08/04/2016,R,ATOMWIDE LTD                  
563,Childrens & Education Services,Statutory & Regulatory Duties,Schools IT Support,K02008,Supplies & Services           ,Comms and Computing           ,DG50,Other IT Expenditure                    ,"1,025.00",08/04/2016,R,ATOMWIDE LTD                  
564,Childrens & Education Services,Statutory & Regulatory Duties,Schools IT Support,K02008,Supplies & Services           ,Comms and Computing           ,DG50,Other IT Expenditure                    ,"1,025.00",08/04/2016,R,ATOMWIDE LTD                  
565,Childrens & Education Services,Statutory & Regulatory Duties,Schools IT Support,K02008,Supplies & Services           ,Comms and Computing           ,DG50,Other IT Expenditure                    ,"1,025.00",08/04/2016,R,ATOMWIDE LTD                  
566,Childrens & Education Services,Statutory & Regulatory Duties,Schools IT Support,K02008,Supplies & Services           ,Comms and Computing           ,DG50,Other IT Expenditure                    ,"1,249.00",08/04/2016,R,ATOMWIDE LTD                  
567,Childrens & Education Services,Statutory & Regulatory Duties,Schools IT Support,K02008,Supplies & Services           ,Comms and Computing           ,DG50,Other IT Expenditure                    ,"1,399.00",08/04/2016,R,ATOMWIDE LTD                  
568,Childrens & Education Services,Statutory & Regulatory Duties,Schools IT Support,K02008,Supplies & Services           ,Comms and Computing           ,DG50,Other IT Expenditure                    ,"3,456.00",26/04/2016,R,ATOMWIDE LTD                  
569,Childrens & Education Services,Asset Management,PFI Unitary Charges,K03023,Third Party Payments          ,Private Contractors           ,EH10,Contract Payments                       ,"3,309,488.96",03/03/2016,R,NEWSCHOOLS (MERTON) LIMITED   
570,Childrens & Education Services,Asset Management,PFI Unitary Charges,K03023,Third Party Payments          ,Private Contractors           ,EH02,Miscellaneous Hired Services            ,559.04,14/04/2016,R,NEWSCHOOLS (MERTON) LIMITED   
571,Childrens & Education Services,Asset Management,PFI Unitary Charges,K03023,Third Party Payments          ,Private Contractors           ,EH02,Miscellaneous Hired Services            ,570.91,14/04/2016,R,NEWSCHOOLS (MERTON) LIMITED   
572,Childrens & Education Services,Education Psychology Service,Education Psychology.,K04018,Supplies & Services           ,Comms and Computing           ,DG08,Computer Hardware                       ,722.70,16/12/2015,R,POSTURITE (UK)                
573,Childrens & Education Services,Education Psychology Service,Education Psychology.,K04018,Employees                     ,Direct Employee Expenses      ,AA17,Agency Staff & Casual Paymts            ,800.00,26/02/2016,R,REDACTED
574,Childrens & Education Services,Education Psychology Service,Education Psychology.,K04018,Employees                     ,Direct Employee Expenses      ,AA17,Agency Staff & Casual Paymts            ,"2,296.00",26/03/2016,R,REDACTED
575,Childrens & Education Services,Education Psychology Service,Education Psychology.,K04018,Employees                     ,Direct Employee Expenses      ,AA17,Agency Staff & Casual Paymts            ,"1,200.00",01/04/2016,R,REDACTED
576,Childrens & Education Services,Support for SEN Pupils,Statementing-Transport,K04023,Transport Related Expenditure ,Public Transport              ,CD50,Home Sch/Coll Trans(Trav Exps)          ,"25,959.00",25/02/2016,R,SURREY COUNTY COUNCIL         
577,Childrens & Education Services,Support for SEN Pupils,Statementing-Transport,K04023,Transport Related Expenditure ,Public Transport              ,CD50,Home Sch/Coll Trans(Trav Exps)          ,937.50,20/03/2016,R,WISDOM SUPPORT SERVICES LTD   
578,Childrens & Education Services,Support for SEN Pupils,Statementing-Transport,K04023,Transport Related Expenditure ,Public Transport              ,CD50,Home Sch/Coll Trans(Trav Exps)          ,"1,142.40",30/03/2016,R,CROYDON COUNCIL               
579,Childrens & Education Services,Support for SEN Pupils,Statementing-Transport,K04023,Transport Related Expenditure ,Public Transport              ,CD50,Home Sch/Coll Trans(Trav Exps)          ,"1,260.00",30/03/2016,R,CROYDON COUNCIL               
580,Childrens & Education Services,Support for SEN Pupils,Statementing-Transport,K04023,Transport Related Expenditure ,Public Transport              ,CD50,Home Sch/Coll Trans(Trav Exps)          ,"1,353.20",30/03/2016,R,CROYDON COUNCIL               
581,Childrens & Education Services,Support for SEN Pupils,Statement Support Team,K04034,Supplies & Services           ,Services                      ,DF09,Miscellaneous Fees                      ,"2,578.34",02/04/2016,R,REDACTED
582,Childrens & Education Services,Oth U5s Provn Not Prim or Spec,Provider Support,K05078,Supplies & Services           ,Comms and Computing           ,DG02,Software Licences                       ,"5,250.00",15/03/2016,R,OPEN OBJECTS SOFTWARE LTD     
583,Childrens & Education Services,Oth U5s Provn Not Prim or Spec,Provider Support,K05078,Supplies & Services           ,Comms and Computing           ,DG02,Software Licences                       ,"1,129.01",25/04/2016,R,CACI LIMITED                  
584,Childrens & Education Services,GENERATED ACCOUNT,Children's centres,K05137,Supplies & Services           ,Comms and Computing           ,DG02,Software Licences                       ,"13,057.13",03/03/2016,R,CAPITA BUSINESS SERVICES LTD  
585,Childrens & Education Services,GENERATED ACCOUNT,Children's centres,K05137,Supplies & Services           ,Comms and Computing           ,DG05,Telephones - Gen-Creditors              ,"2,719.20",04/03/2016,R,VIRGIN MEDIA PAYMENTS LTD     
586,Childrens & Education Services,GENERATED ACCOUNT,Children's centres,K05137,Supplies & Services           ,Comms and Computing           ,DG05,Telephones - Gen-Creditors              ,"2,719.20",04/03/2016,R,VIRGIN MEDIA PAYMENTS LTD     
587,Childrens & Education Services,GENERATED ACCOUNT,Children's centres,K05137,Supplies & Services           ,Comms and Computing           ,DG05,Telephones - Gen-Creditors              ,"2,719.20",04/03/2016,R,VIRGIN MEDIA PAYMENTS LTD     
588,Childrens & Education Services,GENERATED ACCOUNT,Children's centres,K05137,Supplies & Services           ,Comms and Computing           ,DG05,Telephones - Gen-Creditors              ,"2,719.20",04/03/2016,R,VIRGIN MEDIA PAYMENTS LTD     
589,Childrens & Education Services,GENERATED ACCOUNT,Children's centres,K05137,Supplies & Services           ,Comms and Computing           ,DG05,Telephones - Gen-Creditors              ,"2,719.92",04/03/2016,R,VIRGIN MEDIA PAYMENTS LTD     
590,Childrens & Education Services,GENERATED ACCOUNT,Children's centres,K05137,Supplies & Services           ,Comms and Computing           ,DG05,Telephones - Gen-Creditors              ,"2,719.92",04/03/2016,R,VIRGIN MEDIA PAYMENTS LTD     
591,Childrens & Education Services,GENERATED ACCOUNT,Children's centres,K05137,Premises Related Expenditure  ,RepairsAlterations&MtceOfBldgs,BA79,Security of Premises                    ,"2,158.80",01/04/2016,R,SIGHT & SOUND                 
592,Childrens & Education Services,GENERATED ACCOUNT,Children's centres,K05137,Supplies & Services           ,Comms and Computing           ,DG05,Telephones - Gen-Creditors              ,"2,880.00",01/04/2016,R,VIRGIN MEDIA PAYMENTS LTD     
593,Childrens & Education Services,Nursery schools,GSSG Central Administration,K05400,Supplies & Services           ,Comms and Computing           ,DG05,Telephones - Gen-Creditors              ,"1,452.81",05/04/2016,R,GETRONICS UNIFIED COM (UK) LTD
594,Childrens & Education Services,GENERATED ACCOUNT,Lavender Children's Centre,K05410,Supplies & Services           ,Equip Furniture/Materials     ,DA09,Equip-Purchases                         ,"2,019.00",24/02/2016,R,COMMUNITY PRODUCTS (UK) LTD.  
595,Childrens & Education Services,GENERATED ACCOUNT,Morden MAT,K05413,Premises Related Expenditure  ,RepairsAlterations&MtceOfBldgs,BA01,DDM - General Building                  ,"63,778.47",31/03/2016,R,OAKLAND BUILDING SERVICES LTD 
596,Childrens & Education Services,Nursery schools,Lavender CC Non Childcare,K05415,Supplies & Services           ,Equip Furniture/Materials     ,DA09,Equip-Purchases                         ,645.50,14/04/2016,R,DISCOUNT DISPLAY              
597,Childrens & Education Services,Nursery schools,E.Years-Intergenerational Cntr,K05416,Premises Related Expenditure  ,RepairsAlterations&MtceOfBldgs,BA79,Security of Premises                    ,852.50,10/02/2016,R,ST MARKS CHURCH OF ENG ACADEMY
598,Childrens & Education Services,Nursery schools,E.Years-Intergenerational Cntr,K05416,Premises Related Expenditure  ,RepairsAlterations&MtceOfBldgs,BA05,DDM - ELECTRICAL                        ,527.11,30/03/2016,R,BILFINGER EUROPA FACILITY     
599,Childrens & Education Services,Nursery schools,E.Years-Intergenerational Cntr,K05416,Premises Related Expenditure  ,Cleaning and Domestic Supplies,BH06,Clinical Waste                          ,"1,152.35",15/04/2016,R,INITIAL WASHROOM SOLUTIONS    
600,Childrens & Education Services,Vocational - Adult Education,AE-additional learner SF,K06046,Supplies & Services           ,Services                      ,DF09,Miscellaneous Fees                      ,795.40,01/04/2016,R,JK CARE T/A DEES DAY NURSERY  
601,Childrens & Education Services,Vocational - Adult Education,AE-Adult Education Main,K06049,Premises Related Expenditure  ,Energy Costs                  ,BB03,Gas (incl. Butane)                      ,"1,555.95",05/04/2016,R,GAZPROM MARKETING&TRADING LTD 
602,Childrens & Education Services,Vocational - Adult Education,AE-Adult Education Main,K06049,Supplies & Services           ,Services                      ,DF03,Consultants                             ,"3,420.10",06/04/2016,R,TCMD LTD                      
603,Childrens & Education Services,Youth Centres (Residential),Pollards Hll Yth Ctre,K06065,Supplies & Services           ,Expenses                      ,DH12,Young Peoples Expenses                  ,666.67,19/04/2016,R,AVON TYRRELL                  
604,Childrens & Education Services,Youth Centres (Residential),PAYP Moving Forward in Life,K06092,Supplies & Services           ,Services                      ,DF01,General Office Expenses                 ,"4,437.00",04/03/2016,R,VIRGIN MEDIA PAYMENTS LTD     
605,Childrens & Education Services,Youth Centres (Residential),PAYP Moving Forward in Life,K06092,Premises Related Expenditure  ,Rents                         ,BC01,Miscellaneous Rents                     ,"6,750.00",10/03/2016,R,GOLDPLAZA (MITCHAM) LIMITED   
606,Childrens & Education Services,Youth Centres (Residential),PAYP Moving Forward in Life,K06092,Supplies & Services           ,Expenses                      ,DH50,Special Projects                        ,"3,800.00",31/03/2016,R,NETWORK SOLUTIONS INC         
607,Childrens & Education Services,Pupil Support,Young Person Substance Misuse,K06114,Supplies & Services           ,Equip Furniture/Materials     ,DA83,Projects                                ,"2,200.00",20/03/2016,R,THEATRE ADAD                  
608,Childrens & Education Services,Facilitating School Improvemnt,Virtual Schools (Balance),K07109,Supplies & Services           ,Grants and Subscriptions      ,DJ01,Grants                                  ,500.00,18/04/2016,R,HELENSWOOD ACADEMY            
609,Childrens & Education Services,Asset Management,S106 Bid,K08077,Supplies & Services           ,Prntng Stnry Gen Off Exp      ,DE52,Office Removal Expenses                 ,"2,704.00",18/04/2016,R,EDE'S (U.K.) LTD              
610,Childrens & Education Services,Facilitating School Improvemnt,SSQ,K09077,Supplies & Services           ,Comms and Computing           ,DG08,Computer Hardware                       ,884.00,09/03/2016,R,SPECIALIST COMPUTER CENT. PLC 
611,Childrens & Education Services,Facilitating School Improvemnt,SSQ,K09077,Supplies & Services           ,Expenses                      ,DH02,Conferences                             ,"1,987.00",29/03/2016,R,ACHIEVING FOR CHILDREN LTD    
612,Childrens & Education Services,Facilitating School Improvemnt,SSQ,K09077,Supplies & Services           ,Expenses                      ,DH17,Advances                                ,500.00,30/03/2016,R,POPLAR PRIMARY SCHOOL         
613,Childrens & Education Services,Facilitating School Improvemnt,SSQ,K09077,Supplies & Services           ,Expenses                      ,DH17,Advances                                ,660.00,30/03/2016,R,POPLAR PRIMARY SCHOOL         
614,Childrens & Education Services,Facilitating School Improvemnt,SSQ,K09077,Supplies & Services           ,Grants and Subscriptions      ,DJ04,Subscriptions                           ,"2,600.00",24/04/2016,R,CLEAPSS                       
615,Childrens & Education Services,Statutory & Regulatory Duties,Governor Support,K09081,Supplies & Services           ,Comms and Computing           ,DG50,Other IT Expenditure                    ,"1,900.00",30/03/2016,R,WEBBASED                      
616,Childrens & Education Services,Statutory & Regulatory Duties,Governor Support,K09081,Supplies & Services           ,Comms and Computing           ,DG50,Other IT Expenditure                    ,"3,500.00",30/03/2016,R,WEBBASED                      
617,Childrens & Education Services,Statutory & Regulatory Duties,Governor Support,K09081,Supplies & Services           ,Comms and Computing           ,DG50,Other IT Expenditure                    ,"9,600.00",30/03/2016,R,WEBBASED                      
618,Childrens & Education Services,Statutory & Regulatory Duties,Governor Support,K09081,Supplies & Services           ,Comms and Computing           ,DG50,Other IT Expenditure                    ,"9,600.00",30/03/2016,R,WEBBASED                      
619,Childrens & Education Services,Statutory & Regulatory Duties,Governor Support,K09081,Supplies & Services           ,Comms and Computing           ,DG50,Other IT Expenditure                    ,"9,600.00",30/03/2016,R,WEBBASED                      
620,Childrens & Education Services,Statutory & Regulatory Duties,Governor Support,K09081,Supplies & Services           ,Equip Furniture/Materials     ,DA09,Equip-Purchases                         ,"7,700.00",31/03/2016,R,EQUIS CONSULTING LTD          
621,Childrens & Education Services,Statutory & Regulatory Duties,Governor Support,K09081,Supplies & Services           ,Expenses                      ,DH02,Conferences                             ,"2,500.00",11/04/2016,R,SARAH CAVE ASSOCIATES LIMITED 
622,Childrens & Education Services,Asset Management,Stouthall,K09082,Premises Related Expenditure  ,Ground Maintenance Costs      ,BL03,Maintenance of Grounds                  ,"1,000.00",31/03/2016,R,A Y LANDSCAPES LTD            
623,Childrens & Education Services,Admissions & Planning Sch Prov,Schools Admin & Pupil Benefits,K90001,Supplies & Services           ,Comms and Computing           ,DG02,Software Licences                       ,"17,658.00",01/04/2016,R,LONDON GRID FOR LEARNING TRUST
624,Childrens & Education Services,Pupil Referral Units,Head of Social Inclusion,K90005,Supplies & Services           ,Services                      ,DF35,Graphic Design                          ,"2,630.00",29/02/2016,R,TA2                           
625,Childrens & Education Services,Facilitating School Improvemnt,Virtual Schools - Home Tutors,K90015,Employees                     ,Direct Employee Expenses      ,AA17,Agency Staff & Casual Paymts            ,"2,495.00",29/03/2016,R,REDACTED
626,Childrens & Education Services,Support for SEN Pupils,Non-Delegated Statements,K90024,Third Party Payments          ,Other Local Authorities       ,EB50,OLA-Payments - Day Schools              ,"4,575.17",22/01/2016,R,ACHIEVING FOR CHILDREN LTD    
627,Childrens & Education Services,Support for SEN Pupils,Non-Delegated Statements,K90024,Third Party Payments          ,Other Establishments          ,EG50,Ind Day Schs Payments                   ,"15,251.00",17/03/2016,R,ST JOSEPHS SCHOOL             
628,Childrens & Education Services,Support for SEN Pupils,Non-Delegated Statements,K90024,Third Party Payments          ,Other Establishments          ,EG50,Ind Day Schs Payments                   ,"15,969.00",17/03/2016,R,ST JOSEPHS SCHOOL             
629,Childrens & Education Services,Support for SEN Pupils,Non-Delegated Statements,K90024,Third Party Payments          ,Other Establishments          ,EG50,Ind Day Schs Payments                   ,"24,934.00",17/03/2016,R,ST JOSEPHS SCHOOL             
630,Childrens & Education Services,Support for SEN Pupils,Non-Delegated Statements,K90024,Third Party Payments          ,Other Establishments          ,EG50,Ind Day Schs Payments                   ,"33,533.00",17/03/2016,R,ST JOSEPHS SCHOOL             
631,Childrens & Education Services,Support for SEN Pupils,Non-Delegated Statements,K90024,Third Party Payments          ,Other Establishments          ,EG50,Ind Day Schs Payments                   ,"8,233.33",23/03/2016,R,EAGLE HOUSE SCHOOL            
632,Childrens & Education Services,Support for SEN Pupils,Non-Delegated Statements,K90024,Third Party Payments          ,Other Establishments          ,EG50,Ind Day Schs Payments                   ,"32,379.33",23/03/2016,R,KISIMUL SCHOOL                
633,Childrens & Education Services,Support for SEN Pupils,Non-Delegated Statements,K90024,Third Party Payments          ,Other Establishments          ,EG50,Ind Day Schs Payments                   ,"33,357.33",23/03/2016,R,KISIMUL SCHOOL                
634,Childrens & Education Services,Support for SEN Pupils,Non-Delegated Statements,K90024,Third Party Payments          ,Other Establishments          ,EG53,Ind Specialist Providers                ,672.00,23/03/2016,R,REDACTED
635,Childrens & Education Services,Support for SEN Pupils,Non-Delegated Statements,K90024,Third Party Payments          ,Other Establishments          ,EG50,Ind Day Schs Payments                   ,601.00,23/03/2016,R,ST DOMINIC'S SCHOOL           
636,Childrens & Education Services,Support for SEN Pupils,Non-Delegated Statements,K90024,Third Party Payments          ,Other Establishments          ,EG50,Ind Day Schs Payments                   ,601.00,23/03/2016,R,ST DOMINIC'S SCHOOL           
637,Childrens & Education Services,Support for SEN Pupils,Non-Delegated Statements,K90024,Third Party Payments          ,Other Establishments          ,EG50,Ind Day Schs Payments                   ,601.00,23/03/2016,R,ST DOMINIC'S SCHOOL           
638,Childrens & Education Services,Support for SEN Pupils,Non-Delegated Statements,K90024,Third Party Payments          ,Other Establishments          ,EG50,Ind Day Schs Payments                   ,601.00,23/03/2016,R,ST DOMINIC'S SCHOOL           
639,Childrens & Education Services,Support for SEN Pupils,Non-Delegated Statements,K90024,Third Party Payments          ,Other Establishments          ,EG50,Ind Day Schs Payments                   ,"12,556.00",23/03/2016,R,ST DOMINIC'S SCHOOL           
640,Childrens & Education Services,Support for SEN Pupils,Non-Delegated Statements,K90024,Third Party Payments          ,Other Establishments          ,EG50,Ind Day Schs Payments                   ,"12,556.00",23/03/2016,R,ST DOMINIC'S SCHOOL           
641,Childrens & Education Services,Support for SEN Pupils,Non-Delegated Statements,K90024,Third Party Payments          ,Other Establishments          ,EG50,Ind Day Schs Payments                   ,"15,889.00",23/03/2016,R,ST DOMINIC'S SCHOOL           
642,Childrens & Education Services,Support for SEN Pupils,Non-Delegated Statements,K90024,Third Party Payments          ,Other Establishments          ,EG50,Ind Day Schs Payments                   ,"17,555.00",23/03/2016,R,ST DOMINIC'S SCHOOL           
643,Childrens & Education Services,Support for SEN Pupils,Non-Delegated Statements,K90024,Third Party Payments          ,Other Establishments          ,EG50,Ind Day Schs Payments                   ,"17,555.00",23/03/2016,R,ST DOMINIC'S SCHOOL           
644,Childrens & Education Services,Support for SEN Pupils,Non-Delegated Statements,K90024,Third Party Payments          ,Other Establishments          ,EG50,Ind Day Schs Payments                   ,"7,905.00",29/03/2016,R,ST TERESA'S SCHOOL            
645,Childrens & Education Services,Support for SEN Pupils,Non-Delegated Statements,K90024,Third Party Payments          ,Other Establishments          ,EG01,Alternative SEN Provision               ,944.00,31/03/2016,R,FLEET EDUCATION SERVICES LTD  
646,Childrens & Education Services,Support for SEN Pupils,Non-Delegated Statements,K90024,Third Party Payments          ,Other Establishments          ,EG53,Ind Specialist Providers                ,"16,538.38",01/04/2016,R,HEREWARD COLLEGE              
647,Childrens & Education Services,Support for SEN Pupils,Non-Delegated Statements,K90024,Third Party Payments          ,Other Establishments          ,EG01,Alternative SEN Provision               ,"2,925.00",01/04/2016,R,REDACTED
648,Childrens & Education Services,Support for SEN Pupils,Non-Delegated Statements,K90024,Employees                     ,Direct Employee Expenses      ,AA17,Agency Staff & Casual Paymts            ,"1,688.75",05/04/2016,R,REDACTED
649,Childrens & Education Services,Support for SEN Pupils,Non-Delegated Statements,K90024,Third Party Payments          ,Other Local Authorities       ,EB48,OLA PAYMENTS-STATEMENTS                 ,"8,064.00",05/04/2016,R,WOODMANSTERNE PRIMARY SCHOOL  
650,Childrens & Education Services,Support for SEN Pupils,Non-Delegated Statements,K90024,Third Party Payments          ,Other Local Authorities       ,EB48,OLA PAYMENTS-STATEMENTS                 ,"21,449.40",05/04/2016,R,WOODMANSTERNE PRIMARY SCHOOL  
651,Childrens & Education Services,Support for SEN Pupils,Non-Delegated Statements,K90024,Third Party Payments          ,Other Local Authorities       ,EB48,OLA PAYMENTS-STATEMENTS                 ,"2,801.53",25/04/2016,R,ABBEY PRIMARY SCHOOL          
652,Childrens & Education Services,Behavioural Support,Language & Learning Service,K90025,Employees                     ,Indirect Employee Expenses    ,AB57,EXTERNAL TRAINING COSTS                 ,900.00,21/03/2016,R,GINA DAVIES AUTISM CENTRE LTD 
653,Childrens & Education Services,Behavioural Support,Sensory Team,K90026,Supplies & Services           ,Services                      ,DF03,Consultants                             ,"3,150.00",24/03/2016,R,EWING FOUNDATION              
654,Childrens & Education Services,Behavioural Support,Sensory Team,K90026,Employees                     ,Indirect Employee Expenses    ,AB02,Recruitment Adverts                     ,"1,769.00",15/04/2016,R,TES GLOBAL LIMITED            
655,Childrens & Education Services,Admissions & Planning Sch Prov,Retained Schools Budgets,K90030,Supplies & Services           ,Services                      ,DF02,Misc Advertising/Publicity              ,"2,272.05",16/11/2015,R,NEWSQUEST MEDIA GROUP LTD     
656,Childrens & Education Services,Admissions & Planning Sch Prov,Retained Schools Budgets,K90030,Supplies & Services           ,Comms and Computing           ,DG02,Software Licences                       ,"114,428.95",01/03/2016,R,CAPITA BUSINESS SERVICES LTD  
657,Childrens & Education Services,Admissions & Planning Sch Prov,Retained Schools Budgets,K90030,Supplies & Services           ,Prntng Stnry Gen Off Exp      ,DE22,Marketing                               ,"4,075.00",31/03/2016,R,GREBOT DONNELLY  ASSOCIAT. LTD
658,Childrens & Education Services,Facilitating School Improvemnt,SSQ CORE OFFER (DSG),K90040,Supplies & Services           ,Expenses                      ,DH02,Conferences                             ,600.00,10/09/2015,R,ST JOHNS AMBULANCE LONDON     
659,Childrens & Education Services,Nursery schools,EARLY YEARS NURSERY GRANTS,K90042,Supplies & Services           ,Grants and Subscriptions      ,DJ57,Nursery Grant Payment-4yr olds          ,"6,505.20",15/04/2016,R,ACORN NURSERY                 
660,Childrens & Education Services,Nursery schools,EARLY YEARS NURSERY GRANTS,K90042,Supplies & Services           ,Grants and Subscriptions      ,DJ57,Nursery Grant Payment-4yr olds          ,"4,335.24",15/04/2016,R,BANANA MOON DAY NURSERY       
661,Childrens & Education Services,Nursery schools,EARLY YEARS NURSERY GRANTS,K90042,Supplies & Services           ,Grants and Subscriptions      ,DJ57,Nursery Grant Payment-4yr olds          ,"1,526.59",15/04/2016,R,BLOSSOM HOUSE SCHOOL          
662,Childrens & Education Services,Nursery schools,EARLY YEARS NURSERY GRANTS,K90042,Supplies & Services           ,Grants and Subscriptions      ,DJ57,Nursery Grant Payment-4yr olds          ,"1,143.36",15/04/2016,R,BUILDING BLOCKS KIDS CLUB PLUS
663,Childrens & Education Services,Nursery schools,EARLY YEARS NURSERY GRANTS,K90042,Supplies & Services           ,Grants and Subscriptions      ,DJ57,Nursery Grant Payment-4yr olds          ,"2,013.27",15/04/2016,R,BUMPSA-DAISIES NURSERY        
664,Childrens & Education Services,Nursery schools,EARLY YEARS NURSERY GRANTS,K90042,Supplies & Services           ,Grants and Subscriptions      ,DJ57,Nursery Grant Payment-4yr olds          ,"5,145.12",15/04/2016,R,BUTTERFLIES CHILDCARE LIMITED 
665,Childrens & Education Services,Nursery schools,EARLY YEARS NURSERY GRANTS,K90042,Supplies & Services           ,Grants and Subscriptions      ,DJ57,Nursery Grant Payment-4yr olds          ,"5,267.68",15/04/2016,R,CROWN KINDERGARTEN            
666,Childrens & Education Services,Nursery schools,EARLY YEARS NURSERY GRANTS,K90042,Supplies & Services           ,Grants and Subscriptions      ,DJ57,Nursery Grant Payment-4yr olds          ,"8,803.87",15/04/2016,R,DEE'S DAY NURSERY             
667,Childrens & Education Services,Nursery schools,EARLY YEARS NURSERY GRANTS,K90042,Supplies & Services           ,Grants and Subscriptions      ,DJ57,Nursery Grant Payment-4yr olds          ,"5,430.96",15/04/2016,R,DEE'S DAYS NURSERY            
668,Childrens & Education Services,Nursery schools,EARLY YEARS NURSERY GRANTS,K90042,Supplies & Services           ,Grants and Subscriptions      ,DJ57,Nursery Grant Payment-4yr olds          ,"8,575.20",15/04/2016,R,DICKY BIRDS PRE-SCH NURSERIES 
669,Childrens & Education Services,Nursery schools,EARLY YEARS NURSERY GRANTS,K90042,Supplies & Services           ,Grants and Subscriptions      ,DJ57,Nursery Grant Payment-4yr olds          ,"5,573.88",15/04/2016,R,FUNKY OWLS NURSERY            
670,Childrens & Education Services,Nursery schools,EARLY YEARS NURSERY GRANTS,K90042,Supplies & Services           ,Grants and Subscriptions      ,DJ57,Nursery Grant Payment-4yr olds          ,"1,170.94",15/04/2016,R,HASLEMERE PRIMARY SCHOOL      
671,Childrens & Education Services,Nursery schools,EARLY YEARS NURSERY GRANTS,K90042,Supplies & Services           ,Grants and Subscriptions      ,DJ57,Nursery Grant Payment-4yr olds          ,"3,200.58",15/04/2016,R,LITTLE CATERPILLARS           
672,Childrens & Education Services,Nursery schools,EARLY YEARS NURSERY GRANTS,K90042,Supplies & Services           ,Grants and Subscriptions      ,DJ57,Nursery Grant Payment-4yr olds          ,"5,120.93",15/04/2016,R,LITTLE CATERPILLARS           
673,Childrens & Education Services,Nursery schools,EARLY YEARS NURSERY GRANTS,K90042,Supplies & Services           ,Grants and Subscriptions      ,DJ57,Nursery Grant Payment-4yr olds          ,"3,283.16",15/04/2016,R,LITTLE FOREST FOLK LTD        
674,Childrens & Education Services,Nursery schools,EARLY YEARS NURSERY GRANTS,K90042,Supplies & Services           ,Grants and Subscriptions      ,DJ57,Nursery Grant Payment-4yr olds          ,"5,073.66",15/04/2016,R,LITTLE HANDS MONTESSORI       
675,Childrens & Education Services,Nursery schools,EARLY YEARS NURSERY GRANTS,K90042,Supplies & Services           ,Grants and Subscriptions      ,DJ57,Nursery Grant Payment-4yr olds          ,"4,345.56",15/04/2016,R,LITTLE LEARNERS               
676,Childrens & Education Services,Nursery schools,EARLY YEARS NURSERY GRANTS,K90042,Supplies & Services           ,Grants and Subscriptions      ,DJ57,Nursery Grant Payment-4yr olds          ,"6,393.29",15/04/2016,R,LOVE LANE DAY NURSERY         
677,Childrens & Education Services,Nursery schools,EARLY YEARS NURSERY GRANTS,K90042,Supplies & Services           ,Grants and Subscriptions      ,DJ57,Nursery Grant Payment-4yr olds          ,"3,475.81",15/04/2016,R,MINNIE & MAMMA DAY NURSERY LTD
678,Childrens & Education Services,Nursery schools,EARLY YEARS NURSERY GRANTS,K90042,Supplies & Services           ,Grants and Subscriptions      ,DJ57,Nursery Grant Payment-4yr olds          ,"3,927.73",15/04/2016,R,NEW COMPTON NURSERY           
679,Childrens & Education Services,Nursery schools,EARLY YEARS NURSERY GRANTS,K90042,Supplies & Services           ,Grants and Subscriptions      ,DJ57,Nursery Grant Payment-4yr olds          ,"9,146.88",15/04/2016,R,NURTURE DAY NURSERIES         
680,Childrens & Education Services,Nursery schools,EARLY YEARS NURSERY GRANTS,K90042,Supplies & Services           ,Grants and Subscriptions      ,DJ57,Nursery Grant Payment-4yr olds          ,"8,575.20",15/04/2016,R,NURTURE SW20                  
681,Childrens & Education Services,Nursery schools,EARLY YEARS NURSERY GRANTS,K90042,Supplies & Services           ,Grants and Subscriptions      ,DJ57,Nursery Grant Payment-4yr olds          ,"9,146.88",15/04/2016,R,OAKTREE PRE-SCHOOL NURSERY    
682,Childrens & Education Services,Nursery schools,EARLY YEARS NURSERY GRANTS,K90042,Supplies & Services           ,Grants and Subscriptions      ,DJ57,Nursery Grant Payment-4yr olds          ,"6,669.60",15/04/2016,R,PLAYDAYS DAY NURSERY          
683,Childrens & Education Services,Nursery schools,EARLY YEARS NURSERY GRANTS,K90042,Supplies & Services           ,Grants and Subscriptions      ,DJ57,Nursery Grant Payment-4yr olds          ,549.50,15/04/2016,R,REDACTED
684,Childrens & Education Services,Nursery schools,EARLY YEARS NURSERY GRANTS,K90042,Supplies & Services           ,Grants and Subscriptions      ,DJ57,Nursery Grant Payment-4yr olds          ,777.60,15/04/2016,R,REDACTED
685,Childrens & Education Services,Nursery schools,EARLY YEARS NURSERY GRANTS,K90042,Supplies & Services           ,Grants and Subscriptions      ,DJ57,Nursery Grant Payment-4yr olds          ,777.60,15/04/2016,R,REDACTED
686,Childrens & Education Services,Nursery schools,EARLY YEARS NURSERY GRANTS,K90042,Supplies & Services           ,Grants and Subscriptions      ,DJ57,Nursery Grant Payment-4yr olds          ,820.80,15/04/2016,R,REDACTED
687,Childrens & Education Services,Nursery schools,EARLY YEARS NURSERY GRANTS,K90042,Supplies & Services           ,Grants and Subscriptions      ,DJ57,Nursery Grant Payment-4yr olds          ,835.66,15/04/2016,R,REDACTED
688,Childrens & Education Services,Nursery schools,EARLY YEARS NURSERY GRANTS,K90042,Supplies & Services           ,Grants and Subscriptions      ,DJ57,Nursery Grant Payment-4yr olds          ,842.40,15/04/2016,R,REDACTED
689,Childrens & Education Services,Nursery schools,EARLY YEARS NURSERY GRANTS,K90042,Supplies & Services           ,Grants and Subscriptions      ,DJ57,Nursery Grant Payment-4yr olds          ,842.40,15/04/2016,R,REDACTED
690,Childrens & Education Services,Nursery schools,EARLY YEARS NURSERY GRANTS,K90042,Supplies & Services           ,Grants and Subscriptions      ,DJ57,Nursery Grant Payment-4yr olds          ,842.40,15/04/2016,R,REDACTED
691,Childrens & Education Services,Nursery schools,EARLY YEARS NURSERY GRANTS,K90042,Supplies & Services           ,Grants and Subscriptions      ,DJ57,Nursery Grant Payment-4yr olds          ,842.40,15/04/2016,R,REDACTED
692,Childrens & Education Services,Nursery schools,EARLY YEARS NURSERY GRANTS,K90042,Supplies & Services           ,Grants and Subscriptions      ,DJ57,Nursery Grant Payment-4yr olds          ,855.36,15/04/2016,R,REDACTED
693,Childrens & Education Services,Nursery schools,EARLY YEARS NURSERY GRANTS,K90042,Supplies & Services           ,Grants and Subscriptions      ,DJ57,Nursery Grant Payment-4yr olds          ,953.19,15/04/2016,R,REDACTED
694,Childrens & Education Services,Nursery schools,EARLY YEARS NURSERY GRANTS,K90042,Supplies & Services           ,Grants and Subscriptions      ,DJ57,Nursery Grant Payment-4yr olds          ,959.92,15/04/2016,R,REDACTED
695,Childrens & Education Services,Nursery schools,EARLY YEARS NURSERY GRANTS,K90042,Supplies & Services           ,Grants and Subscriptions      ,DJ57,Nursery Grant Payment-4yr olds          ,"1,009.69",15/04/2016,R,REDACTED
696,Childrens & Education Services,Nursery schools,EARLY YEARS NURSERY GRANTS,K90042,Supplies & Services           ,Grants and Subscriptions      ,DJ57,Nursery Grant Payment-4yr olds          ,"1,555.20",15/04/2016,R,REDACTED
697,Childrens & Education Services,Nursery schools,EARLY YEARS NURSERY GRANTS,K90042,Supplies & Services           ,Grants and Subscriptions      ,DJ57,Nursery Grant Payment-4yr olds          ,"1,567.84",15/04/2016,R,REDACTED
698,Childrens & Education Services,Nursery schools,EARLY YEARS NURSERY GRANTS,K90042,Supplies & Services           ,Grants and Subscriptions      ,DJ57,Nursery Grant Payment-4yr olds          ,"1,681.64",15/04/2016,R,REDACTED
699,Childrens & Education Services,Nursery schools,EARLY YEARS NURSERY GRANTS,K90042,Supplies & Services           ,Grants and Subscriptions      ,DJ57,Nursery Grant Payment-4yr olds          ,"1,706.61",15/04/2016,R,REDACTED
700,Childrens & Education Services,Nursery schools,EARLY YEARS NURSERY GRANTS,K90042,Supplies & Services           ,Grants and Subscriptions      ,DJ57,Nursery Grant Payment-4yr olds          ,"2,332.80",15/04/2016,R,REDACTED
701,Childrens & Education Services,Nursery schools,EARLY YEARS NURSERY GRANTS,K90042,Supplies & Services           ,Grants and Subscriptions      ,DJ57,Nursery Grant Payment-4yr olds          ,"2,332.80",15/04/2016,R,REDACTED
702,Childrens & Education Services,Nursery schools,EARLY YEARS NURSERY GRANTS,K90042,Supplies & Services           ,Grants and Subscriptions      ,DJ57,Nursery Grant Payment-4yr olds          ,"2,527.20",15/04/2016,R,REDACTED
703,Childrens & Education Services,Nursery schools,EARLY YEARS NURSERY GRANTS,K90042,Supplies & Services           ,Grants and Subscriptions      ,DJ57,Nursery Grant Payment-4yr olds          ,"3,115.69",15/04/2016,R,REDACTED
704,Childrens & Education Services,Nursery schools,EARLY YEARS NURSERY GRANTS,K90042,Supplies & Services           ,Grants and Subscriptions      ,DJ57,Nursery Grant Payment-4yr olds          ,"3,121.79",15/04/2016,R,REDACTED
705,Childrens & Education Services,Nursery schools,EARLY YEARS NURSERY GRANTS,K90042,Supplies & Services           ,Grants and Subscriptions      ,DJ57,Nursery Grant Payment-4yr olds          ,"9,984.06",15/04/2016,R,REDACTED
706,Childrens & Education Services,Nursery schools,EARLY YEARS NURSERY GRANTS,K90042,Supplies & Services           ,Grants and Subscriptions      ,DJ58,Nursery Grant Payment-3yr olds          ,970.04,15/04/2016,R,REDACTED
707,Childrens & Education Services,Nursery schools,EARLY YEARS NURSERY GRANTS,K90042,Supplies & Services           ,Grants and Subscriptions      ,DJ57,Nursery Grant Payment-4yr olds          ,"5,573.88",15/04/2016,R,SACRED HEART FUN CLUB         
708,Childrens & Education Services,Nursery schools,EARLY YEARS NURSERY GRANTS,K90042,Supplies & Services           ,Grants and Subscriptions      ,DJ57,Nursery Grant Payment-4yr olds          ,"9,983.96",15/04/2016,R,ST MARK'S MONTESSORI          
709,Childrens & Education Services,Nursery schools,EARLY YEARS NURSERY GRANTS,K90042,Supplies & Services           ,Grants and Subscriptions      ,DJ57,Nursery Grant Payment-4yr olds          ,"6,860.16",15/04/2016,R,ST OLAVES NURSERY             
710,Childrens & Education Services,Nursery schools,EARLY YEARS NURSERY GRANTS,K90042,Supplies & Services           ,Grants and Subscriptions      ,DJ57,Nursery Grant Payment-4yr olds          ,"5,085.96",15/04/2016,R,THE LONDON ACORN SCHOOL       
711,Childrens & Education Services,Nursery schools,EARLY YEARS NURSERY GRANTS,K90042,Supplies & Services           ,Grants and Subscriptions      ,DJ57,Nursery Grant Payment-4yr olds          ,"6,117.49",15/04/2016,R,WILLINGTON SCH.FOUNDATION LTD 
712,Childrens & Education Services,Nursery schools,EARLY YEARS NURSERY GRANTS,K90042,Supplies & Services           ,Grants and Subscriptions      ,DJ57,Nursery Grant Payment-4yr olds          ,"5,145.12",15/04/2016,R,WIMBL'DN HILL NURS'Y & PRE SCH
713,Childrens & Education Services,Nursery schools,EARLY YEARS NURSERY GRANTS,K90042,Supplies & Services           ,Grants and Subscriptions      ,DJ57,Nursery Grant Payment-4yr olds          ,"7,803.43",18/04/2016,R,ARK AT SHERWOOD LTD           
714,Childrens & Education Services,Nursery schools,EARLY YEARS NURSERY GRANTS,K90042,Supplies & Services           ,Grants and Subscriptions      ,DJ57,Nursery Grant Payment-4yr olds          ,"6,288.48",18/04/2016,R,BLOOMING YEARS DAY NURSERY    
715,Childrens & Education Services,Nursery schools,EARLY YEARS NURSERY GRANTS,K90042,Supplies & Services           ,Grants and Subscriptions      ,DJ57,Nursery Grant Payment-4yr olds          ,"25,480.09",18/04/2016,R,BUILDING BLOCKS NURSERY       
716,Childrens & Education Services,Nursery schools,EARLY YEARS NURSERY GRANTS,K90042,Supplies & Services           ,Grants and Subscriptions      ,DJ57,Nursery Grant Payment-4yr olds          ,"11,761.08",18/04/2016,R,BUMBLE BEES'S DAY NURSERY-COCC
717,Childrens & Education Services,Nursery schools,EARLY YEARS NURSERY GRANTS,K90042,Supplies & Services           ,Grants and Subscriptions      ,DJ57,Nursery Grant Payment-4yr olds          ,"20,313.70",18/04/2016,R,BUSY BEES DAY NURSERY - MORDEN
718,Childrens & Education Services,Nursery schools,EARLY YEARS NURSERY GRANTS,K90042,Supplies & Services           ,Grants and Subscriptions      ,DJ57,Nursery Grant Payment-4yr olds          ,"12,830.88",18/04/2016,R,CAROUSEL DAY NURSERY          
719,Childrens & Education Services,Nursery schools,EARLY YEARS NURSERY GRANTS,K90042,Supplies & Services           ,Grants and Subscriptions      ,DJ57,Nursery Grant Payment-4yr olds          ,"12,005.28",18/04/2016,R,CAROUSEL LTD                  
720,Childrens & Education Services,Nursery schools,EARLY YEARS NURSERY GRANTS,K90042,Supplies & Services           ,Grants and Subscriptions      ,DJ57,Nursery Grant Payment-4yr olds          ,"36,158.76",18/04/2016,R,CASTLE KINDERGARTEN           
721,Childrens & Education Services,Nursery schools,EARLY YEARS NURSERY GRANTS,K90042,Supplies & Services           ,Grants and Subscriptions      ,DJ57,Nursery Grant Payment-4yr olds          ,"3,096.60",18/04/2016,R,CHERUBS @ NEWMINSTER          
722,Childrens & Education Services,Nursery schools,EARLY YEARS NURSERY GRANTS,K90042,Supplies & Services           ,Grants and Subscriptions      ,DJ57,Nursery Grant Payment-4yr olds          ,"6,860.16",18/04/2016,R,CHERUBS @ ST THOMAS           
723,Childrens & Education Services,Nursery schools,EARLY YEARS NURSERY GRANTS,K90042,Supplies & Services           ,Grants and Subscriptions      ,DJ57,Nursery Grant Payment-4yr olds          ,"7,431.84",18/04/2016,R,CHERUBS CHILDCARE LTD         
724,Childrens & Education Services,Nursery schools,EARLY YEARS NURSERY GRANTS,K90042,Supplies & Services           ,Grants and Subscriptions      ,DJ57,Nursery Grant Payment-4yr olds          ,"18,293.76",18/04/2016,R,COLLIERS WOOD VILLAGE DAY NUR.
725,Childrens & Education Services,Nursery schools,EARLY YEARS NURSERY GRANTS,K90042,Supplies & Services           ,Grants and Subscriptions      ,DJ57,Nursery Grant Payment-4yr olds          ,"11,262.10",18/04/2016,R,COOPERATIVE CHILDCARE         
726,Childrens & Education Services,Nursery schools,EARLY YEARS NURSERY GRANTS,K90042,Supplies & Services           ,Grants and Subscriptions      ,DJ57,Nursery Grant Payment-4yr olds          ,"23,399.71",18/04/2016,R,DATE VALLEY SCHOOL            
727,Childrens & Education Services,Nursery schools,EARLY YEARS NURSERY GRANTS,K90042,Supplies & Services           ,Grants and Subscriptions      ,DJ57,Nursery Grant Payment-4yr olds          ,"20,923.49",18/04/2016,R,DICKY BIRDS DAY NURSERIES     
728,Childrens & Education Services,Nursery schools,EARLY YEARS NURSERY GRANTS,K90042,Supplies & Services           ,Grants and Subscriptions      ,DJ57,Nursery Grant Payment-4yr olds          ,"21,741.09",18/04/2016,R,DICKY BIRDS PRE SCHOOL NURSERY
729,Childrens & Education Services,Nursery schools,EARLY YEARS NURSERY GRANTS,K90042,Supplies & Services           ,Grants and Subscriptions      ,DJ57,Nursery Grant Payment-4yr olds          ,"12,363.84",18/04/2016,R,DONHEAD SCHOOL                
730,Childrens & Education Services,Nursery schools,EARLY YEARS NURSERY GRANTS,K90042,Supplies & Services           ,Grants and Subscriptions      ,DJ57,Nursery Grant Payment-4yr olds          ,"11,433.60",18/04/2016,R,EVELINE DAY & NURSERY SCHS LTD
731,Childrens & Education Services,Nursery schools,EARLY YEARS NURSERY GRANTS,K90042,Supplies & Services           ,Grants and Subscriptions      ,DJ57,Nursery Grant Payment-4yr olds          ,"19,437.12",18/04/2016,R,EVELINE DAY NURSERY SCHOOLS   
732,Childrens & Education Services,Nursery schools,EARLY YEARS NURSERY GRANTS,K90042,Supplies & Services           ,Grants and Subscriptions      ,DJ57,Nursery Grant Payment-4yr olds          ,"21,295.08",18/04/2016,R,FIRST LITTLE STEPS            
733,Childrens & Education Services,Nursery schools,EARLY YEARS NURSERY GRANTS,K90042,Supplies & Services           ,Grants and Subscriptions      ,DJ57,Nursery Grant Payment-4yr olds          ,"3,903.12",18/04/2016,R,HAPPY FACES@CRANMER           
734,Childrens & Education Services,Nursery schools,EARLY YEARS NURSERY GRANTS,K90042,Supplies & Services           ,Grants and Subscriptions      ,DJ57,Nursery Grant Payment-4yr olds          ,"13,005.72",18/04/2016,R,HASLEMERE HOUSE DAY NURSERY   
735,Childrens & Education Services,Nursery schools,EARLY YEARS NURSERY GRANTS,K90042,Supplies & Services           ,Grants and Subscriptions      ,DJ57,Nursery Grant Payment-4yr olds          ,"9,994.66",18/04/2016,R,HOLY CROSS PRE SCHOOL         
736,Childrens & Education Services,Nursery schools,EARLY YEARS NURSERY GRANTS,K90042,Supplies & Services           ,Grants and Subscriptions      ,DJ57,Nursery Grant Payment-4yr olds          ,"13,005.72",18/04/2016,R,JIGSAW DAY NURSERY            
737,Childrens & Education Services,Nursery schools,EARLY YEARS NURSERY GRANTS,K90042,Supplies & Services           ,Grants and Subscriptions      ,DJ57,Nursery Grant Payment-4yr olds          ,"7,806.24",18/04/2016,R,JOLLYTIME PLAYGROUP           
738,Childrens & Education Services,Nursery schools,EARLY YEARS NURSERY GRANTS,K90042,Supplies & Services           ,Grants and Subscriptions      ,DJ57,Nursery Grant Payment-4yr olds          ,"8,670.48",18/04/2016,R,KIDDIES KOTTAGE NURSERY       
739,Childrens & Education Services,Nursery schools,EARLY YEARS NURSERY GRANTS,K90042,Supplies & Services           ,Grants and Subscriptions      ,DJ57,Nursery Grant Payment-4yr olds          ,"21,914.40",18/04/2016,R,KINGSWOOD DAYCARE NURSERY LTD 
740,Childrens & Education Services,Nursery schools,EARLY YEARS NURSERY GRANTS,K90042,Supplies & Services           ,Grants and Subscriptions      ,DJ57,Nursery Grant Payment-4yr olds          ,"8,051.16",18/04/2016,R,LA PETITE FLEUR PRE-SCHOOL    
741,Childrens & Education Services,Nursery schools,EARLY YEARS NURSERY GRANTS,K90042,Supplies & Services           ,Grants and Subscriptions      ,DJ57,Nursery Grant Payment-4yr olds          ,"16,515.20",18/04/2016,R,MINI TREASURES DAY NURSERY    
742,Childrens & Education Services,Nursery schools,EARLY YEARS NURSERY GRANTS,K90042,Supplies & Services           ,Grants and Subscriptions      ,DJ57,Nursery Grant Payment-4yr olds          ,"9,289.80",18/04/2016,R,MMI PRE SCHOOL                
743,Childrens & Education Services,Nursery schools,EARLY YEARS NURSERY GRANTS,K90042,Supplies & Services           ,Grants and Subscriptions      ,DJ57,Nursery Grant Payment-4yr olds          ,"17,198.04",18/04/2016,R,PLAYDAYS DAY NURSERY          
744,Childrens & Education Services,Nursery schools,EARLY YEARS NURSERY GRANTS,K90042,Supplies & Services           ,Grants and Subscriptions      ,DJ57,Nursery Grant Payment-4yr olds          ,"5,334.26",18/04/2016,R,REDACTED
745,Childrens & Education Services,Nursery schools,EARLY YEARS NURSERY GRANTS,K90042,Supplies & Services           ,Grants and Subscriptions      ,DJ57,Nursery Grant Payment-4yr olds          ,"10,342.64",18/04/2016,R,REDWOOD SCHOOL                
746,Childrens & Education Services,Nursery schools,EARLY YEARS NURSERY GRANTS,K90042,Supplies & Services           ,Grants and Subscriptions      ,DJ57,Nursery Grant Payment-4yr olds          ,"13,558.15",18/04/2016,R,THE GARDEN ROOM               
747,Childrens & Education Services,Nursery schools,EARLY YEARS NURSERY GRANTS,K90042,Supplies & Services           ,Grants and Subscriptions      ,DJ57,Nursery Grant Payment-4yr olds          ,"13,720.32",18/04/2016,R,THE GARDENS CHILDCARE LTD     
748,Childrens & Education Services,Nursery schools,EARLY YEARS NURSERY GRANTS,K90042,Supplies & Services           ,Grants and Subscriptions      ,DJ57,Nursery Grant Payment-4yr olds          ,"12,799.60",18/04/2016,R,THE PRE-SCHOOL GROUP LTD      
749,Childrens & Education Services,Nursery schools,EARLY YEARS NURSERY GRANTS,K90042,Supplies & Services           ,Grants and Subscriptions      ,DJ57,Nursery Grant Payment-4yr olds          ,"29,646.31",18/04/2016,R,URSULINE PREPARATORY SCHOOL   
750,Childrens & Education Services,Nursery schools,EARLY YEARS NURSERY GRANTS,K90042,Supplies & Services           ,Grants and Subscriptions      ,DJ57,Nursery Grant Payment-4yr olds          ,"17,722.08",18/04/2016,R,WILLOW PRE SCHOOL             
751,Childrens & Education Services,Nursery schools,EARLY YEARS NURSERY GRANTS,K90042,Supplies & Services           ,Grants and Subscriptions      ,DJ57,Nursery Grant Payment-4yr olds          ,"23,438.88",18/04/2016,R,WILLOWS PRE-SCHOOL            
752,Childrens & Education Services,Nursery schools,EARLY YEARS NURSERY GRANTS,K90042,Supplies & Services           ,Grants and Subscriptions      ,DJ57,Nursery Grant Payment-4yr olds          ,"20,961.60",18/04/2016,R,WIMBLEDON DAY NURSERY         
753,Childrens & Education Services,Nursery schools,EARLY YEARS NURSERY GRANTS,K90042,Supplies & Services           ,Grants and Subscriptions      ,DJ57,Nursery Grant Payment-4yr olds          ,"12,576.96",18/04/2016,R,WIMBLEDON DAY NURSERY 2       
754,Childrens & Education Services,Nursery schools,EARLY YEARS NURSERY GRANTS,K90042,Supplies & Services           ,Grants and Subscriptions      ,DJ57,Nursery Grant Payment-4yr olds          ,870.85,25/04/2016,R,REDACTED
755,Childrens & Education Services,Nursery schools,EARLY YEARS NURSERY GRANTS,K90042,Supplies & Services           ,Grants and Subscriptions      ,DJ57,Nursery Grant Payment-4yr olds          ,"1,256.85",25/04/2016,R,REDACTED
756,Childrens & Education Services,Oth U5s Provn Not Prim or Spec,DAVID NICHOLAS CRECHE,K90045,Supplies & Services           ,Equip Furniture/Materials     ,DA70,Milk and Meals                          ,668.85,14/04/2016,R,ISS COLLECTIONS LTD           
757,Childrens & Education Services,Support for SEN Pupils,ART SEN Residential (DSG),K90050,Third Party Payments          ,Other Establishments          ,EG51,Ind Resid Schs Payments                 ,"13,592.08",01/04/2016,R,MOOR HOUSE SCHOOL             
758,Childrens & Education Services,Support for SEN Pupils,ART SEN Residential (DSG),K90050,Third Party Payments          ,Other Establishments          ,EG51,Ind Resid Schs Payments                 ,"16,400.00",01/04/2016,R,ST MARY'S WRESTWOOD CHILDRENS 
759,Childrens & Education Services,Nursery schools,2Year Old Offer                         ,K90051,Supplies & Services           ,Grants and Subscriptions      ,DJ58,Nursery Grant Payment-3yr olds          ,"2,527.20",15/04/2016,R,ACORN NURSERY                 
760,Childrens & Education Services,Nursery schools,2Year Old Offer                         ,K90051,Supplies & Services           ,Grants and Subscriptions      ,DJ58,Nursery Grant Payment-3yr olds          ,"3,369.60",15/04/2016,R,BANANA MOON DAY NURSERY       
761,Childrens & Education Services,Nursery schools,2Year Old Offer                         ,K90051,Supplies & Services           ,Grants and Subscriptions      ,DJ58,Nursery Grant Payment-3yr olds          ,"4,665.60",15/04/2016,R,BUILDING BLOCKS KIDS CLUB PLUS
762,Childrens & Education Services,Nursery schools,2Year Old Offer                         ,K90051,Supplies & Services           ,Grants and Subscriptions      ,DJ58,Nursery Grant Payment-3yr olds          ,"7,516.80",15/04/2016,R,BUMPSA-DAISIES NURSERY        
763,Childrens & Education Services,Nursery schools,2Year Old Offer                         ,K90051,Supplies & Services           ,Grants and Subscriptions      ,DJ58,Nursery Grant Payment-3yr olds          ,"1,023.59",15/04/2016,R,DEE'S DAY NURSERY             
764,Childrens & Education Services,Nursery schools,2Year Old Offer                         ,K90051,Supplies & Services           ,Grants and Subscriptions      ,DJ58,Nursery Grant Payment-3yr olds          ,777.60,15/04/2016,R,DEE'S DAYS NURSERY            
765,Childrens & Education Services,Nursery schools,2Year Old Offer                         ,K90051,Supplies & Services           ,Grants and Subscriptions      ,DJ58,Nursery Grant Payment-3yr olds          ,"3,369.60",15/04/2016,R,FUNKY OWLS NURSERY            
766,Childrens & Education Services,Nursery schools,2Year Old Offer                         ,K90051,Supplies & Services           ,Grants and Subscriptions      ,DJ58,Nursery Grant Payment-3yr olds          ,"8,424.00",15/04/2016,R,HASLEMERE PRIMARY SCHOOL      
767,Childrens & Education Services,Nursery schools,2Year Old Offer                         ,K90051,Supplies & Services           ,Grants and Subscriptions      ,DJ58,Nursery Grant Payment-3yr olds          ,"2,486.78",15/04/2016,R,LITTLE CATERPILLARS           
768,Childrens & Education Services,Nursery schools,2Year Old Offer                         ,K90051,Supplies & Services           ,Grants and Subscriptions      ,DJ58,Nursery Grant Payment-3yr olds          ,"3,315.71",15/04/2016,R,LITTLE CATERPILLARS           
769,Childrens & Education Services,Nursery schools,2Year Old Offer                         ,K90051,Supplies & Services           ,Grants and Subscriptions      ,DJ58,Nursery Grant Payment-3yr olds          ,777.60,15/04/2016,R,LITTLE FOREST FOLK LTD        
770,Childrens & Education Services,Nursery schools,2Year Old Offer                         ,K90051,Supplies & Services           ,Grants and Subscriptions      ,DJ58,Nursery Grant Payment-3yr olds          ,694.01,15/04/2016,R,LITTLE HANDS MONTESSORI       
771,Childrens & Education Services,Nursery schools,2Year Old Offer                         ,K90051,Supplies & Services           ,Grants and Subscriptions      ,DJ58,Nursery Grant Payment-3yr olds          ,"2,527.20",15/04/2016,R,LITTLE LEARNERS               
772,Childrens & Education Services,Nursery schools,2Year Old Offer                         ,K90051,Supplies & Services           ,Grants and Subscriptions      ,DJ58,Nursery Grant Payment-3yr olds          ,"6,303.74",15/04/2016,R,MINNIE & MAMMA DAY NURSERY LTD
773,Childrens & Education Services,Nursery schools,2Year Old Offer                         ,K90051,Supplies & Services           ,Grants and Subscriptions      ,DJ58,Nursery Grant Payment-3yr olds          ,777.60,15/04/2016,R,REDACTED
774,Childrens & Education Services,Nursery schools,2Year Old Offer                         ,K90051,Supplies & Services           ,Grants and Subscriptions      ,DJ58,Nursery Grant Payment-3yr olds          ,835.66,15/04/2016,R,REDACTED
775,Childrens & Education Services,Nursery schools,2Year Old Offer                         ,K90051,Supplies & Services           ,Grants and Subscriptions      ,DJ58,Nursery Grant Payment-3yr olds          ,842.40,15/04/2016,R,REDACTED
776,Childrens & Education Services,Nursery schools,2Year Old Offer                         ,K90051,Supplies & Services           ,Grants and Subscriptions      ,DJ58,Nursery Grant Payment-3yr olds          ,842.40,15/04/2016,R,REDACTED
777,Childrens & Education Services,Nursery schools,2Year Old Offer                         ,K90051,Supplies & Services           ,Grants and Subscriptions      ,DJ58,Nursery Grant Payment-3yr olds          ,842.40,15/04/2016,R,REDACTED
778,Childrens & Education Services,Nursery schools,2Year Old Offer                         ,K90051,Supplies & Services           ,Grants and Subscriptions      ,DJ58,Nursery Grant Payment-3yr olds          ,842.40,15/04/2016,R,REDACTED
779,Childrens & Education Services,Nursery schools,2Year Old Offer                         ,K90051,Supplies & Services           ,Grants and Subscriptions      ,DJ58,Nursery Grant Payment-3yr olds          ,855.36,15/04/2016,R,REDACTED
780,Childrens & Education Services,Nursery schools,2Year Old Offer                         ,K90051,Supplies & Services           ,Grants and Subscriptions      ,DJ58,Nursery Grant Payment-3yr olds          ,"1,555.20",15/04/2016,R,REDACTED
781,Childrens & Education Services,Nursery schools,2Year Old Offer                         ,K90051,Supplies & Services           ,Grants and Subscriptions      ,DJ58,Nursery Grant Payment-3yr olds          ,"2,332.80",15/04/2016,R,REDACTED
782,Childrens & Education Services,Nursery schools,2Year Old Offer                         ,K90051,Supplies & Services           ,Grants and Subscriptions      ,DJ58,Nursery Grant Payment-3yr olds          ,"6,509.50",15/04/2016,R,REDACTED
783,Childrens & Education Services,Nursery schools,2Year Old Offer                         ,K90051,Supplies & Services           ,Grants and Subscriptions      ,DJ58,Nursery Grant Payment-3yr olds          ,"2,332.80",15/04/2016,R,ST MARTINS PLAYGROUP          
784,Childrens & Education Services,Nursery schools,2Year Old Offer                         ,K90051,Supplies & Services           ,Grants and Subscriptions      ,DJ58,Nursery Grant Payment-3yr olds          ,"11,793.60",18/04/2016,R,ARK AT SHERWOOD LTD           
785,Childrens & Education Services,Nursery schools,2Year Old Offer                         ,K90051,Supplies & Services           ,Grants and Subscriptions      ,DJ58,Nursery Grant Payment-3yr olds          ,"6,220.80",18/04/2016,R,BLOOMING YEARS DAY NURSERY    
786,Childrens & Education Services,Nursery schools,2Year Old Offer                         ,K90051,Supplies & Services           ,Grants and Subscriptions      ,DJ58,Nursery Grant Payment-3yr olds          ,"3,035.23",18/04/2016,R,CAROUSEL DAY NURSERY          
787,Childrens & Education Services,Nursery schools,2Year Old Offer                         ,K90051,Supplies & Services           ,Grants and Subscriptions      ,DJ58,Nursery Grant Payment-3yr olds          ,"3,888.00",18/04/2016,R,CAROUSEL LTD                  
788,Childrens & Education Services,Nursery schools,2Year Old Offer                         ,K90051,Supplies & Services           ,Grants and Subscriptions      ,DJ58,Nursery Grant Payment-3yr olds          ,712.80,18/04/2016,R,CASTLE KINDERGARTEN           
789,Childrens & Education Services,Nursery schools,2Year Old Offer                         ,K90051,Supplies & Services           ,Grants and Subscriptions      ,DJ58,Nursery Grant Payment-3yr olds          ,"17,690.40",18/04/2016,R,CHERUBS @ NEWMINSTER          
790,Childrens & Education Services,Nursery schools,2Year Old Offer                         ,K90051,Supplies & Services           ,Grants and Subscriptions      ,DJ58,Nursery Grant Payment-3yr olds          ,"11,664.00",18/04/2016,R,CHERUBS @ ST THOMAS           
791,Childrens & Education Services,Nursery schools,2Year Old Offer                         ,K90051,Supplies & Services           ,Grants and Subscriptions      ,DJ58,Nursery Grant Payment-3yr olds          ,"5,099.76",18/04/2016,R,CHERUBS CHILDCARE LTD         
792,Childrens & Education Services,Nursery schools,2Year Old Offer                         ,K90051,Supplies & Services           ,Grants and Subscriptions      ,DJ58,Nursery Grant Payment-3yr olds          ,842.00,18/04/2016,R,COOPERATIVE CHILDCARE         
793,Childrens & Education Services,Nursery schools,2Year Old Offer                         ,K90051,Supplies & Services           ,Grants and Subscriptions      ,DJ58,Nursery Grant Payment-3yr olds          ,"2,851.20",18/04/2016,R,DICKY BIRDS DAY NURSERIES     
794,Childrens & Education Services,Nursery schools,2Year Old Offer                         ,K90051,Supplies & Services           ,Grants and Subscriptions      ,DJ58,Nursery Grant Payment-3yr olds          ,"2,295.86",18/04/2016,R,DICKY BIRDS PRE SCHOOL NURSERY
795,Childrens & Education Services,Nursery schools,2Year Old Offer                         ,K90051,Supplies & Services           ,Grants and Subscriptions      ,DJ58,Nursery Grant Payment-3yr olds          ,"13,258.08",18/04/2016,R,FIRST LITTLE STEPS            
796,Childrens & Education Services,Nursery schools,2Year Old Offer                         ,K90051,Supplies & Services           ,Grants and Subscriptions      ,DJ58,Nursery Grant Payment-3yr olds          ,"16,848.00",18/04/2016,R,HAPPY FACES@CRANMER           
797,Childrens & Education Services,Nursery schools,2Year Old Offer                         ,K90051,Supplies & Services           ,Grants and Subscriptions      ,DJ58,Nursery Grant Payment-3yr olds          ,"13,478.40",18/04/2016,R,HASLEMERE HOUSE DAY NURSERY   
798,Childrens & Education Services,Nursery schools,2Year Old Offer                         ,K90051,Supplies & Services           ,Grants and Subscriptions      ,DJ58,Nursery Grant Payment-3yr olds          ,"4,044.60",18/04/2016,R,HOLY CROSS PRE SCHOOL         
799,Childrens & Education Services,Nursery schools,2Year Old Offer                         ,K90051,Supplies & Services           ,Grants and Subscriptions      ,DJ58,Nursery Grant Payment-3yr olds          ,"4,212.00",18/04/2016,R,JIGSAW DAY NURSERY            
800,Childrens & Education Services,Nursery schools,2Year Old Offer                         ,K90051,Supplies & Services           ,Grants and Subscriptions      ,DJ58,Nursery Grant Payment-3yr olds          ,"3,836.16",18/04/2016,R,JOLLYTIME PLAYGROUP           
801,Childrens & Education Services,Nursery schools,2Year Old Offer                         ,K90051,Supplies & Services           ,Grants and Subscriptions      ,DJ58,Nursery Grant Payment-3yr olds          ,"9,616.32",18/04/2016,R,KIDDIES KOTTAGE NURSERY       
802,Childrens & Education Services,Nursery schools,2Year Old Offer                         ,K90051,Supplies & Services           ,Grants and Subscriptions      ,DJ58,Nursery Grant Payment-3yr olds          ,"22,062.24",18/04/2016,R,KINGSWOOD DAYCARE NURSERY LTD 
803,Childrens & Education Services,Nursery schools,2Year Old Offer                         ,K90051,Supplies & Services           ,Grants and Subscriptions      ,DJ58,Nursery Grant Payment-3yr olds          ,"10,108.80",18/04/2016,R,LA PETITE FLEUR PRE-SCHOOL    
804,Childrens & Education Services,Nursery schools,2Year Old Offer                         ,K90051,Supplies & Services           ,Grants and Subscriptions      ,DJ58,Nursery Grant Payment-3yr olds          ,"7,300.80",18/04/2016,R,MINI TREASURES DAY NURSERY    
805,Childrens & Education Services,Nursery schools,2Year Old Offer                         ,K90051,Supplies & Services           ,Grants and Subscriptions      ,DJ58,Nursery Grant Payment-3yr olds          ,842.40,18/04/2016,R,MMI PRE SCHOOL                
806,Childrens & Education Services,Nursery schools,2Year Old Offer                         ,K90051,Supplies & Services           ,Grants and Subscriptions      ,DJ58,Nursery Grant Payment-3yr olds          ,"11,625.12",18/04/2016,R,REDACTED
807,Childrens & Education Services,Nursery schools,2Year Old Offer                         ,K90051,Supplies & Services           ,Grants and Subscriptions      ,DJ58,Nursery Grant Payment-3yr olds          ,"5,754.24",18/04/2016,R,REDWOOD SCHOOL                
808,Childrens & Education Services,Nursery schools,2Year Old Offer                         ,K90051,Supplies & Services           ,Grants and Subscriptions      ,DJ58,Nursery Grant Payment-3yr olds          ,"3,316.20",18/04/2016,R,THE PRE-SCHOOL GROUP LTD      
809,Childrens & Education Services,Nursery schools,2Year Old Offer                         ,K90051,Supplies & Services           ,Grants and Subscriptions      ,DJ58,Nursery Grant Payment-3yr olds          ,"1,555.20",18/04/2016,R,WILLOWS PRE-SCHOOL            
810,Childrens & Education Services,Support for SEN Pupils,Non-Maintained Post 16 SEN              ,K90052,Third Party Payments          ,Other Establishments          ,EG54,FE Colleges                             ,"5,757.60",14/01/2016,R,SFX ST FRANCIS XAVIER         
811,Childrens & Education Services,Support for SEN Pupils,Non-Maintained Post 16 SEN              ,K90052,Third Party Payments          ,Other Establishments          ,EG53,Ind Specialist Providers                ,"11,092.00",30/03/2016,R,SOUTH THAMES COLLEGE          
812,Childrens & Education Services,Support for SEN Pupils,Non-Maintained Post 16 SEN              ,K90052,Third Party Payments          ,Other Establishments          ,EG53,Ind Specialist Providers                ,"42,319.00",30/03/2016,R,SOUTH THAMES COLLEGE          
813,Childrens & Education Services,Support for SEN Pupils,Non-Maintained Post 16 SEN              ,K90052,Third Party Payments          ,Other Establishments          ,EG53,Ind Specialist Providers                ,"107,749.00",30/03/2016,R,SOUTH THAMES COLLEGE          
814,Childrens & Education Services,Statutory & Regulatory Duties,Merton Education Partnership            ,K90053,Supplies & Services           ,Services                      ,DF04,Miscellaneous Expenses                  ,500.00,31/03/2016,R,REDACTED
815,Cultural Env Reg&Plan Services,Library DoS not split,Libraries Service-Civic Centre,L50001,Supplies & Services           ,Comms and Computing           ,DG52,DS Maintenance                          ,"3,215.55",04/03/2016,R,AXIELL                        
816,Cultural Env Reg&Plan Services,Library DoS not split,Libraries Service-Civic Centre,L50001,Supplies & Services           ,Comms and Computing           ,DG52,DS Maintenance                          ,"47,499.84",04/03/2016,R,AXIELL                        
817,Cultural Env Reg&Plan Services,Library DoS not split,Libraries Service-Civic Centre,L50001,Premises Related Expenditure  ,RepairsAlterations&MtceOfBldgs,BA79,Security of Premises                    ,"6,305.00",01/04/2016,R,SIGHT & SOUND                 
818,Cultural Env Reg&Plan Services,Library DoS not split,Peoples Network Project (NOF),L83078,Supplies & Services           ,Comms and Computing           ,DG15,Network Maintenance                     ,"6,249.96",04/03/2016,R,VIRGIN MEDIA PAYMENTS LTD     
819,Cultural Env Reg&Plan Services,Library DoS not split,Peoples Network Project (NOF),L83078,Supplies & Services           ,Comms and Computing           ,DG15,Network Maintenance                     ,"6,340.92",04/03/2016,R,VIRGIN MEDIA PAYMENTS LTD     
820,Cultural Env Reg&Plan Services,Library DoS not split,Media Fund,L83081,Supplies & Services           ,Grants and Subscriptions      ,DJ04,Subscriptions                           ,"5,347.50",01/04/2016,R,BDS LTD                       
821,Housing Services,Bed / breakfast accommodation,TEMPORARY ACCOMMODATION,N47160,Third Party Payments          ,Private Contractors           ,EH01,Miscellaneous Agency Services           ,923.00,01/01/2015,R,HYTYME B&B                    
822,Housing Services,Bed / breakfast accommodation,TEMPORARY ACCOMMODATION,N47160,Third Party Payments          ,Private Contractors           ,EH01,Miscellaneous Agency Services           ,"2,978.00",01/09/2015,R,HYTYME B&B                    
823,Housing Services,Bed / breakfast accommodation,TEMPORARY ACCOMMODATION,N47160,Third Party Payments          ,Private Contractors           ,EH01,Miscellaneous Agency Services           ,"1,850.00",01/11/2015,R,HYTYME B&B                    
824,Housing Services,Bed / breakfast accommodation,TEMPORARY ACCOMMODATION,N47160,Third Party Payments          ,Private Contractors           ,EH01,Miscellaneous Agency Services           ,"1,101.00",01/12/2015,R,HYTYME B&B                    
825,Housing Services,Bed / breakfast accommodation,TEMPORARY ACCOMMODATION,N47160,Third Party Payments          ,Private Contractors           ,EH01,Miscellaneous Agency Services           ,"1,457.00",31/03/2016,R,ASSETGROVE LETTINGS LTD       
826,Housing Services,Bed / breakfast accommodation,TEMPORARY ACCOMMODATION,N47160,Third Party Payments          ,Private Contractors           ,EH01,Miscellaneous Agency Services           ,"1,457.00",31/03/2016,R,ASSETGROVE LETTINGS LTD       
827,Housing Services,Bed / breakfast accommodation,TEMPORARY ACCOMMODATION,N47160,Third Party Payments          ,Private Contractors           ,EH01,Miscellaneous Agency Services           ,"1,457.00",31/03/2016,R,ASSETGROVE LETTINGS LTD       
828,Housing Services,Bed / breakfast accommodation,TEMPORARY ACCOMMODATION,N47160,Third Party Payments          ,Private Contractors           ,EH01,Miscellaneous Agency Services           ,"1,457.00",31/03/2016,R,ASSETGROVE LETTINGS LTD       
829,Housing Services,Bed / breakfast accommodation,TEMPORARY ACCOMMODATION,N47160,Third Party Payments          ,Private Contractors           ,EH01,Miscellaneous Agency Services           ,"1,457.00",31/03/2016,R,ASSETGROVE LETTINGS LTD       
830,Housing Services,Bed / breakfast accommodation,TEMPORARY ACCOMMODATION,N47160,Third Party Payments          ,Private Contractors           ,EH01,Miscellaneous Agency Services           ,"1,457.00",31/03/2016,R,ASSETGROVE LETTINGS LTD       
831,Housing Services,Bed / breakfast accommodation,TEMPORARY ACCOMMODATION,N47160,Third Party Payments          ,Private Contractors           ,EH01,Miscellaneous Agency Services           ,"2,015.00",31/03/2016,R,ASSETGROVE LETTINGS LTD       
832,Housing Services,Bed / breakfast accommodation,TEMPORARY ACCOMMODATION,N47160,Transfer Payments             ,Housing Benefits              ,FA12,Rent Deposits                           ,"4,000.00",25/04/2016,R,REDACTED
833,Housing Services,Bed / breakfast accommodation,Homelessness Prevention,N47171,Transfer Payments             ,Housing Benefits              ,FA12,Rent Deposits                           ,500.00,12/02/2016,R,VISION HOUSING                
834,Housing Services,Bed / breakfast accommodation,Homelessness Prevention,N47171,Transfer Payments             ,Housing Benefits              ,FA11,Sanctuary Scheme Rent Rescue            ,"1,382.50",15/03/2016,R,PJ HARVEY & CO LTD            
835,Housing Services,Bed / breakfast accommodation,Homelessness Prevention,N47171,Transfer Payments             ,Housing Benefits              ,FA12,Rent Deposits                           ,500.00,31/03/2016,R,VISION HOUSING                
836,Housing Services,Bed / breakfast accommodation,Homelessness Prevention,N47171,Transfer Payments             ,Housing Benefits              ,FA11,Sanctuary Scheme Rent Rescue            ,"1,350.00",11/04/2016,R,ACCESS ESTATE AGENTS          
837,Housing Services,Bed / breakfast accommodation,Homelessness Prevention,N47171,Transfer Payments             ,Housing Benefits              ,FA12,Rent Deposits                           ,"4,000.00",11/04/2016,R,DICKSONS ESTATE AGENTS        
838,Housing Services,Bed / breakfast accommodation,Homelessness Prevention,N47171,Transfer Payments             ,Housing Benefits              ,FA12,Rent Deposits                           ,"1,250.00",11/04/2016,R,GIRACH ESTATES LIMITED        
839,Housing Services,Bed / breakfast accommodation,Homelessness Prevention,N47171,Transfer Payments             ,Housing Benefits              ,FA12,Rent Deposits                           ,"2,530.00",11/04/2016,R,MERCER PLANNING CONSULTANTS   
840,Housing Services,Bed / breakfast accommodation,Homelessness Prevention,N47171,Transfer Payments             ,Housing Benefits              ,FA12,Rent Deposits                           ,849.98,11/04/2016,R,REDACTED
